﻿Directorate,Department,Expenditure Type,Ref.Doc.1,Vendor Name,Expenditure Amount (exc VAT),Payment Date,,
COMMERCIAL,HOUSING NEEDS RESOURCES,Other Agencies - Third Party P,0060141214,STRETTONS LIMITED,"14,416.00",16/10/2019,,
COMMERCIAL,HOUSING REVENUE ACCOUNT,Consultants Fees,0060140526,RE (REGIONAL ENTERPRISE) LIMITED,"217,338.11",08/10/2019,,
COMMERCIAL,HOUSING REVENUE ACCOUNT,Consultants Fees,0060142301,RE (REGIONAL ENTERPRISE) LIMITED,"23,379.21",31/10/2019,,
COMMERCIAL,HOUSING REVENUE ACCOUNT,Other Agencies - Third Party P,0020048374,THE BARNETGROUP LIMITED,"1,018,000.00",21/10/2019,,
COMMERCIAL,HOUSING REVENUE ACCOUNT,Other Agencies - Third Party P,0060140056,THE BARNETGROUP LIMITED,"1,018,000.00",11/10/2019,,
COMMERCIAL,HOUSING REVENUE ACCOUNT,Other Agencies - Third Party P,0060141059,THE BARNETGROUP LIMITED,"101,200.00",15/10/2019,,
Commercial,HRA,Consultants Fees,0060142145,TROWERS & HAMLINS,215.00,30/10/2019,,
Commercial,HRA,Consultants Fees,0060142070,THE BARNETGROUP LIMITED,"2,375.50",29/10/2019,,
Commercial,HRA,Consultants Fees,0060141978,TROWERS & HAMLINS,"2,980.00",29/10/2019,,
Commercial,HRA,Consultants Fees,0060141136,PRIORITY ESTATES PROJECT LTD,"1,955.80",16/10/2019,,
Commercial,HRA,Consultants Fees,0060141648,PRIORITY ESTATES PROJECT LTD,"2,724.15",24/10/2019,,
Commercial,HRA,Advertising,0060141365,TMP (UK) LTD,"1,938.00",18/10/2019,,
Commercial,HRA,Advertising,0060142006,TMP (UK) LTD,"1,858.00",29/10/2019,,
Commercial,HRA,Other Services,0080029143,AFFINITY WATER LIMITED,"1,752,964.29",03/10/2019,,
Commercial,HRA,Other Services,0060125894,THE BARNETGROUP LIMITED,"67,750.00",28/10/2019,,
Commercial,HRA,Other Services,0060125933,THE BARNETGROUP LIMITED,"40,000.00",28/10/2019,,
Commercial,HRA,Professional Services,0060140757,THE BARNETGROUP LIMITED,"169,903.00",28/10/2019,,
Commercial,HRA,Other Services,0060140835,THE BARNETGROUP LIMITED,"8,854.00",28/10/2019,,
Commercial,HRA,Consultants Fees,0060142258,EPC ASSURE LTD,228.00,31/10/2019,,
Commercial,HRA,Other Services,0060141117,THE BARNETGROUP LIMITED,"2,020,145.93",16/10/2019,,
Commercial,HRA,Private Contractors - Third Pa,0080029625,REDACTED - PERSONAL DATA,"1,500.00",11/10/2019,,
Commercial,HRA,Private Contractors - Third Pa,0080029631,REDACTED - PERSONAL DATA,"1,500.00",11/10/2019,,
Commercial,HRA,Private Contractors - Third Pa,0080029635,REDACTED - PERSONAL DATA,"2,521.20",11/10/2019,,
Commercial,HRA,Private Contractors - Third Pa,0080030220,REDACTED - PERSONAL DATA,985.20,23/10/2019,,
Commercial,HRA,Consultants Fees,0060141128,TMP (UK) LTD,620.00,16/10/2019,,
Commercial,HRA,Consultants Fees,0060141137,TMP (UK) LTD,728.00,16/10/2019,,
Commercial,HRA,Consultants Fees,0060142207,MICROFISH COMMUNICATIONS LTD,906.61,31/10/2019,,
Commercial,HRA,Private Contractors - Third Pa,0080029811,REDACTED - PERSONAL DATA,"3,500.00",11/10/2019,,
Commercial,Regional Enterprise,Legal and Court Fees,0080030025,HENRY PLANNING LIMITED,"4,166.67",16/10/2019,,
Commercial,Regional Enterprise,Other Services,0060123889,KENT COUNTY COUNCIL (KCS),30.57,29/10/2019,,
Commercial,Regional Enterprise,Other Services,0060140649,KENT COUNTY COUNCIL (KCS),51.69,14/10/2019,,
Commercial,Regional Enterprise,Other Services,0060140287,CASTLE WATER LTD,38.51,04/10/2019,,
Commercial,Regional Enterprise,Other Services,0060140348,CASTLE WATER LTD,24.71,04/10/2019,,
Commercial,Regional Enterprise,Other Services,0060140352,CASTLE WATER LTD,27.15,04/10/2019,,
Commercial,Regional Enterprise,Other Services,0060140370,CASTLE WATER LTD,9.52,04/10/2019,,
Commercial,Regional Enterprise,Advertising,0060140086,TMP (UK) LTD,90.00,01/10/2019,,
Commercial,Regional Enterprise,Advertising,0060140239,TMP (UK) LTD,206.00,04/10/2019,,
Commercial,Regional Enterprise,Advertising,0060140296,TMP (UK) LTD,206.00,07/10/2019,,
Commercial,Regional Enterprise,Advertising,0060141012,TMP (UK) LTD,90.00,15/10/2019,,
Commercial,Regional Enterprise,Advertising,0060141019,TMP (UK) LTD,170.00,15/10/2019,,
Commercial,Regional Enterprise,Advertising,0060141056,TMP (UK) LTD,314.00,15/10/2019,,
Commercial,Regional Enterprise,Advertising,0060141061,TMP (UK) LTD,170.00,15/10/2019,,
Commercial,Regional Enterprise,Advertising,0060141074,TMP (UK) LTD,90.00,15/10/2019,,
Commercial,Regional Enterprise,Advertising,0060141097,TMP (UK) LTD,188.00,15/10/2019,,
Commercial,Regional Enterprise,Advertising,0060141103,TMP (UK) LTD,90.00,15/10/2019,,
Commercial,Regional Enterprise,Advertising,0060141112,TMP (UK) LTD,188.00,15/10/2019,,
Commercial,Regional Enterprise,Advertising,0060141152,TMP (UK) LTD,179.00,16/10/2019,,
Commercial,Regional Enterprise,Advertising,0060141158,TMP (UK) LTD,99.00,16/10/2019,,
Commercial,Regional Enterprise,Advertising,0060141207,TMP (UK) LTD,99.00,16/10/2019,,
Commercial,Regional Enterprise,Advertising,0060141248,TMP (UK) LTD,99.00,16/10/2019,,
Commercial,Regional Enterprise,Advertising,0060141272,TMP (UK) LTD,90.00,17/10/2019,,
Commercial,Regional Enterprise,Advertising,0060141340,TMP (UK) LTD,170.00,17/10/2019,,
Commercial,Regional Enterprise,Advertising,0060140362,TMP (UK) LTD,305.00,04/10/2019,,
Commercial,Regional Enterprise,Professional Services,0060142260,LONDON BOROUGH OF ENFIELD,100.00,31/10/2019,,
Commercial,Regional Enterprise,Professional Services,0060141782,A.J. OAKES AND PARTNERS,250.00,25/10/2019,,
Commercial,Regional Enterprise,Professional Services,0060141698,WATES PROPERTY SERVICES LTD,96.11,24/10/2019,,
Commercial,Regional Enterprise,Professional Services,0060141707,WATES PROPERTY SERVICES LTD,58.70,24/10/2019,,
Commercial,Regional Enterprise,Professional Services,0060141738,WATES PROPERTY SERVICES LTD,296.14,24/10/2019,,
Commercial,Regional Enterprise,Professional Services,0060141745,WATES PROPERTY SERVICES LTD,141.02,24/10/2019,,
Commercial,Regional Enterprise,Professional Services,0060141755,WATES PROPERTY SERVICES LTD,28.20,24/10/2019,,
Commercial,Regional Enterprise,Professional Services,0060141775,WATES PROPERTY SERVICES LTD,46.50,25/10/2019,,
Commercial,Regional Enterprise,Professional Services,0060141845,WATES PROPERTY SERVICES LTD,150.12,25/10/2019,,
Commercial,Regional Enterprise,Advertising,0060141000,TMP (UK) LTD,489.00,15/10/2019,,
Commercial,Regional Enterprise,Advertising,0060141034,TMP (UK) LTD,368.00,15/10/2019,,
Commercial,Regional Enterprise,Advertising,0060141113,TMP (UK) LTD,489.00,15/10/2019,,
Commercial,Regional Enterprise,Other Services,0080029305,REDACTED - PERSONAL DATA,100.00,25/10/2019,,
Commercial,Regional Enterprise,Other Services,0060141588,RM COUNTRYSIDE SERVICES LTD,200.00,22/10/2019,,
Commercial,Regional Enterprise,Fees and Charges,0080027996,REDACTED - PERSONAL DATA,315.00,18/10/2019,,
Commercial,Regional Enterprise,Professional Services,0060136815,PUBLIC ANALYST SCIENTIFIC SERVS. LT,240.00,04/10/2019,,
Commercial,Regional Enterprise,Professional Services,0060141694,PUBLIC ANALYST SCIENTIFIC SERVS. LT,990.00,24/10/2019,,
Commercial,Regional Enterprise,Other Services,0060130041,CONWAY AECOM LTD,32.36,24/10/2019,,
Commercial,Regional Enterprise,Other Services,0060133091,CONWAY AECOM LTD,124.26,24/10/2019,,
Commercial,Regional Enterprise,Other Services,0060133820,CONWAY AECOM LTD,82.07,24/10/2019,,
Commercial,Regional Enterprise,Other Services,0060141045,CONWAY AECOM LTD,447.92,15/10/2019,,
Commercial,Regional Enterprise,Other Services,0060141122,CONWAY AECOM LTD,127.97,16/10/2019,,
Commercial,Regional Enterprise,Other Services,0060141162,CONWAY AECOM LTD,249.52,16/10/2019,,
Commercial,Regional Enterprise,Other Services,0060141169,CONWAY AECOM LTD,399.28,16/10/2019,,
Commercial,Regional Enterprise,Other Services,0060141179,CONWAY AECOM LTD,75.94,22/10/2019,,
Commercial,Regional Enterprise,Other Services,0060141222,CONWAY AECOM LTD,136.82,16/10/2019,,
Commercial,Regional Enterprise,Other Services,0060141265,CONWAY AECOM LTD,77.00,24/10/2019,,
Commercial,Regional Enterprise,Other Services,0060141276,CONWAY AECOM LTD,93.18,17/10/2019,,
Commercial,Regional Enterprise,Other Services,0060141304,CONWAY AECOM LTD,55.14,22/10/2019,,
Commercial,Regional Enterprise,Other Services,0060141309,CONWAY AECOM LTD,109.02,22/10/2019,,
Commercial,Regional Enterprise,Other Services,0060141311,CONWAY AECOM LTD,58.41,22/10/2019,,
Commercial,Regional Enterprise,Other Services,0060141313,CONWAY AECOM LTD,78.48,22/10/2019,,
Commercial,Regional Enterprise,Other Services,0060141333,CONWAY AECOM LTD,55.14,22/10/2019,,
Commercial,Regional Enterprise,Other Services,0060141334,CONWAY AECOM LTD,54.17,22/10/2019,,
Commercial,Regional Enterprise,Other Services,0060141342,CONWAY AECOM LTD,106.34,17/10/2019,,
Commercial,Regional Enterprise,Other Services,0060141431,CONWAY AECOM LTD,35.33,22/10/2019,,
Commercial,Regional Enterprise,Refunds,0080028976,REDACTED - PERSONAL DATA,638.00,04/10/2019,,
Commercial,Regional Enterprise,Other Services,0060141006,CONWAY AECOM LTD,705.60,15/10/2019,,
Commercial,Regional Enterprise,Other Services,0060141008,CONWAY AECOM LTD,718.20,15/10/2019,,
Commercial,Regional Enterprise,Other Services,0060141030,CONWAY AECOM LTD,472.50,15/10/2019,,
Commercial,Regional Enterprise,Other Services,0060141033,CONWAY AECOM LTD,525.00,15/10/2019,,
Commercial,Regional Enterprise,Other Services,0060141037,CONWAY AECOM LTD,"2,598.75",15/10/2019,,
Commercial,Regional Enterprise,Other Services,0060141041,CONWAY AECOM LTD,966.00,15/10/2019,,
Commercial,Regional Enterprise,Other Services,0060141058,CONWAY AECOM LTD,831.60,15/10/2019,,
Commercial,Regional Enterprise,Other Services,0060141086,CONWAY AECOM LTD,525.00,15/10/2019,,
Commercial,Regional Enterprise,Other Services,0060141100,CONWAY AECOM LTD,378.00,15/10/2019,,
Commercial,Regional Enterprise,Other Services,0060141107,CONWAY AECOM LTD,756.00,15/10/2019,,
Commercial,Regional Enterprise,Other Services,0060141114,CONWAY AECOM LTD,"2,058.00",15/10/2019,,
Commercial,Regional Enterprise,Other Services,0060141118,CONWAY AECOM LTD,787.50,16/10/2019,,
Commercial,Regional Enterprise,Other Services,0060141120,CONWAY AECOM LTD,"1,407.00",16/10/2019,,
Commercial,Regional Enterprise,Other Services,0060141146,CONWAY AECOM LTD,"1,209.60",16/10/2019,,
Commercial,Regional Enterprise,Other Services,0060141149,CONWAY AECOM LTD,756.00,16/10/2019,,
Commercial,Regional Enterprise,Other Services,0060141181,CONWAY AECOM LTD,724.50,16/10/2019,,
Commercial,Regional Enterprise,Other Services,0060141189,CONWAY AECOM LTD,554.40,16/10/2019,,
Commercial,Regional Enterprise,Other Services,0060141198,CONWAY AECOM LTD,831.60,16/10/2019,,
Commercial,Regional Enterprise,Other Services,0060141200,CONWAY AECOM LTD,945.00,16/10/2019,,
Commercial,Regional Enterprise,Other Services,0060141218,CONWAY AECOM LTD,756.00,16/10/2019,,
Commercial,Regional Enterprise,Other Services,0060141224,CONWAY AECOM LTD,"1,008.00",16/10/2019,,
Commercial,Regional Enterprise,Other Services,0060141229,CONWAY AECOM LTD,866.25,16/10/2019,,
Commercial,Regional Enterprise,Other Services,0060141231,CONWAY AECOM LTD,554.40,16/10/2019,,
Commercial,Regional Enterprise,Other Services,0060141234,CONWAY AECOM LTD,"1,474.20",16/10/2019,,
Commercial,Regional Enterprise,Other Services,0060141241,CONWAY AECOM LTD,680.40,16/10/2019,,
Commercial,Regional Enterprise,Other Services,0060141244,CONWAY AECOM LTD,609.00,16/10/2019,,
Commercial,Regional Enterprise,Grant Payments,0080025996,AMWELL CONSTRUCTION LTD,114.00,02/10/2019,,
Commercial,Regional Enterprise,Grant Payments,0080029881,CLOUDS END SERVICES,"3,600.00",14/10/2019,,
Commercial,Regional Enterprise,Advertising,0060140827,TMP (UK) LTD,287.00,11/10/2019,,
Commercial,Regional Enterprise,RE Services Contract Payment,0060139429,RE (REGIONAL ENTERPRISE) LIMITED,"275,602.05",11/10/2019,,
Commercial,Regional Enterprise,Professional Services,0060139434,BARNET HOMES LIMITED,"50,000.00",15/10/2019,,
Commercial,Regional Enterprise,Capital Construction and Works,0060141067,CONWAY AECOM LTD,"5,347.42",15/10/2019,,
Commercial,Regional Enterprise,Building Repairs & Maintenance,0060141379,GUILD ARCHITECTURAL RESTORATION LTD,"3,097.69",23/10/2019,,
Commercial,Regional Enterprise,RE Services Contract Payment,0060139273,RE (REGIONAL ENTERPRISE) LIMITED,"4,183,408.00",22/10/2019,,
Commercial,Regional Enterprise,RE Services Contract Payment,0060140216,RE (REGIONAL ENTERPRISE) LIMITED,"168,000.00",07/10/2019,,
COMMERCIAL,REGIONAL ENTERPRISE,Grant Payments,0080029251,STANNAH LIFT SERVICES LTD,"13,987.00",07/10/2019,,
COMMERCIAL,REGIONAL ENTERPRISE,Grant Payments,0080029253,STANNAH LIFT SERVICES LTD,"6,284.00",07/10/2019,,
COMMERCIAL,REGIONAL ENTERPRISE,Grant Payments,0080029283,STANNAH LIFT SERVICES LTD,"6,247.00",07/10/2019,,
COMMERCIAL,REGIONAL ENTERPRISE,Grant Payments,0080029868,STANNAH LIFT SERVICES LTD,"5,696.00",14/10/2019,,
COMMERCIAL,REGIONAL ENTERPRISE,Grant Payments,0080029954,STANNAH LIFT SERVICES LTD,"5,527.00",16/10/2019,,
COMMERCIAL,REGIONAL ENTERPRISE,Grant Payments,0080029970,STANNAH LIFT SERVICES LTD,"5,695.00",16/10/2019,,
COMMERCIAL,REGIONAL ENTERPRISE,Grant Payments,0080030392,STANNAH LIFT SERVICES LTD,"6,402.00",31/10/2019,,
COMMERCIAL,REGIONAL ENTERPRISE,Grant Payments,0080028455,DOLPHIN MOBILITY LTD.,"4,035.00",08/10/2019,,
COMMERCIAL,REGIONAL ENTERPRISE,Grant Payments,0080029861,SOUTH HERTFORDSHIRE,"8,265.00",14/10/2019,,
COMMERCIAL,REGIONAL ENTERPRISE,Grant Payments,0080029876,SOUTH HERTFORDSHIRE,"6,834.00",14/10/2019,,
COMMERCIAL,REGIONAL ENTERPRISE,Grant Payments,0080029626,DPBUILDERS DISABLEDADAPTATIONS,"7,262.00",04/10/2019,,
COMMERCIAL,REGIONAL ENTERPRISE,Grant Payments,0080029628,DPBUILDERS DISABLEDADAPTATIONS,"6,001.00",03/10/2019,,
COMMERCIAL,REGIONAL ENTERPRISE,Grant Payments,0080029649,DPBUILDERS DISABLEDADAPTATIONS,"6,393.00",07/10/2019,,
COMMERCIAL,REGIONAL ENTERPRISE,Grant Payments,0080030032,DPBUILDERS DISABLEDADAPTATIONS,"2,595.55",18/10/2019,,
COMMERCIAL,REGIONAL ENTERPRISE,Grant Payments,0080030169,DPBUILDERS DISABLEDADAPTATIONS,"1,280.00",23/10/2019,,
COMMERCIAL,REGIONAL ENTERPRISE,Grant Payments,0080030393,DPBUILDERS DISABLEDADAPTATIONS,"5,995.00",31/10/2019,,
COMMERCIAL,REGIONAL ENTERPRISE,Grant Payments,0080028502,H D PROPERTY SERVICES LTD,"5,176.00",02/10/2019,,
COMMERCIAL,REGIONAL ENTERPRISE,Grant Payments,0080029687,H D PROPERTY SERVICES LTD,"6,024.00",07/10/2019,,
COMMERCIAL,REGIONAL ENTERPRISE,Grant Payments,0080030143,H D PROPERTY SERVICES LTD,"6,009.00",25/10/2019,,
COMMERCIAL,REGIONAL ENTERPRISE,Grant Payments,0080030155,H D PROPERTY SERVICES LTD,"9,998.00",24/10/2019,,
COMMERCIAL,REGIONAL ENTERPRISE,Grant Payments,0080025111,TAYLOR DOLMAN LIMITED,"7,728.00",02/10/2019,,
COMMERCIAL,REGIONAL ENTERPRISE,Grant Payments,0080030016,AMWELL CONSTRUCTION LTD,209.00,21/10/2019,,
COMMERCIAL,REGIONAL ENTERPRISE,Grant Payments,0080030201,RO&CO GENERAL BUILDERS LTD,"6,338.56",23/10/2019,,
COMMERCIAL,REGIONAL ENTERPRISE,Grant Payments,0080029632,REDACTED - PERSONAL DATA,"11,563.00",04/10/2019,,
COMMERCIAL,REGIONAL ENTERPRISE,Grant Payments,0080029873,REDACTED - PERSONAL DATA,"24,842.00",14/10/2019,,
COMMERCIAL,REGIONAL ENTERPRISE,Grant Payments,0080029975,REDACTED - PERSONAL DATA,"1,975.83",18/10/2019,,
COMMERCIAL,REGIONAL ENTERPRISE,Grant Payments,0080029871,REDACTED - PERSONAL DATA,"1,000.00",17/10/2019,,
COMMERCIAL,REGIONAL ENTERPRISE,Grant Payments,0080029864,REDACTED - PERSONAL DATA,"17,268.00",11/10/2019,,
COMMERCIAL,REGIONAL ENTERPRISE,Other Services,0060141808,CONWAY AECOM LTD,"22,068.75",25/10/2019,,
COMMERCIAL,REGIONAL ENTERPRISE,Other Services,0060141881,CONWAY AECOM LTD,"54,173.90",25/10/2019,,
COMMERCIAL,REGIONAL ENTERPRISE,Other Services,0060140463,TRANSPORT FOR LONDON,"18,645.30",24/10/2019,,
COMMERCIAL,REGIONAL ENTERPRISE,Other Services,0060140511,TRANSPORT FOR LONDON,"13,570.13",24/10/2019,,
COMMERCIAL,REGIONAL ENTERPRISE,Other Services,0060137917,TRANSPORT FOR LONDON,"-5,000.00",11/10/2019,,
COMMERCIAL,REGIONAL ENTERPRISE,Other Services,0060140441,TRANSPORT FOR LONDON,"2,340.00",24/10/2019,,
COMMERCIAL,REGIONAL ENTERPRISE,Other Services,0060134602,CONWAY AECOM LTD,"1,274.70",10/10/2019,,
COMMERCIAL,REGIONAL ENTERPRISE,Other Services,0060141237,CONWAY AECOM LTD,604.80,16/10/2019,,
COMMERCIAL,REGIONAL ENTERPRISE,Other Services,0060141835,CONWAY AECOM LTD,"1,993.21",25/10/2019,,
COMMERCIAL,REGIONAL ENTERPRISE,Other Services,0060140367,WRITTLE FOREST LTD,"1,995.00",04/10/2019,,
COMMERCIAL,REGIONAL ENTERPRISE,Other Services,0060141106,WRITTLE FOREST LTD,"1,930.00",22/10/2019,,
COMMERCIAL,REGIONAL ENTERPRISE,Other Services,0060141159,CONWAY AECOM LTD,810.66,16/10/2019,,
COMMERCIAL,REGIONAL ENTERPRISE,Other Services,0060140868,CONWAY AECOM LTD,"4,354.67",11/10/2019,,
COMMERCIAL,REGIONAL ENTERPRISE,Other Services,0060134502,TRUEFORM,"5,720.09",01/10/2019,,
COMMERCIAL,REGIONAL ENTERPRISE,Other Services,0060139045,TRUEFORM,"3,186.78",01/10/2019,,
COMMERCIAL,REGIONAL ENTERPRISE,Other Services,0060141199,CYCLE CONFIDENT LTD,"29,147.10",16/10/2019,,
COMMERCIAL,REGIONAL ENTERPRISE,Other Services,0060141541,CYCLEHOOP LTD,90.00,21/10/2019,,
COMMERCIAL,REGIONAL ENTERPRISE,Other Services,0060141548,CYCLEHOOP LTD,"1,800.00",21/10/2019,,
COMMERCIAL,REGIONAL ENTERPRISE,Other Services,0060141208,SUSTRANS LTD,"33,799.62",16/10/2019,,
COMMERCIAL,REGIONAL ENTERPRISE,Professional Services,0060140812,GREENWICH LEISURE LTD,"100,000.00",11/10/2019,,
COMMERCIAL,REGIONAL ENTERPRISE,Other Services,0060133003,GRISTWOOD & TOM LTD,"16,550.00",02/10/2019,,
COMMERCIAL,REGIONAL ENTERPRISE,Other Services,0010015462,CONWAY AECOM LTD,40.82,16/10/2019,,
COMMERCIAL,REGIONAL ENTERPRISE,Other Services,0060137296,BOUYGUES E&S INFRASTRUCTURE UK LTD,"3,028.22",02/10/2019,,
COMMERCIAL,REGIONAL ENTERPRISE,Other Services,0060136473,CONWAY AECOM LTD,"9,126.06",02/10/2019,,
COMMERCIAL,REGIONAL ENTERPRISE,Other Services,0060140088,CONWAY AECOM LTD,"-1,000.00",04/10/2019,,
COMMERCIAL,REGIONAL ENTERPRISE,Other Services,0060141889,CONWAY AECOM LTD,"38,641.90",25/10/2019,,
COMMERCIAL,REGIONAL ENTERPRISE,Other Services,0060140293,CONWAY AECOM LTD,"27,144.00",04/10/2019,,
COMMERCIAL,REGIONAL ENTERPRISE,Other Services,0060141815,CONWAY AECOM LTD,"17,940.73",25/10/2019,,
COMMERCIAL,REGIONAL ENTERPRISE,Other Services,0060141279,CONWAY AECOM LTD,"1,138.00",17/10/2019,,
COMMERCIAL,REGIONAL ENTERPRISE,Other Services,0060141305,CONWAY AECOM LTD,"1,115.34",17/10/2019,,
COMMERCIAL,REGIONAL ENTERPRISE,Professional Services,0060141132,CONWAY AECOM LTD,"8,591.97",16/10/2019,,
COMMERCIAL,REGIONAL ENTERPRISE,Professional Services,0060141370,CONWAY AECOM LTD,"21,761.93",23/10/2019,,
COMMERCIAL,REGIONAL ENTERPRISE,Professional Services,0060139332,BLAKEDOWN LANDSCAPE (SE) LTD,"128,215.01",07/10/2019,,
COMMERCIAL,REGIONAL ENTERPRISE,Professional Services,0060140813,BLAKEDOWN LANDSCAPE (SE) LTD,"170,917.17",11/10/2019,,
COMMERCIAL,REGIONAL ENTERPRISE,Equipment and Materials Purcha,0060140759,TAYLORMADE CASTINGS LTD,650.00,11/10/2019,,
COMMERCIAL,REGIONAL ENTERPRISE,Equipment and Materials Purcha,0060140762,TAYLORMADE CASTINGS LTD,"5,100.00",11/10/2019,,
COMMERCIAL,REGIONAL ENTERPRISE,Professional Services,0060140803,APPLEYARD & TREW LLP,"4,292.06",11/10/2019,,
COMMERCIAL,REGIONAL ENTERPRISE,Consultants Fees,0010015243,PFB CONSTRUCTION MANAGEMENT SERVICE LTD,975.00,21/10/2019,,
COMMERCIAL,REGIONAL ENTERPRISE,Consultants Fees,0060135369,PFB CONSTRUCTION MANAGEMENT SERVICE LTD,975.00,21/10/2019,,
COMMERCIAL,REGIONAL ENTERPRISE,Consultants Fees,0060140571,FLUID DESIGN LTD,"5,614.32",09/10/2019,,
COMMERCIAL,REGIONAL ENTERPRISE,RE Services Contract Payment,0060136481,RE (REGIONAL ENTERPRISE) LIMITED,"14,564.07",08/10/2019,,
COMMERCIAL,REGIONAL ENTERPRISE,RE Services Contract Payment,0060136637,RE (REGIONAL ENTERPRISE) LIMITED,"100,354.83",08/10/2019,,
COMMERCIAL,REGIONAL ENTERPRISE,RE Services Contract Payment,0060142133,RE (REGIONAL ENTERPRISE) LIMITED,"21,648.59",31/10/2019,,
COMMERCIAL,REGIONAL ENTERPRISE,RE Services Contract Payment,0060142143,RE (REGIONAL ENTERPRISE) LIMITED,"28,139.58",31/10/2019,,
COMMERCIAL,REGIONAL ENTERPRISE,RE Services Contract Payment,0060142226,RE (REGIONAL ENTERPRISE) LIMITED,"25,740.20",31/10/2019,,
COMMERCIAL,REGIONAL ENTERPRISE,Equipment and Materials Purcha,0060136007,TRANSPORT FOR LONDON,"9,435.00",11/10/2019,,
COMMERCIAL,REGIONAL ENTERPRISE,Equipment and Materials Purcha,0060138103,TRANSPORT FOR LONDON,"-2,679.76",11/10/2019,,
COMMERCIAL,REGIONAL ENTERPRISE,Professional Services,0060142097,BOUYGUES E&S INFRASTRUCTURE UK LTD,678.50,31/10/2019,,
COMMERCIAL,REGIONAL ENTERPRISE,Professional Services,0060140515,EMERGENT VERNACULAR ARCHITECTURE LTD,"15,434.72",09/10/2019,,
COMMERCIAL,REGIONAL ENTERPRISE,Other Services,0060127287,GOOD IMPRESSIONS (LONDON) LIMITED,420.00,03/10/2019,,
Corporate Accounting,Corporate Accounting,Other Local Authorities - Thir,0080029990,GLA LEVIES,"1,519,940.00",17/10/2019,,
Corporate Accounting,Corporate Accounting,Other Local Authorities - Thir,0080029991,GLA LEVIES,"4,665,343.56",17/10/2019,,
Corporate Accounting,Corporate Accounting,Other Local Authorities - Thir,0080030186,GLA LEVIES,"227,824.00",23/10/2019,,
Corporate Accounting,Corporate Accounting,Other Local Authorities - Thir,0080030189,GLA LEVIES,"227,824.00",19/10/2019,,
Corporate Accounting,Corporate Accounting,Other Establishments - Third P,0050004418,MENORAH HIGH SCHOOL FOR GIRLS,"10,497.76",17/10/2019,,
Corporate Accounting,Corporate Accounting,Grant Payments,0080029450,COMMUNITY FOCUS,"1,625.00",03/10/2019,,
Corporate Accounting,Corporate Accounting,Grant Payments,0080029829,SARACENS SPORTS FOUNDATION,"2,500.00",16/10/2019,,
Corporate Accounting,Corporate Accounting,Grant Payments,0080029441,INCLUSION BARNET,"2,312.50",03/10/2019,,
Corporate Accounting,Corporate Accounting,Grant Payments,0080029714,YOUNG BARNET FOUNDATION,"2,436.50",16/10/2019,,
Corporate Accounting,Corporate Accounting,Grant Payments,0080030285,BARNET MULTI-FAITH FORUM,"1,500.00",31/10/2019,,
Corporate Accounting,Corporate Accounting,Other Agencies - Third Party P,0060140994,THE BARNETGROUP LIMITED,"91,666.67",15/10/2019,,
Corporate Accounting,Corporate Accounting,Other Contributions,0070099984,REDACTED - PERSONAL DATA,140.00,24/10/2019,,
Corporate Accounting,Corporate Accounting,Other Transfer Payments to Soc,0080029744,WIRECARD (FS INSTANT 2040880892973),"29,052.82",07/10/2019,,
Corporate Accounting,Corporate Accounting,Other Transfer Payments to Soc,0080029747,WIRECARD (FS ONGOING 2040881670310,"10,148.93",07/10/2019,,
Corporate Accounting,Corporate Accounting,Private Contractors - Third Pa,0080029613,REDACTED - PERSONAL DATA,"6,585.00",21/10/2019,,
DELIVERY UNITS,ADULTS AND COMMUNITIES,Ttl IT & Comms,0060137227,SERVELEC SYNERGY LTD,"27,500.00",04/10/2019,,
DELIVERY UNITS,ADULTS AND COMMUNITIES,Consultants Fees,0010015443,BETTER GROUP LIMITED,"88,996.00",11/10/2019,,
DELIVERY UNITS,ADULTS AND COMMUNITIES,Consultants Fees,0060140420,BETTER GROUP LIMITED,"111,245.00",11/10/2019,,
DELIVERY UNITS,ADULTS AND COMMUNITIES,Consultants Fees,0060140427,BETTER GROUP LIMITED,"88,996.00",11/10/2019,,
DELIVERY UNITS,ADULTS AND COMMUNITIES,Consultants Fees,0060140434,BETTER GROUP LIMITED,"133,494.00",11/10/2019,,
DELIVERY UNITS,ADULTS AND COMMUNITIES,Other Services,0010015408,SERVELEC SOCIAL CARE LTD,"1,000.00",04/10/2019,,
Delivery Units,Adults and Health,Voluntary Associations - Third,0050004361,SANCTUARY HOUSING ASSOCIATION,"5,783.32",17/10/2019,,
Delivery Units,Adults and Health,Voluntary Associations - Third,0050004353,ELEANOR PALMER TRUST NO 2 A/C.,486.50,17/10/2019,,
Delivery Units,Adults and Health,Voluntary Associations - Third,0050004350,BARNET MENCAP,"11,142.65",17/10/2019,,
Delivery Units,Adults and Health,Voluntary Associations - Third,0050004352,CHRISTIAN ACTION (ENFIELD),365.80,17/10/2019,,
Delivery Units,Adults and Health,Voluntary Associations - Third,0050004360,LINEN & WOOLLEN DRAPERS COTTAGE,730.11,17/10/2019,,
Delivery Units,Adults and Health,Voluntary Associations - Third,0050004354,HABINTEG HOUSING ASSOCIATION,446.37,17/10/2019,,
Delivery Units,Adults and Health,Voluntary Associations - Third,0050004358,ORCHARD HOUSING ASSOCIATION,196.62,18/10/2019,,
Delivery Units,Adults and Health,Voluntary Associations - Third,0050004359,ST PANCRAS & HUMANIST H.A.,661.55,17/10/2019,,
Delivery Units,Adults and Health,Other Services,0050004363,WILLOW HOUSING & CARE LTD.,711.38,17/10/2019,,
Delivery Units,Adults and Health,Voluntary Associations - Third,0050004355,JEWISH COMMUNITY HOUSING ASSOCIATIO,568.17,17/10/2019,,
Delivery Units,Adults and Health,Voluntary Associations - Third,0050004357,METROPOLITAN SUPPORT TRUST,"6,745.40",17/10/2019,,
Delivery Units,Adults and Health,Voluntary Associations - Third,0050004362,SCOTSCARE,361.52,17/10/2019,,
Delivery Units,Adults and Health,Voluntary Associations - Third,0050004356,MIDDLESEX ASSOCIATION  FOR THE BLIN,"2,394.00",17/10/2019,,
Delivery Units,Adults and Health,Voluntary Associations - Third,0050004351,BARNET MENCAP,"28,583.00",17/10/2019,,
Delivery Units,Adults and Health,Other Transfer Payments to Soc,0060141409,BARNET CITIZENS ADVICE BUREAU,"61,075.25",21/10/2019,,
Delivery Units,Adults and Health,Voluntary Associations - Third,0050004349,AGE CONCERN,"58,333.00",17/10/2019,,
Delivery Units,Adults and Health,Health authorities - Third Par,0060140888,THE BARNETGROUP LIMITED,"51,337.59",11/10/2019,,
Delivery Units,Adults and Health,Other Services,0060137770,POHWER,"5,460.00",02/10/2019,,
Delivery Units,Adults and Health,Other Services,0060140604,POHWER,"5,212.87",09/10/2019,,
Delivery Units,Adults and Health,Other Services,0060141538,POHWER,"3,030.00",21/10/2019,,
Delivery Units,Adults and Health,Training,0060142010,OXFORD BROOKES UNIVERSITY,790.00,29/10/2019,,
Delivery Units,Adults and Health,Translation Exp / Interpret,0060140771,D.A. LANGUAGES LTD,22.00,11/10/2019,,
Delivery Units,Adults and Health,Translation Exp / Interpret,0060140895,D.A. LANGUAGES LTD,40.50,11/10/2019,,
Delivery Units,Adults and Health,Stationery,0060138478,STAPLES UK LTD,35.22,10/10/2019,,
Delivery Units,Adults and Health,Stationery,0060138799,STAPLES UK LTD,14.98,10/10/2019,,
Delivery Units,Adults and Health,Stationery,0060141133,STAPLES UK LTD,63.22,18/10/2019,,
Delivery Units,Adults and Health,Travelling Expenses,0060141016,M1 EXPRESS CAR SERVICES,92.00,15/10/2019,,
Delivery Units,Adults and Health,Travelling Expenses,0060141050,M1 EXPRESS CAR SERVICES,342.30,15/10/2019,,
Delivery Units,Adults and Health,Other Services,0060140536,D.A. LANGUAGES LTD,22.00,08/10/2019,,
Delivery Units,Adults and Health,Other Services,0060140875,D.A. LANGUAGES LTD,98.00,11/10/2019,,
Delivery Units,Adults and Health,Other Services,0060140911,D.A. LANGUAGES LTD,47.07,11/10/2019,,
Delivery Units,Adults and Health,Transport Hire Charges,0060141599,BRENT COURIERS LIMITED,200.00,22/10/2019,,
Delivery Units,Adults and Health,Conference Expenses,0060140836,SHAREDLIVESPLUS,300.00,11/10/2019,,
Delivery Units,Adults and Health,Other Services,0080030051,RIGHT ANGLE CORPORATE LTD,"2,782.00",17/10/2019,,
Delivery Units,Adults and Health,Stationery,0060141605,HERTFORDSHIRE SUPPLIES   COUNTY CO,111.38,22/10/2019,,
Delivery Units,Adults and Health,Stationery,0060140258,XEROX FINANCE LTD,0.03,04/10/2019,,
Delivery Units,Adults and Health,Stationery,0060141584,XEROX FINANCE LTD,0.42,22/10/2019,,
Delivery Units,Adults and Health,Stationery,0060141606,XEROX FINANCE LTD,20.19,22/10/2019,,
Delivery Units,Adults and Health,Stationery,0060129801,THE ART OF DESIGN,250.00,29/10/2019,,
Delivery Units,Adults and Health,Food Costs,0060139508,MULLER MILK & INGREDIENTS,0.88,01/10/2019,,
Delivery Units,Adults and Health,Food Costs,0060139547,MULLER MILK & INGREDIENTS,0.88,01/10/2019,,
Delivery Units,Adults and Health,Food Costs,0060140248,MULLER MILK & INGREDIENTS,0.88,04/10/2019,,
Delivery Units,Adults and Health,Food Costs,0060141582,MULLER MILK & INGREDIENTS,0.88,22/10/2019,,
Delivery Units,Adults and Health,Food Costs,0060141600,MULLER MILK & INGREDIENTS,0.88,22/10/2019,,
Delivery Units,Adults and Health,Water Services,0060140303,CASTLE WATER LTD,14.68,04/10/2019,,
Delivery Units,Adults and Health,Translation Exp / Interpret,0060127904,D.A. LANGUAGES LTD,226.00,04/10/2019,,
Delivery Units,Adults and Health,Translation Exp / Interpret,0060136651,D.A. LANGUAGES LTD,27.00,08/10/2019,,
Delivery Units,Adults and Health,Translation Exp / Interpret,0060138620,D.A. LANGUAGES LTD,13.52,08/10/2019,,
Delivery Units,Adults and Health,Translation Exp / Interpret,0060140816,D.A. LANGUAGES LTD,38.50,11/10/2019,,
Delivery Units,Adults and Health,Translation Exp / Interpret,0060140906,D.A. LANGUAGES LTD,27.00,11/10/2019,,
Delivery Units,Adults and Health,Translation Exp / Interpret,0060140908,D.A. LANGUAGES LTD,27.00,11/10/2019,,
Delivery Units,Adults and Health,Stationery,0060130398,STAPLES UK LTD,141.52,04/10/2019,,
Delivery Units,Adults and Health,Stationery,0060138080,STAPLES UK LTD,51.80,29/10/2019,,
Delivery Units,Adults and Health,Cleaning and domestic material,0060141604,NORSE COMMERCIAL SERVICES LTD,200.00,22/10/2019,,
Delivery Units,Adults and Health,Training,0060141801,HUNTERSJOY LTD,750.00,25/10/2019,,
Delivery Units,Adults and Health,Training,0060140711,LOUISE FOX CONSULTING LTD,90.00,10/10/2019,,
Delivery Units,Adults and Health,Training,0060141778,MEDUCATE TRAINING LTD,800.00,25/10/2019,,
Delivery Units,Adults and Health,Training,0060141763,CARING FOR CARE LTD,500.00,24/10/2019,,
Delivery Units,Adults and Health,Other Transfer Payments to Soc,0060140834,HAS TECHNOLOGY LTD,"5,278.58",11/10/2019,,
Delivery Units,Adults and Health,Training,0060140229,THE COMMSION FOR LOCAL ADMINISTRATION,"1,200.00",03/10/2019,,
Delivery Units,Adults and Health,Stationery,0060140984,STAPLES UK LTD,42.09,16/10/2019,,
Delivery Units,Adults and Health,Other Services,0080029620,REDACTED - PERSONAL DATA,500.00,04/10/2019,,
Delivery Units,Adults and Health,Postage,0060141093,ROYAL MAIL GROUP LIMITED,55.00,15/10/2019,,
Delivery Units,Adults and Health,Other Services,0060140778,D.A. LANGUAGES LTD,67.50,11/10/2019,,
Delivery Units,Adults and Health,Transport Hire Charges,0060140446,MOTT MACDONALD LTD/CAMBRIDGE EDUCATION,75.00,11/10/2019,,
Delivery Units,Adults and Health,Transport Hire Charges,0060140514,MOTT MACDONALD LTD/CAMBRIDGE EDUCATION,65.00,11/10/2019,,
Delivery Units,Adults and Health,Translation Exp / Interpret,0060140761,D.A. LANGUAGES LTD,98.00,11/10/2019,,
Delivery Units,Adults and Health,Translation Exp / Interpret,0060140780,D.A. LANGUAGES LTD,33.00,11/10/2019,,
Delivery Units,Adults and Health,Translation Exp / Interpret,0060140801,D.A. LANGUAGES LTD,87.75,11/10/2019,,
Delivery Units,Adults and Health,Translation Exp / Interpret,0060140831,D.A. LANGUAGES LTD,44.00,11/10/2019,,
Delivery Units,Adults and Health,Translation Exp / Interpret,0060140838,D.A. LANGUAGES LTD,33.00,11/10/2019,,
Delivery Units,Adults and Health,Translation Exp / Interpret,0060140861,D.A. LANGUAGES LTD,67.50,11/10/2019,,
Delivery Units,Adults and Health,Translation Exp / Interpret,0060140867,D.A. LANGUAGES LTD,27.00,11/10/2019,,
Delivery Units,Adults and Health,Translation Exp / Interpret,0060140869,D.A. LANGUAGES LTD,8.32,11/10/2019,,
Delivery Units,Adults and Health,Translation Exp / Interpret,0060140883,D.A. LANGUAGES LTD,40.50,11/10/2019,,
Delivery Units,Adults and Health,Translation Exp / Interpret,0060140919,D.A. LANGUAGES LTD,40.50,11/10/2019,,
Delivery Units,Adults and Health,Transport Hire Charges,0060140471,MOTT MACDONALD LTD/CAMBRIDGE EDUCATION,39.00,11/10/2019,,
Delivery Units,Adults and Health,Translation Exp / Interpret,0060138702,D.A. LANGUAGES LTD,27.00,14/10/2019,,
Delivery Units,Adults and Health,Translation Exp / Interpret,0060140795,D.A. LANGUAGES LTD,33.00,11/10/2019,,
Delivery Units,Adults and Health,Translation Exp / Interpret,0060140824,D.A. LANGUAGES LTD,47.25,11/10/2019,,
Delivery Units,Adults and Health,Translation Exp / Interpret,0060140830,D.A. LANGUAGES LTD,27.00,11/10/2019,,
Delivery Units,Adults and Health,Translation Exp / Interpret,0060140851,D.A. LANGUAGES LTD,27.00,11/10/2019,,
Delivery Units,Adults and Health,Translation Exp / Interpret,0060140865,D.A. LANGUAGES LTD,38.50,11/10/2019,,
Delivery Units,Adults and Health,Translation Exp / Interpret,0060140890,D.A. LANGUAGES LTD,18.00,11/10/2019,,
Delivery Units,Adults and Health,Translation Exp / Interpret,0060140902,D.A. LANGUAGES LTD,54.00,11/10/2019,,
Delivery Units,Adults and Health,Other Services,0080029690,CARPET MASTERS OF LONDON LTD,509.00,09/10/2019,,
Delivery Units,Adults and Health,Other Services,0060142265,VOICEABILITY,88.20,31/10/2019,,
Delivery Units,Adults and Health,Other Transfer Payments to Soc,0060139752,KORU MEDICAL LTD,206.25,11/10/2019,,
Delivery Units,Adults and Health,Other Transfer Payments to Soc,0060141004,AISA MEDICAL LTD,182.59,15/10/2019,,
Delivery Units,Adults and Health,Other Transfer Payments to Soc,0060141024,AISA MEDICAL LTD,173.37,15/10/2019,,
Delivery Units,Adults and Health,Other Transfer Payments to Soc,0060141025,AISA MEDICAL LTD,173.37,15/10/2019,,
Delivery Units,Adults and Health,Other Transfer Payments to Soc,0060141043,AISA MEDICAL LTD,173.37,15/10/2019,,
Delivery Units,Adults and Health,Other Transfer Payments to Soc,0060141054,AISA MEDICAL LTD,173.37,15/10/2019,,
Delivery Units,Adults and Health,Other Transfer Payments to Soc,0060141055,AISA MEDICAL LTD,173.37,15/10/2019,,
Delivery Units,Adults and Health,Other Transfer Payments to Soc,0060141064,AISA MEDICAL LTD,173.37,15/10/2019,,
Delivery Units,Adults and Health,Other Transfer Payments to Soc,0060141083,AISA MEDICAL LTD,173.37,15/10/2019,,
Delivery Units,Adults and Health,Other Transfer Payments to Soc,0060141624,AISA MEDICAL LTD,180.47,23/10/2019,,
Delivery Units,Adults and Health,Other Transfer Payments to Soc,0060141659,AISA MEDICAL LTD,177.66,23/10/2019,,
Delivery Units,Adults and Health,Other Transfer Payments to Soc,0060141663,AISA MEDICAL LTD,174.27,23/10/2019,,
Delivery Units,Adults and Health,Other Transfer Payments to Soc,0060140144,EMPOWERING SOCIAL WORK LTD,700.00,02/10/2019,,
Delivery Units,Adults and Health,Other Transfer Payments to Soc,0060140154,EMPOWERING SOCIAL WORK LTD,700.00,02/10/2019,,
Delivery Units,Adults and Health,Other Transfer Payments to Soc,0060104549,HCL SOCIAL CARE LTD,167.50,17/10/2019,,
Delivery Units,Adults and Health,Other Transfer Payments to Soc,0060106189,HCL SOCIAL CARE LTD,335.00,07/10/2019,,
Delivery Units,Adults and Health,Other Transfer Payments to Soc,0060135716,HCL SOCIAL CARE LTD,335.00,07/10/2019,,
Delivery Units,Adults and Health,Other Transfer Payments to Soc,0060137274,HCL SOCIAL CARE LTD,335.00,07/10/2019,,
Delivery Units,Adults and Health,Other Transfer Payments to Soc,0060137297,HCL SOCIAL CARE LTD,"1,005.00",07/10/2019,,
Delivery Units,Adults and Health,Other Transfer Payments to Soc,0060137331,HCL SOCIAL CARE LTD,335.00,17/10/2019,,
Delivery Units,Adults and Health,Other Transfer Payments to Soc,0010015447,PEACEABLE HABITATION LTD,300.00,11/10/2019,,
Delivery Units,Adults and Health,Translation Exp / Interpret,0060140738,D.A. LANGUAGES LTD,27.00,11/10/2019,,
Delivery Units,Adults and Health,Translation Exp / Interpret,0060140850,D.A. LANGUAGES LTD,33.75,11/10/2019,,
Delivery Units,Adults and Health,Professional Services,0060140464,HENDERSON AMANDA LIMITED,700.00,09/10/2019,,
Delivery Units,Adults and Health,Other Services,0060142083,IMC ASSESSORS LTD,261.92,29/10/2019,,
Delivery Units,Adults and Health,Consultants Fees,0010015475,LONDON BOROUGH OF HARINGEY,"70,000.00",28/10/2019,,
Delivery Units,Adults and Health,Consultants Fees,0060140943,REDACTED - PERSONAL DATA,"10,061.73",25/10/2019,,
Delivery Units,Adults and Health,Other Agencies - Third Party P,0090202031,NIGHTINGALE HOUSE,"2,857.11",16/10/2019,,
Delivery Units,Adults and Health,Other Agencies - Third Party P,0090202034,NIGHTINGALE HOUSE,"2,359.07",16/10/2019,,
Delivery Units,Adults and Health,Other Agencies - Third Party P,0090204319,JEWISH CARE,"2,380.92",22/10/2019,,
Delivery Units,Adults and Health,Other Agencies - Third Party P,0090204325,JEWISH CARE,"2,649.36",22/10/2019,,
Delivery Units,Adults and Health,Other Agencies - Third Party P,0090204344,JEWISH CARE,"2,410.28",22/10/2019,,
Delivery Units,Adults and Health,Other Agencies - Third Party P,0090204345,JEWISH CARE,"2,410.28",22/10/2019,,
Delivery Units,Adults and Health,Other Agencies - Third Party P,0090204366,JEWISH CARE,"2,649.36",22/10/2019,,
Delivery Units,Adults and Health,Other Agencies - Third Party P,0090204367,JEWISH CARE,"2,649.36",22/10/2019,,
Delivery Units,Adults and Health,Other Agencies - Third Party P,0090204370,JEWISH CARE,"2,410.28",22/10/2019,,
Delivery Units,Adults and Health,Other Agencies - Third Party P,0090204377,JEWISH CARE,"13,401.36",22/10/2019,,
Delivery Units,Adults and Health,Other Agencies - Third Party P,0090204393,JEWISH CARE,"2,649.36",22/10/2019,,
Delivery Units,Adults and Health,Other Agencies - Third Party P,0090204395,JEWISH CARE,"2,649.36",22/10/2019,,
Delivery Units,Adults and Health,Other Agencies - Third Party P,0090204396,JEWISH CARE,"2,410.28",22/10/2019,,
Delivery Units,Adults and Health,Other Agencies - Third Party P,0090204398,JEWISH CARE,"2,649.36",22/10/2019,,
Delivery Units,Adults and Health,Other Agencies - Third Party P,0090204406,JEWISH CARE,"2,410.28",22/10/2019,,
Delivery Units,Adults and Health,Other Agencies - Third Party P,0090204415,JEWISH CARE,"2,410.28",22/10/2019,,
Delivery Units,Adults and Health,Other Agencies - Third Party P,0090204423,JEWISH CARE,"2,410.28",22/10/2019,,
Delivery Units,Adults and Health,Other Agencies - Third Party P,0090204432,JEWISH CARE,"3,489.64",22/10/2019,,
Delivery Units,Adults and Health,Other Agencies - Third Party P,0090204435,JEWISH CARE,"2,410.28",22/10/2019,,
Delivery Units,Adults and Health,Other Agencies - Third Party P,0090204442,JEWISH CARE,"2,410.28",22/10/2019,,
Delivery Units,Adults and Health,Other Agencies - Third Party P,0090204443,JEWISH CARE,"2,649.36",22/10/2019,,
Delivery Units,Adults and Health,Other Agencies - Third Party P,0090204447,JEWISH CARE,"2,410.28",22/10/2019,,
Delivery Units,Adults and Health,Other Agencies - Third Party P,0090204449,JEWISH CARE,"2,410.28",22/10/2019,,
Delivery Units,Adults and Health,Other Agencies - Third Party P,0090204454,JEWISH CARE,"2,356.88",22/10/2019,,
Delivery Units,Adults and Health,Other Agencies - Third Party P,0090204459,JEWISH CARE,"1,332.48",22/10/2019,,
Delivery Units,Adults and Health,Other Agencies - Third Party P,0090204462,JEWISH CARE,"2,324.20",22/10/2019,,
Delivery Units,Adults and Health,Other Agencies - Third Party P,0090204178,BUPA NURSING HOMES LTD - ARKLEY,"2,828.57",17/10/2019,,
Delivery Units,Adults and Health,Other Agencies - Third Party P,0090204179,BUPA NURSING HOMES LTD - ARKLEY,"4,400.00",17/10/2019,,
Delivery Units,Adults and Health,Other Agencies - Third Party P,0090204180,BUPA NURSING HOMES LTD - ARKLEY,"4,400.00",17/10/2019,,
Delivery Units,Adults and Health,Other Agencies - Third Party P,0090204202,BUPA NURSING HOMES LTD - ARKLEY,"2,318.76",17/10/2019,,
Delivery Units,Adults and Health,Other Agencies - Third Party P,0090204203,BUPA NURSING HOMES LTD - ARKLEY,"2,318.76",17/10/2019,,
Delivery Units,Adults and Health,Other Agencies - Third Party P,0090204205,BUPA NURSING HOMES LTD - ARKLEY,"2,318.76",17/10/2019,,
Delivery Units,Adults and Health,Other Agencies - Third Party P,0090204206,BUPA NURSING HOMES LTD - ARKLEY,"4,400.00",17/10/2019,,
Delivery Units,Adults and Health,Other Agencies - Third Party P,0090204208,BUPA NURSING HOMES LTD - ARKLEY,"2,243.20",17/10/2019,,
Delivery Units,Adults and Health,Other Agencies - Third Party P,0090204209,BUPA NURSING HOMES LTD - ARKLEY,"2,318.76",17/10/2019,,
Delivery Units,Adults and Health,Other Agencies - Third Party P,0090201069,AGUDAS ISRAEL HOUSING ASSCTN LTD,"2,648.57",10/10/2019,,
Delivery Units,Adults and Health,Other Agencies - Third Party P,0090200431,WESTMINSTER HEALTH CARE LTD,"2,427.17",02/10/2019,,
Delivery Units,Adults and Health,Other Agencies - Third Party P,0090200433,WESTMINSTER HEALTH CARE LTD,"4,861.89",02/10/2019,,
Delivery Units,Adults and Health,Other Agencies - Third Party P,0090201249,WESTMINSTER HEALTH CARE LTD,"14,909.78",07/10/2019,,
Delivery Units,Adults and Health,Other Agencies - Third Party P,0090198498,HENRY NIHILL HOUSE,"4,334.72",02/10/2019,,
Delivery Units,Adults and Health,Other Agencies - Third Party P,0090198500,HENRY NIHILL HOUSE,"4,334.72",02/10/2019,,
Delivery Units,Adults and Health,Other Agencies - Third Party P,0090198501,HENRY NIHILL HOUSE,"4,334.72",02/10/2019,,
Delivery Units,Adults and Health,Other Agencies - Third Party P,0090198502,HENRY NIHILL HOUSE,"4,334.72",02/10/2019,,
Delivery Units,Adults and Health,Other Agencies - Third Party P,0090198503,HENRY NIHILL HOUSE,"4,334.72",02/10/2019,,
Delivery Units,Adults and Health,Other Agencies - Third Party P,0090198504,HENRY NIHILL HOUSE,"4,334.72",02/10/2019,,
Delivery Units,Adults and Health,Other Agencies - Third Party P,0090204358,HENRY NIHILL HOUSE,"2,167.36",22/10/2019,,
Delivery Units,Adults and Health,Other Agencies - Third Party P,0090204359,HENRY NIHILL HOUSE,"2,167.36",22/10/2019,,
Delivery Units,Adults and Health,Other Agencies - Third Party P,0090204363,HENRY NIHILL HOUSE,"2,167.36",22/10/2019,,
Delivery Units,Adults and Health,Other Agencies - Third Party P,0090204387,HENRY NIHILL HOUSE,"2,167.36",22/10/2019,,
Delivery Units,Adults and Health,Other Agencies - Third Party P,0090204405,HENRY NIHILL HOUSE,"2,167.36",22/10/2019,,
Delivery Units,Adults and Health,Other Agencies - Third Party P,0090204421,HENRY NIHILL HOUSE,"2,167.36",22/10/2019,,
Delivery Units,Adults and Health,Other Agencies - Third Party P,0090202038,THE LEONARD CHESHIRE FOUNDATION,"6,420.00",16/10/2019,,
Delivery Units,Adults and Health,Other Agencies - Third Party P,0090200428,LIFESTYLE CARE PLC,"1,456.27",02/10/2019,,
Delivery Units,Adults and Health,Other Agencies - Third Party P,0090200451,LIFESTYLE CARE PLC,"2,397.72",02/10/2019,,
Delivery Units,Adults and Health,Other Agencies - Third Party P,0090200452,LIFESTYLE CARE PLC,"2,397.72",02/10/2019,,
Delivery Units,Adults and Health,Other Agencies - Third Party P,0090200552,LIFESTYLE CARE PLC,"1,546.91",03/10/2019,,
Delivery Units,Adults and Health,Other Agencies - Third Party P,0090200558,LIFESTYLE CARE PLC,"2,397.72",03/10/2019,,
Delivery Units,Adults and Health,Other Agencies - Third Party P,0090200566,LIFESTYLE CARE PLC,"2,320.37",10/10/2019,,
Delivery Units,Adults and Health,Other Agencies - Third Party P,0090200567,LIFESTYLE CARE PLC,"2,750.74",10/10/2019,,
Delivery Units,Adults and Health,Other Agencies - Third Party P,0090200569,LIFESTYLE CARE PLC,"2,569.89",10/10/2019,,
Delivery Units,Adults and Health,Other Agencies - Third Party P,0090200570,LIFESTYLE CARE PLC,"2,569.89",10/10/2019,,
Delivery Units,Adults and Health,Other Agencies - Third Party P,0090200571,LIFESTYLE CARE PLC,"2,320.37",10/10/2019,,
Delivery Units,Adults and Health,Other Agencies - Third Party P,0090200572,LIFESTYLE CARE PLC,"2,320.37",10/10/2019,,
Delivery Units,Adults and Health,Other Agencies - Third Party P,0090200573,LIFESTYLE CARE PLC,"2,320.37",10/10/2019,,
Delivery Units,Adults and Health,Other Agencies - Third Party P,0090200574,LIFESTYLE CARE PLC,"2,569.89",10/10/2019,,
Delivery Units,Adults and Health,Other Agencies - Third Party P,0090200575,LIFESTYLE CARE PLC,"2,320.37",10/10/2019,,
Delivery Units,Adults and Health,Other Agencies - Third Party P,0090202051,LIFESTYLE CARE PLC,"2,569.89",16/10/2019,,
Delivery Units,Adults and Health,Other Agencies - Third Party P,0090204274,MEERA NURSING HOME LIMITED,"2,445.68",17/10/2019,,
Delivery Units,Adults and Health,Other Agencies - Third Party P,0090204275,MEERA NURSING HOME LIMITED,"3,764.29",17/10/2019,,
Delivery Units,Adults and Health,Other Agencies - Third Party P,0090204276,MEERA NURSING HOME LIMITED,"3,100.00",17/10/2019,,
Delivery Units,Adults and Health,Other Agencies - Third Party P,0090204300,MEERA NURSING HOME LIMITED,"2,445.68",17/10/2019,,
Delivery Units,Adults and Health,Other Agencies - Third Party P,0090203401,NEWCENTURY CARE LTD,"3,743.70",16/10/2019,,
Delivery Units,Adults and Health,Other Agencies - Third Party P,0090203402,NEWCENTURY CARE LTD,"4,316.23",16/10/2019,,
Delivery Units,Adults and Health,Other Agencies - Third Party P,0090203403,NEWCENTURY CARE LTD,"3,963.90",16/10/2019,,
Delivery Units,Adults and Health,Other Agencies - Third Party P,0090203404,NEWCENTURY CARE LTD,"3,462.86",16/10/2019,,
Delivery Units,Adults and Health,Other Agencies - Third Party P,0090203405,NEWCENTURY CARE LTD,"3,642.86",16/10/2019,,
Delivery Units,Adults and Health,Other Agencies - Third Party P,0090203407,NEWCENTURY CARE LTD,"3,462.86",16/10/2019,,
Delivery Units,Adults and Health,Other Agencies - Third Party P,0090202041,BUPA CARE HOMES,"2,493.08",16/10/2019,,
Delivery Units,Adults and Health,Other Agencies - Third Party P,0090202043,BUPA CARE HOMES,"2,480.70",16/10/2019,,
Delivery Units,Adults and Health,Other Agencies - Third Party P,0090200453,BUPA CARE HOMES,"2,587.44",02/10/2019,,
Delivery Units,Adults and Health,Other Agencies - Third Party P,0090200454,BUPA CARE HOMES,"2,345.12",02/10/2019,,
Delivery Units,Adults and Health,Other Agencies - Third Party P,0090200455,BUPA CARE HOMES,"2,265.36",02/10/2019,,
Delivery Units,Adults and Health,Other Agencies - Third Party P,0090200456,BUPA CARE HOMES,"2,587.44",02/10/2019,,
Delivery Units,Adults and Health,Other Agencies - Third Party P,0090200457,BUPA CARE HOMES,"2,345.12",02/10/2019,,
Delivery Units,Adults and Health,Other Agencies - Third Party P,0090200458,BUPA CARE HOMES,"2,265.36",02/10/2019,,
Delivery Units,Adults and Health,Other Agencies - Third Party P,0090202020,BUPA CARE HOMES,"2,322.17",16/10/2019,,
Delivery Units,Adults and Health,Other Agencies - Third Party P,0090202022,BUPA CARE HOMES,"2,335.71",16/10/2019,,
Delivery Units,Adults and Health,Other Agencies - Third Party P,0090202023,BUPA CARE HOMES,"3,107.14",16/10/2019,,
Delivery Units,Adults and Health,Other Agencies - Third Party P,0090202024,BUPA CARE HOMES,"2,322.17",16/10/2019,,
Delivery Units,Adults and Health,Other Agencies - Third Party P,0090202025,BUPA CARE HOMES,"2,322.17",16/10/2019,,
Delivery Units,Adults and Health,Other Agencies - Third Party P,0090202026,BUPA CARE HOMES,"2,691.00",16/10/2019,,
Delivery Units,Adults and Health,Other Agencies - Third Party P,0090202027,BUPA CARE HOMES,"2,671.16",16/10/2019,,
Delivery Units,Adults and Health,Other Agencies - Third Party P,0090202028,BUPA CARE HOMES,"2,322.17",16/10/2019,,
Delivery Units,Adults and Health,Other Agencies - Third Party P,0090187767,FOUR SEASONS HEALTH CARE,"2,376.50",16/10/2019,,
Delivery Units,Adults and Health,Other Agencies - Third Party P,0090190955,FOUR SEASONS HEALTH CARE,"2,314.28",16/10/2019,,
Delivery Units,Adults and Health,Other Agencies - Third Party P,0090190957,FOUR SEASONS HEALTH CARE,"2,576.24",16/10/2019,,
Delivery Units,Adults and Health,Other Agencies - Third Party P,0090190958,FOUR SEASONS HEALTH CARE,"2,576.24",16/10/2019,,
Delivery Units,Adults and Health,Other Agencies - Third Party P,0090190959,FOUR SEASONS HEALTH CARE,"2,314.28",16/10/2019,,
Delivery Units,Adults and Health,Other Agencies - Third Party P,0090190961,FOUR SEASONS HEALTH CARE,"2,314.28",16/10/2019,,
Delivery Units,Adults and Health,Other Agencies - Third Party P,0090190962,FOUR SEASONS HEALTH CARE,"2,576.24",16/10/2019,,
Delivery Units,Adults and Health,Other Agencies - Third Party P,0090190963,FOUR SEASONS HEALTH CARE,"2,314.28",16/10/2019,,
Delivery Units,Adults and Health,Other Agencies - Third Party P,0090195886,FOUR SEASONS HEALTH CARE,"1,830.85",16/10/2019,,
Delivery Units,Adults and Health,Other Agencies - Third Party P,0090195908,FOUR SEASONS HEALTH CARE,"2,848.00",16/10/2019,,
Delivery Units,Adults and Health,Other Agencies - Third Party P,0090204191,FOUR SEASONS HEALTH CARE,"2,576.24",17/10/2019,,
Delivery Units,Adults and Health,Other Agencies - Third Party P,0090204192,FOUR SEASONS HEALTH CARE,"2,314.28",17/10/2019,,
Delivery Units,Adults and Health,Other Agencies - Third Party P,0090204193,FOUR SEASONS HEALTH CARE,"2,576.24",17/10/2019,,
Delivery Units,Adults and Health,Other Agencies - Third Party P,0090204194,FOUR SEASONS HEALTH CARE,"2,314.28",17/10/2019,,
Delivery Units,Adults and Health,Other Agencies - Third Party P,0090204195,FOUR SEASONS HEALTH CARE,"2,314.28",17/10/2019,,
Delivery Units,Adults and Health,Other Agencies - Third Party P,0090204196,FOUR SEASONS HEALTH CARE,"2,314.28",17/10/2019,,
Delivery Units,Adults and Health,Other Agencies - Third Party P,0090204271,SANCTUARY CARE LTD,"2,541.07",17/10/2019,,
Delivery Units,Adults and Health,Other Agencies - Third Party P,0090202045,BUPA CARE HOMES,"3,441.51",16/10/2019,,
Delivery Units,Adults and Health,Other Agencies - Third Party P,0090202046,BUPA CARE HOMES,"2,484.39",16/10/2019,,
Delivery Units,Adults and Health,Other Agencies - Third Party P,0090202047,BUPA CARE HOMES,"3,499.20",16/10/2019,,
Delivery Units,Adults and Health,Other Agencies - Third Party P,0090202049,BUPA CARE HOMES,"3,302.36",16/10/2019,,
Delivery Units,Adults and Health,Other Agencies - Third Party P,0090201090,SAGE NURSING HOME,"4,071.43",09/10/2019,,
Delivery Units,Adults and Health,Other Agencies - Third Party P,0090201093,SAGE NURSING HOME,"2,698.37",09/10/2019,,
Delivery Units,Adults and Health,Other Agencies - Third Party P,0090201094,SAGE NURSING HOME,"2,436.39",09/10/2019,,
Delivery Units,Adults and Health,Other Agencies - Third Party P,0090201096,SAGE NURSING HOME,"2,978.57",09/10/2019,,
Delivery Units,Adults and Health,Other Agencies - Third Party P,0090201099,SAGE NURSING HOME,"2,508.08",04/10/2019,,
Delivery Units,Adults and Health,Other Agencies - Third Party P,0090201251,SAGE NURSING HOME,"2,427.17",09/10/2019,,
Delivery Units,Adults and Health,Other Agencies - Third Party P,0090205111,M D HOMES,"3,072.32",22/10/2019,,
Delivery Units,Adults and Health,Other Agencies - Third Party P,0090205107,ST VINCENTS NURSING HOME,"1,783.16",22/10/2019,,
Delivery Units,Adults and Health,Other Agencies - Third Party P,0090205109,ST VINCENTS NURSING HOME,"7,500.00",22/10/2019,,
Delivery Units,Adults and Health,Other Agencies - Third Party P,0090204175,APPLE TREE COURT CARE HOME,"4,630.01",17/10/2019,,
Delivery Units,Adults and Health,Other Agencies - Third Party P,0090204176,APPLE TREE COURT CARE HOME,"2,671.16",17/10/2019,,
Delivery Units,Adults and Health,Other Agencies - Third Party P,0090204471,APPLE TREE COURT CARE HOME,"2,760.20",22/10/2019,,
Delivery Units,Adults and Health,Other Agencies - Third Party P,0090204475,APPLE TREE COURT CARE HOME,"4,871.43",22/10/2019,,
Delivery Units,Adults and Health,Other Agencies - Third Party P,0090201498,AUTUMN GARDENS,"4,800.00",09/10/2019,,
Delivery Units,Adults and Health,Other Agencies - Third Party P,0090201500,AUTUMN GARDENS,"3,440.00",09/10/2019,,
Delivery Units,Adults and Health,Other Agencies - Third Party P,0090201505,AUTUMN GARDENS,"4,800.00",09/10/2019,,
Delivery Units,Adults and Health,Other Agencies - Third Party P,0090201522,ABBEY RAVENSCROFT PARK NURSING HOME,-539.67,09/10/2019,,
Delivery Units,Adults and Health,Other Agencies - Third Party P,0090201533,ABBEY RAVENSCROFT PARK NURSING HOME,"2,698.37",09/10/2019,,
Delivery Units,Adults and Health,Other Agencies - Third Party P,0090201534,ABBEY RAVENSCROFT PARK NURSING HOME,"2,788.32",09/10/2019,,
Delivery Units,Adults and Health,Other Agencies - Third Party P,0090204279,ABBEY RAVENSCROFT PARK NURSING HOME,"3,321.43",17/10/2019,,
Delivery Units,Adults and Health,Other Agencies - Third Party P,0090204280,ABBEY RAVENSCROFT PARK NURSING HOME,"3,321.43",17/10/2019,,
Delivery Units,Adults and Health,Other Agencies - Third Party P,0090204282,ABBEY RAVENSCROFT PARK NURSING HOME,"2,788.32",17/10/2019,,
Delivery Units,Adults and Health,Other Agencies - Third Party P,0090204284,ABBEY RAVENSCROFT PARK NURSING HOME,"3,100.00",17/10/2019,,
Delivery Units,Adults and Health,Other Agencies - Third Party P,0090204285,ABBEY RAVENSCROFT PARK NURSING HOME,"3,321.43",17/10/2019,,
Delivery Units,Adults and Health,Other Agencies - Third Party P,0090204286,ABBEY RAVENSCROFT PARK NURSING HOME,"2,788.32",17/10/2019,,
Delivery Units,Adults and Health,Other Agencies - Third Party P,0090204288,ABBEY RAVENSCROFT PARK NURSING HOME,"2,788.32",17/10/2019,,
Delivery Units,Adults and Health,Other Agencies - Third Party P,0090204291,ABBEY RAVENSCROFT PARK NURSING HOME,"3,321.43",17/10/2019,,
Delivery Units,Adults and Health,Other Agencies - Third Party P,0090204292,ABBEY RAVENSCROFT PARK NURSING HOME,"3,321.43",17/10/2019,,
Delivery Units,Adults and Health,Other Agencies - Third Party P,0090204293,ABBEY RAVENSCROFT PARK NURSING HOME,"2,788.32",17/10/2019,,
Delivery Units,Adults and Health,Other Agencies - Third Party P,0090204294,ABBEY RAVENSCROFT PARK NURSING HOME,"4,995.43",17/10/2019,,
Delivery Units,Adults and Health,Other Agencies - Third Party P,0090204297,ABBEY RAVENSCROFT PARK NURSING HOME,"3,321.43",17/10/2019,,
Delivery Units,Adults and Health,Other Agencies - Third Party P,0090204298,ABBEY RAVENSCROFT PARK NURSING HOME,"3,542.86",17/10/2019,,
Delivery Units,Adults and Health,Other Agencies - Third Party P,0090204299,ABBEY RAVENSCROFT PARK NURSING HOME,"3,764.29",17/10/2019,,
Delivery Units,Adults and Health,Other Agencies - Third Party P,0090201211,ASHTON LODGE CARE CENTRE,"3,724.51",07/10/2019,,
Delivery Units,Adults and Health,Other Agencies - Third Party P,0090206697,ASHTON LODGE CARE CENTRE,"3,506.72",30/10/2019,,
Delivery Units,Adults and Health,Other Agencies - Third Party P,0090206699,ASHTON LODGE CARE CENTRE,"3,779.34",30/10/2019,,
Delivery Units,Adults and Health,Other Agencies - Third Party P,0090206700,ASHTON LODGE CARE CENTRE,"2,923.96",30/10/2019,,
Delivery Units,Adults and Health,Other Agencies - Third Party P,0090206702,ASHTON LODGE CARE CENTRE,"3,159.70",30/10/2019,,
Delivery Units,Adults and Health,Other Agencies - Third Party P,0090206704,ASHTON LODGE CARE CENTRE,"3,541.79",30/10/2019,,
Delivery Units,Adults and Health,Other Agencies - Third Party P,0090206705,ASHTON LODGE CARE CENTRE,"3,164.04",30/10/2019,,
Delivery Units,Adults and Health,Other Agencies - Third Party P,0090206706,ASHTON LODGE CARE CENTRE,"2,640.05",30/10/2019,,
Delivery Units,Adults and Health,Other Agencies - Third Party P,0090206708,ASHTON LODGE CARE CENTRE,"4,359.66",30/10/2019,,
Delivery Units,Adults and Health,Other Agencies - Third Party P,0090206709,ASHTON LODGE CARE CENTRE,"3,018.60",30/10/2019,,
Delivery Units,Adults and Health,Other Agencies - Third Party P,0090206710,ASHTON LODGE CARE CENTRE,"3,541.79",30/10/2019,,
Delivery Units,Adults and Health,Other Agencies - Third Party P,0090206711,ASHTON LODGE CARE CENTRE,"3,846.97",30/10/2019,,
Delivery Units,Adults and Health,Other Agencies - Third Party P,0090206712,ASHTON LODGE CARE CENTRE,"4,436.37",30/10/2019,,
Delivery Units,Adults and Health,Other Agencies - Third Party P,0090206713,ASHTON LODGE CARE CENTRE,"4,212.72",30/10/2019,,
Delivery Units,Adults and Health,Other Agencies - Third Party P,0090206714,ASHTON LODGE CARE CENTRE,"2,923.96",30/10/2019,,
Delivery Units,Adults and Health,Other Agencies - Third Party P,0090206727,ASHTON LODGE CARE CENTRE,"5,245.38",30/10/2019,,
Delivery Units,Adults and Health,Other Agencies - Third Party P,0090206728,ASHTON LODGE CARE CENTRE,"2,925.69",30/10/2019,,
Delivery Units,Adults and Health,Other Agencies - Third Party P,0090206729,ASHTON LODGE CARE CENTRE,"3,164.04",30/10/2019,,
Delivery Units,Adults and Health,Other Agencies - Third Party P,0090206730,ASHTON LODGE CARE CENTRE,"3,391.67",30/10/2019,,
Delivery Units,Adults and Health,Other Agencies - Third Party P,0090206731,ASHTON LODGE CARE CENTRE,"3,605.17",30/10/2019,,
Delivery Units,Adults and Health,Other Agencies - Third Party P,0090206733,ASHTON LODGE CARE CENTRE,"3,642.32",30/10/2019,,
Delivery Units,Adults and Health,Other Agencies - Third Party P,0090206734,ASHTON LODGE CARE CENTRE,"3,158.59",30/10/2019,,
Delivery Units,Adults and Health,Other Agencies - Third Party P,0090206737,ASHTON LODGE CARE CENTRE,"1,870.69",30/10/2019,,
Delivery Units,Adults and Health,Other Agencies - Third Party P,0090204463,WESTGATE HOUSE CARE CENTRE,"3,725.76",22/10/2019,,
Delivery Units,Adults and Health,Other Agencies - Third Party P,0090204690,VICTORIA CARE CENTRE,"2,863.50",22/10/2019,,
Delivery Units,Adults and Health,Other Agencies - Third Party P,0090204691,VICTORIA CARE CENTRE,"2,863.50",22/10/2019,,
Delivery Units,Adults and Health,Other Agencies - Third Party P,0090204692,VICTORIA CARE CENTRE,"2,958.95",22/10/2019,,
Delivery Units,Adults and Health,Other Agencies - Third Party P,0090204693,VICTORIA CARE CENTRE,"2,958.95",22/10/2019,,
Delivery Units,Adults and Health,Other Agencies - Third Party P,0090204694,VICTORIA CARE CENTRE,"2,958.95",22/10/2019,,
Delivery Units,Adults and Health,Other Agencies - Third Party P,0090204695,VICTORIA CARE CENTRE,"2,958.95",22/10/2019,,
Delivery Units,Adults and Health,Other Agencies - Third Party P,0090206148,KARUNA MANOR,"2,297.14",28/10/2019,,
Delivery Units,Adults and Health,Other Agencies - Third Party P,0090206149,KARUNA MANOR,"2,373.71",28/10/2019,,
Delivery Units,Adults and Health,Other Agencies - Third Party P,0090206150,KARUNA MANOR,"2,297.14",28/10/2019,,
Delivery Units,Adults and Health,Other Agencies - Third Party P,0090206151,KARUNA MANOR,"2,373.71",28/10/2019,,
Delivery Units,Adults and Health,Other Agencies - Third Party P,0090206152,KARUNA MANOR,"2,373.71",28/10/2019,,
Delivery Units,Adults and Health,Other Agencies - Third Party P,0090206153,KARUNA MANOR,"2,297.14",28/10/2019,,
Delivery Units,Adults and Health,Other Agencies - Third Party P,0090201073,ST ANNS HOME-LITTLE SISTERS OF THE POOR,"2,421.68",04/10/2019,,
Delivery Units,Adults and Health,Other Agencies - Third Party P,0090201074,ST ANNS HOME-LITTLE SISTERS OF THE POOR,"2,343.56",04/10/2019,,
Delivery Units,Adults and Health,Other Agencies - Third Party P,0090204273,PINELODGE CARE HOME,"2,655.55",17/10/2019,,
Delivery Units,Adults and Health,Other Agencies - Third Party P,0090204177,ADARA HEALTHCARE LTD,"3,400.00",17/10/2019,,
Delivery Units,Adults and Health,Other Agencies - Third Party P,0090205110,LANSGLADE HOMES LIMITED,"2,723.35",22/10/2019,,
Delivery Units,Adults and Health,Other Agencies - Third Party P,0090201507,LARCHWOOD CARE HOMES(SOUTH)LT,"3,400.00",09/10/2019,,
Delivery Units,Adults and Health,Other Agencies - Third Party P,0090200435,ROSEACRES CARE HOME LIMITED,"3,857.14",02/10/2019,,
Delivery Units,Adults and Health,Other Agencies - Third Party P,0090200557,ROSEACRES CARE HOME LIMITED,"3,642.86",03/10/2019,,
Delivery Units,Adults and Health,Other Agencies - Third Party P,0090205112,ROSEACRES CARE HOME LIMITED,"3,321.43",22/10/2019,,
Delivery Units,Adults and Health,Other Agencies - Third Party P,0090205113,ROSEACRES CARE HOME LIMITED,"2,550.86",22/10/2019,,
Delivery Units,Adults and Health,Other Agencies - Third Party P,0090205114,ROSEACRES CARE HOME LIMITED,"2,550.86",22/10/2019,,
Delivery Units,Adults and Health,Other Agencies - Third Party P,0090205116,ROSEACRES CARE HOME LIMITED,"3,764.29",22/10/2019,,
Delivery Units,Adults and Health,Other Agencies - Third Party P,0090205117,ROSEACRES CARE HOME LIMITED,"2,550.86",22/10/2019,,
Delivery Units,Adults and Health,Other Agencies - Third Party P,0090205118,ROSEACRES CARE HOME LIMITED,"2,550.86",22/10/2019,,
Delivery Units,Adults and Health,Other Agencies - Third Party P,0090205119,ROSEACRES CARE HOME LIMITED,"2,892.13",22/10/2019,,
Delivery Units,Adults and Health,Other Agencies - Third Party P,0090205121,ROSEACRES CARE HOME LIMITED,"3,321.43",22/10/2019,,
Delivery Units,Adults and Health,Other Agencies - Third Party P,0090205122,ROSEACRES CARE HOME LIMITED,"3,321.43",22/10/2019,,
Delivery Units,Adults and Health,Other Agencies - Third Party P,0090205123,ROSEACRES CARE HOME LIMITED,"3,321.43",22/10/2019,,
Delivery Units,Adults and Health,Other Agencies - Third Party P,0090205124,ROSEACRES CARE HOME LIMITED,"2,550.86",22/10/2019,,
Delivery Units,Adults and Health,Other Agencies - Third Party P,0090205125,ROSEACRES CARE HOME LIMITED,"3,321.43",22/10/2019,,
Delivery Units,Adults and Health,Other Agencies - Third Party P,0090205127,ROSEACRES CARE HOME LIMITED,428.57,22/10/2019,,
Delivery Units,Adults and Health,Other Agencies - Third Party P,0090205128,ROSEACRES CARE HOME LIMITED,964.29,22/10/2019,,
Delivery Units,Adults and Health,Other Agencies - Third Party P,0090202033,NIGHTINGALE HOUSE,"2,359.07",16/10/2019,,
Delivery Units,Adults and Health,Other Agencies - Third Party P,0090202039,NIGHTINGALE HOUSE,"2,972.91",16/10/2019,,
Delivery Units,Adults and Health,Other Agencies - Third Party P,0090200446,ELM PARK LODGE,"3,137.91",09/10/2019,,
Delivery Units,Adults and Health,Other Agencies - Third Party P,0090201494,THE GRANGE,"2,350.08",09/10/2019,,
Delivery Units,Adults and Health,Other Agencies - Third Party P,0090201495,THE GRANGE,"2,600.00",09/10/2019,,
Delivery Units,Adults and Health,Other Agencies - Third Party P,0090204301,JEWISH CARE,967.32,22/10/2019,,
Delivery Units,Adults and Health,Other Agencies - Third Party P,0090204304,JEWISH CARE,"2,296.24",22/10/2019,,
Delivery Units,Adults and Health,Other Agencies - Third Party P,0090204305,JEWISH CARE,"2,479.68",22/10/2019,,
Delivery Units,Adults and Health,Other Agencies - Third Party P,0090204306,JEWISH CARE,"2,480.92",22/10/2019,,
Delivery Units,Adults and Health,Other Agencies - Third Party P,0090204307,JEWISH CARE,"6,298.64",22/10/2019,,
Delivery Units,Adults and Health,Other Agencies - Third Party P,0090204309,JEWISH CARE,"2,649.36",22/10/2019,,
Delivery Units,Adults and Health,Other Agencies - Third Party P,0090204310,JEWISH CARE,"2,480.92",22/10/2019,,
Delivery Units,Adults and Health,Other Agencies - Third Party P,0090204312,JEWISH CARE,"2,479.68",22/10/2019,,
Delivery Units,Adults and Health,Other Agencies - Third Party P,0090204314,JEWISH CARE,"2,479.68",22/10/2019,,
Delivery Units,Adults and Health,Other Agencies - Third Party P,0090204315,JEWISH CARE,"2,482.36",22/10/2019,,
Delivery Units,Adults and Health,Other Agencies - Third Party P,0090204316,JEWISH CARE,"2,484.56",22/10/2019,,
Delivery Units,Adults and Health,Other Agencies - Third Party P,0090204318,JEWISH CARE,"2,484.56",22/10/2019,,
Delivery Units,Adults and Health,Other Agencies - Third Party P,0090204320,JEWISH CARE,"2,296.24",22/10/2019,,
Delivery Units,Adults and Health,Other Agencies - Third Party P,0090204326,JEWISH CARE,"2,479.68",22/10/2019,,
Delivery Units,Adults and Health,Other Agencies - Third Party P,0090204327,JEWISH CARE,"2,480.92",22/10/2019,,
Delivery Units,Adults and Health,Other Agencies - Third Party P,0090204328,JEWISH CARE,"2,480.92",22/10/2019,,
Delivery Units,Adults and Health,Other Agencies - Third Party P,0090204329,JEWISH CARE,"2,479.68",22/10/2019,,
Delivery Units,Adults and Health,Other Agencies - Third Party P,0090204330,JEWISH CARE,"4,265.48",22/10/2019,,
Delivery Units,Adults and Health,Other Agencies - Third Party P,0090204332,JEWISH CARE,"2,280.32",22/10/2019,,
Delivery Units,Adults and Health,Other Agencies - Third Party P,0090204333,JEWISH CARE,"2,296.24",22/10/2019,,
Delivery Units,Adults and Health,Other Agencies - Third Party P,0090204335,JEWISH CARE,"2,156.80",22/10/2019,,
Delivery Units,Adults and Health,Other Agencies - Third Party P,0090204340,JEWISH CARE,"2,480.92",22/10/2019,,
Delivery Units,Adults and Health,Other Agencies - Third Party P,0090204341,JEWISH CARE,"2,482.36",22/10/2019,,
Delivery Units,Adults and Health,Other Agencies - Third Party P,0090204342,JEWISH CARE,"2,296.24",22/10/2019,,
Delivery Units,Adults and Health,Other Agencies - Third Party P,0090204348,JEWISH CARE,"2,482.36",22/10/2019,,
Delivery Units,Adults and Health,Other Agencies - Third Party P,0090204349,JEWISH CARE,"2,484.56",22/10/2019,,
Delivery Units,Adults and Health,Other Agencies - Third Party P,0090204351,JEWISH CARE,"2,482.36",22/10/2019,,
Delivery Units,Adults and Health,Other Agencies - Third Party P,0090204357,JEWISH CARE,"2,484.56",22/10/2019,,
Delivery Units,Adults and Health,Other Agencies - Third Party P,0090204360,JEWISH CARE,"2,484.56",22/10/2019,,
Delivery Units,Adults and Health,Other Agencies - Third Party P,0090204362,JEWISH CARE,"2,296.24",22/10/2019,,
Delivery Units,Adults and Health,Other Agencies - Third Party P,0090204364,JEWISH CARE,"2,480.92",22/10/2019,,
Delivery Units,Adults and Health,Other Agencies - Third Party P,0090204365,JEWISH CARE,"2,484.56",22/10/2019,,
Delivery Units,Adults and Health,Other Agencies - Third Party P,0090204368,JEWISH CARE,"2,484.56",22/10/2019,,
Delivery Units,Adults and Health,Other Agencies - Third Party P,0090204369,JEWISH CARE,"2,296.24",22/10/2019,,
Delivery Units,Adults and Health,Other Agencies - Third Party P,0090204372,JEWISH CARE,"2,480.92",22/10/2019,,
Delivery Units,Adults and Health,Other Agencies - Third Party P,0090204375,JEWISH CARE,"2,480.92",22/10/2019,,
Delivery Units,Adults and Health,Other Agencies - Third Party P,0090204378,JEWISH CARE,"2,484.56",22/10/2019,,
Delivery Units,Adults and Health,Other Agencies - Third Party P,0090204381,JEWISH CARE,"2,296.24",22/10/2019,,
Delivery Units,Adults and Health,Other Agencies - Third Party P,0090204383,JEWISH CARE,"2,296.24",22/10/2019,,
Delivery Units,Adults and Health,Other Agencies - Third Party P,0090204384,JEWISH CARE,"2,296.24",22/10/2019,,
Delivery Units,Adults and Health,Other Agencies - Third Party P,0090204385,JEWISH CARE,"2,479.68",22/10/2019,,
Delivery Units,Adults and Health,Other Agencies - Third Party P,0090204388,JEWISH CARE,"2,482.36",22/10/2019,,
Delivery Units,Adults and Health,Other Agencies - Third Party P,0090204389,JEWISH CARE,"2,482.36",22/10/2019,,
Delivery Units,Adults and Health,Other Agencies - Third Party P,0090204390,JEWISH CARE,"2,482.36",22/10/2019,,
Delivery Units,Adults and Health,Other Agencies - Third Party P,0090204391,JEWISH CARE,"2,479.68",22/10/2019,,
Delivery Units,Adults and Health,Other Agencies - Third Party P,0090204392,JEWISH CARE,"2,296.24",22/10/2019,,
Delivery Units,Adults and Health,Other Agencies - Third Party P,0090204397,JEWISH CARE,"2,482.36",22/10/2019,,
Delivery Units,Adults and Health,Other Agencies - Third Party P,0090204400,JEWISH CARE,"2,480.92",22/10/2019,,
Delivery Units,Adults and Health,Other Agencies - Third Party P,0090204404,JEWISH CARE,"2,296.24",22/10/2019,,
Delivery Units,Adults and Health,Other Agencies - Third Party P,0090204412,JEWISH CARE,"2,296.24",22/10/2019,,
Delivery Units,Adults and Health,Other Agencies - Third Party P,0090204413,JEWISH CARE,"2,296.24",22/10/2019,,
Delivery Units,Adults and Health,Other Agencies - Third Party P,0090204416,JEWISH CARE,"2,484.56",22/10/2019,,
Delivery Units,Adults and Health,Other Agencies - Third Party P,0090204418,JEWISH CARE,"2,479.68",22/10/2019,,
Delivery Units,Adults and Health,Other Agencies - Third Party P,0090204420,JEWISH CARE,452.15,22/10/2019,,
Delivery Units,Adults and Health,Other Agencies - Third Party P,0090204422,JEWISH CARE,"2,296.24",22/10/2019,,
Delivery Units,Adults and Health,Other Agencies - Third Party P,0090204424,JEWISH CARE,"2,296.24",22/10/2019,,
Delivery Units,Adults and Health,Other Agencies - Third Party P,0090204425,JEWISH CARE,"2,482.36",22/10/2019,,
Delivery Units,Adults and Health,Other Agencies - Third Party P,0090204426,JEWISH CARE,"4,922.72",22/10/2019,,
Delivery Units,Adults and Health,Other Agencies - Third Party P,0090204430,JEWISH CARE,"2,296.24",22/10/2019,,
Delivery Units,Adults and Health,Other Agencies - Third Party P,0090204433,JEWISH CARE,"2,480.92",22/10/2019,,
Delivery Units,Adults and Health,Other Agencies - Third Party P,0090204437,JEWISH CARE,"2,479.68",22/10/2019,,
Delivery Units,Adults and Health,Other Agencies - Third Party P,0090204439,JEWISH CARE,"2,479.68",22/10/2019,,
Delivery Units,Adults and Health,Other Agencies - Third Party P,0090204440,JEWISH CARE,"2,484.56",22/10/2019,,
Delivery Units,Adults and Health,Other Agencies - Third Party P,0090204441,JEWISH CARE,"2,482.36",22/10/2019,,
Delivery Units,Adults and Health,Other Agencies - Third Party P,0090204444,JEWISH CARE,"2,484.56",22/10/2019,,
Delivery Units,Adults and Health,Other Agencies - Third Party P,0090204445,JEWISH CARE,"4,825.16",22/10/2019,,
Delivery Units,Adults and Health,Other Agencies - Third Party P,0090204446,JEWISH CARE,"2,480.92",22/10/2019,,
Delivery Units,Adults and Health,Other Agencies - Third Party P,0090204448,JEWISH CARE,"2,484.56",22/10/2019,,
Delivery Units,Adults and Health,Other Agencies - Third Party P,0090204450,JEWISH CARE,"1,206.64",22/10/2019,,
Delivery Units,Adults and Health,Other Agencies - Third Party P,0090204451,JEWISH CARE,"76,656.42",22/10/2019,,
Delivery Units,Adults and Health,Other Agencies - Third Party P,0090204452,JEWISH CARE,-701.45,22/10/2019,,
Delivery Units,Adults and Health,Other Agencies - Third Party P,0090204453,JEWISH CARE,263.10,22/10/2019,,
Delivery Units,Adults and Health,Other Agencies - Third Party P,0090204455,JEWISH CARE,"1,691.97",22/10/2019,,
Delivery Units,Adults and Health,Other Agencies - Third Party P,0090204457,JEWISH CARE,"4,656.35",22/10/2019,,
Delivery Units,Adults and Health,Other Agencies - Third Party P,0090204458,JEWISH CARE,"2,457.80",22/10/2019,,
Delivery Units,Adults and Health,Other Agencies - Third Party P,0090204461,JEWISH CARE,"1,151.86",22/10/2019,,
Delivery Units,Adults and Health,Other Agencies - Third Party P,0090204269,FINBOND LIMITED,"3,321.43",17/10/2019,,
Delivery Units,Adults and Health,Other Agencies - Third Party P,0090201254,QUANTUM CARE LIMITED,"3,764.29",07/10/2019,,
Delivery Units,Adults and Health,Other Agencies - Third Party P,0090201255,QUANTUM CARE LIMITED,"3,764.29",07/10/2019,,
Delivery Units,Adults and Health,Other Agencies - Third Party P,0090204181,QUANTUM CARE LIMITED,"3,214.29",17/10/2019,,
Delivery Units,Adults and Health,Other Agencies - Third Party P,0090204182,QUANTUM CARE LIMITED,"4,071.43",17/10/2019,,
Delivery Units,Adults and Health,Other Agencies - Third Party P,0090204197,QUANTUM CARE LIMITED,"3,642.86",17/10/2019,,
Delivery Units,Adults and Health,Other Agencies - Third Party P,0090204204,BUPA NURSING HOMES LTD - ARKLEY,"2,218.04",17/10/2019,,
Delivery Units,Adults and Health,Other Agencies - Third Party P,0090204207,BUPA NURSING HOMES LTD - ARKLEY,"2,167.68",17/10/2019,,
Delivery Units,Adults and Health,Other Agencies - Third Party P,0090201218,NAZARETH HOUSE,"2,186.88",07/10/2019,,
Delivery Units,Adults and Health,Other Agencies - Third Party P,0090201219,NAZARETH HOUSE,"2,186.88",07/10/2019,,
Delivery Units,Adults and Health,Other Agencies - Third Party P,0090201220,NAZARETH HOUSE,"2,186.88",07/10/2019,,
Delivery Units,Adults and Health,Other Agencies - Third Party P,0090201221,NAZARETH HOUSE,"2,186.88",07/10/2019,,
Delivery Units,Adults and Health,Other Agencies - Third Party P,0090201222,NAZARETH HOUSE,"2,186.88",07/10/2019,,
Delivery Units,Adults and Health,Other Agencies - Third Party P,0090201223,NAZARETH HOUSE,"2,350.08",07/10/2019,,
Delivery Units,Adults and Health,Other Agencies - Third Party P,0090201224,NAZARETH HOUSE,"2,186.88",07/10/2019,,
Delivery Units,Adults and Health,Other Agencies - Third Party P,0090201225,NAZARETH HOUSE,"2,350.08",07/10/2019,,
Delivery Units,Adults and Health,Other Agencies - Third Party P,0090201226,NAZARETH HOUSE,"2,186.88",07/10/2019,,
Delivery Units,Adults and Health,Other Agencies - Third Party P,0090201227,NAZARETH HOUSE,"2,186.88",07/10/2019,,
Delivery Units,Adults and Health,Other Agencies - Third Party P,0090201228,NAZARETH HOUSE,"2,144.00",07/10/2019,,
Delivery Units,Adults and Health,Other Agencies - Third Party P,0090201229,NAZARETH HOUSE,"2,186.88",07/10/2019,,
Delivery Units,Adults and Health,Other Agencies - Third Party P,0090201231,NAZARETH HOUSE,"2,650.40",07/10/2019,,
Delivery Units,Adults and Health,Other Agencies - Third Party P,0090201232,NAZARETH HOUSE,"2,186.88",07/10/2019,,
Delivery Units,Adults and Health,Other Agencies - Third Party P,0090201233,NAZARETH HOUSE,"2,186.88",07/10/2019,,
Delivery Units,Adults and Health,Other Agencies - Third Party P,0090201234,NAZARETH HOUSE,"2,186.88",07/10/2019,,
Delivery Units,Adults and Health,Other Agencies - Third Party P,0090201235,NAZARETH HOUSE,"2,186.88",07/10/2019,,
Delivery Units,Adults and Health,Other Agencies - Third Party P,0090201236,NAZARETH HOUSE,"2,350.08",07/10/2019,,
Delivery Units,Adults and Health,Other Agencies - Third Party P,0090201237,NAZARETH HOUSE,"2,350.08",07/10/2019,,
Delivery Units,Adults and Health,Other Agencies - Third Party P,0090201238,NAZARETH HOUSE,"2,186.88",07/10/2019,,
Delivery Units,Adults and Health,Other Agencies - Third Party P,0090201239,NAZARETH HOUSE,"2,186.88",07/10/2019,,
Delivery Units,Adults and Health,Other Agencies - Third Party P,0090201240,NAZARETH HOUSE,"2,186.88",07/10/2019,,
Delivery Units,Adults and Health,Other Agencies - Third Party P,0090201241,NAZARETH HOUSE,"2,186.88",07/10/2019,,
Delivery Units,Adults and Health,Other Agencies - Third Party P,0090201242,NAZARETH HOUSE,"2,186.88",07/10/2019,,
Delivery Units,Adults and Health,Other Agencies - Third Party P,0090204477,NAZARETH HOUSE,"2,186.88",22/10/2019,,
Delivery Units,Adults and Health,Other Agencies - Third Party P,0090204478,NAZARETH HOUSE,"2,186.88",22/10/2019,,
Delivery Units,Adults and Health,Other Agencies - Third Party P,0090204479,NAZARETH HOUSE,"2,186.88",22/10/2019,,
Delivery Units,Adults and Health,Other Agencies - Third Party P,0090204480,NAZARETH HOUSE,"2,186.88",22/10/2019,,
Delivery Units,Adults and Health,Other Agencies - Third Party P,0090204481,NAZARETH HOUSE,"2,186.88",22/10/2019,,
Delivery Units,Adults and Health,Other Agencies - Third Party P,0090204482,NAZARETH HOUSE,"2,350.08",22/10/2019,,
Delivery Units,Adults and Health,Other Agencies - Third Party P,0090204483,NAZARETH HOUSE,"2,186.88",22/10/2019,,
Delivery Units,Adults and Health,Other Agencies - Third Party P,0090204484,NAZARETH HOUSE,"2,350.08",22/10/2019,,
Delivery Units,Adults and Health,Other Agencies - Third Party P,0090204485,NAZARETH HOUSE,"2,186.88",22/10/2019,,
Delivery Units,Adults and Health,Other Agencies - Third Party P,0090204486,NAZARETH HOUSE,"2,186.88",22/10/2019,,
Delivery Units,Adults and Health,Other Agencies - Third Party P,0090204487,NAZARETH HOUSE,"2,144.00",22/10/2019,,
Delivery Units,Adults and Health,Other Agencies - Third Party P,0090204488,NAZARETH HOUSE,"2,186.88",22/10/2019,,
Delivery Units,Adults and Health,Other Agencies - Third Party P,0090204490,NAZARETH HOUSE,"2,650.40",22/10/2019,,
Delivery Units,Adults and Health,Other Agencies - Third Party P,0090204491,NAZARETH HOUSE,"2,186.88",22/10/2019,,
Delivery Units,Adults and Health,Other Agencies - Third Party P,0090204492,NAZARETH HOUSE,"2,186.88",22/10/2019,,
Delivery Units,Adults and Health,Other Agencies - Third Party P,0090204493,NAZARETH HOUSE,"2,186.88",22/10/2019,,
Delivery Units,Adults and Health,Other Agencies - Third Party P,0090204494,NAZARETH HOUSE,"2,186.88",22/10/2019,,
Delivery Units,Adults and Health,Other Agencies - Third Party P,0090204495,NAZARETH HOUSE,"2,350.08",22/10/2019,,
Delivery Units,Adults and Health,Other Agencies - Third Party P,0090204496,NAZARETH HOUSE,"2,350.08",22/10/2019,,
Delivery Units,Adults and Health,Other Agencies - Third Party P,0090204497,NAZARETH HOUSE,"2,186.88",22/10/2019,,
Delivery Units,Adults and Health,Other Agencies - Third Party P,0090204498,NAZARETH HOUSE,"2,186.88",22/10/2019,,
Delivery Units,Adults and Health,Other Agencies - Third Party P,0090204499,NAZARETH HOUSE,"2,186.88",22/10/2019,,
Delivery Units,Adults and Health,Other Agencies - Third Party P,0090204500,NAZARETH HOUSE,"2,186.88",22/10/2019,,
Delivery Units,Adults and Health,Other Agencies - Third Party P,0090204501,NAZARETH HOUSE,"2,186.88",22/10/2019,,
Delivery Units,Adults and Health,Other Agencies - Third Party P,0090204502,NAZARETH HOUSE,"2,186.88",22/10/2019,,
Delivery Units,Adults and Health,Other Agencies - Third Party P,0090201071,KESTREL GROVE NURSING HOME,"2,961.43",04/10/2019,,
Delivery Units,Adults and Health,Other Agencies - Third Party P,0090201072,KESTREL GROVE NURSING HOME,"2,961.43",04/10/2019,,
Delivery Units,Adults and Health,Other Agencies - Third Party P,0090204681,KESTREL GROVE NURSING HOME,"3,060.14",22/10/2019,,
Delivery Units,Adults and Health,Other Agencies - Third Party P,0090198446,FRIARY LODGE,"3,214.28",02/10/2019,,
Delivery Units,Adults and Health,Other Agencies - Third Party P,0090201510,THE WOODSIDE HOME,"2,186.88",09/10/2019,,
Delivery Units,Adults and Health,Other Agencies - Third Party P,0090201511,THE WOODSIDE HOME,"2,186.88",09/10/2019,,
Delivery Units,Adults and Health,Other Agencies - Third Party P,0090201512,THE WOODSIDE HOME,"2,186.88",09/10/2019,,
Delivery Units,Adults and Health,Other Agencies - Third Party P,0090201513,THE WOODSIDE HOME,"2,186.88",09/10/2019,,
Delivery Units,Adults and Health,Other Agencies - Third Party P,0090200432,WESTMINSTER HEALTH CARE LTD,"3,619.07",02/10/2019,,
Delivery Units,Adults and Health,Other Agencies - Third Party P,0090201248,WESTMINSTER HEALTH CARE LTD,"3,735.36",07/10/2019,,
Delivery Units,Adults and Health,Other Agencies - Third Party P,0090198506,HENRY NIHILL HOUSE,"4,334.72",02/10/2019,,
Delivery Units,Adults and Health,Other Agencies - Third Party P,0090204323,HENRY NIHILL HOUSE,"2,186.88",22/10/2019,,
Delivery Units,Adults and Health,Other Agencies - Third Party P,0090200462,THE LIMES RESIDENTIAL HOME,"1,718.26",03/10/2019,,
Delivery Units,Adults and Health,Other Agencies - Third Party P,0090200464,THE LIMES RESIDENTIAL HOME,"1,846.49",03/10/2019,,
Delivery Units,Adults and Health,Other Agencies - Third Party P,0090200465,THE LIMES RESIDENTIAL HOME,335.73,03/10/2019,,
Delivery Units,Adults and Health,Other Agencies - Third Party P,0090200466,THE LIMES RESIDENTIAL HOME,"4,285.71",03/10/2019,,
Delivery Units,Adults and Health,Other Agencies - Third Party P,0090200468,THE LIMES RESIDENTIAL HOME,"1,846.49",03/10/2019,,
Delivery Units,Adults and Health,Other Agencies - Third Party P,0090200469,THE LIMES RESIDENTIAL HOME,"1,846.49",03/10/2019,,
Delivery Units,Adults and Health,Other Agencies - Third Party P,0090200470,THE LIMES RESIDENTIAL HOME,"1,810.37",03/10/2019,,
Delivery Units,Adults and Health,Other Agencies - Third Party P,0090200471,THE LIMES RESIDENTIAL HOME,"1,846.49",03/10/2019,,
Delivery Units,Adults and Health,Other Agencies - Third Party P,0090200472,THE LIMES RESIDENTIAL HOME,"1,846.49",03/10/2019,,
Delivery Units,Adults and Health,Other Agencies - Third Party P,0090200473,THE LIMES RESIDENTIAL HOME,"1,846.49",03/10/2019,,
Delivery Units,Adults and Health,Other Agencies - Third Party P,0090200474,THE LIMES RESIDENTIAL HOME,"1,718.26",03/10/2019,,
Delivery Units,Adults and Health,Other Agencies - Third Party P,0090200475,THE LIMES RESIDENTIAL HOME,"1,846.49",03/10/2019,,
Delivery Units,Adults and Health,Other Agencies - Third Party P,0090200476,THE LIMES RESIDENTIAL HOME,"1,846.49",03/10/2019,,
Delivery Units,Adults and Health,Other Agencies - Third Party P,0090200477,THE LIMES RESIDENTIAL HOME,"1,810.29",03/10/2019,,
Delivery Units,Adults and Health,Other Agencies - Third Party P,0090200478,THE LIMES RESIDENTIAL HOME,"2,042.87",03/10/2019,,
Delivery Units,Adults and Health,Other Agencies - Third Party P,0090200479,THE LIMES RESIDENTIAL HOME,"1,846.49",03/10/2019,,
Delivery Units,Adults and Health,Other Agencies - Third Party P,0090200480,THE LIMES RESIDENTIAL HOME,167.86,03/10/2019,,
Delivery Units,Adults and Health,Other Agencies - Third Party P,0090200481,THE LIMES RESIDENTIAL HOME,755.38,03/10/2019,,
Delivery Units,Adults and Health,Other Agencies - Third Party P,0090200482,THE LIMES RESIDENTIAL HOME,"3,944.78",03/10/2019,,
Delivery Units,Adults and Health,Other Agencies - Third Party P,0090204313,THE LIMES RESIDENTIAL HOME,"2,350.08",22/10/2019,,
Delivery Units,Adults and Health,Other Agencies - Third Party P,0090204324,THE LIMES RESIDENTIAL HOME,"2,304.00",22/10/2019,,
Delivery Units,Adults and Health,Other Agencies - Third Party P,0090204334,THE LIMES RESIDENTIAL HOME,"2,350.00",22/10/2019,,
Delivery Units,Adults and Health,Other Agencies - Third Party P,0090204337,THE LIMES RESIDENTIAL HOME,"2,350.08",22/10/2019,,
Delivery Units,Adults and Health,Other Agencies - Third Party P,0090204338,THE LIMES RESIDENTIAL HOME,"2,350.08",22/10/2019,,
Delivery Units,Adults and Health,Other Agencies - Third Party P,0090204346,THE LIMES RESIDENTIAL HOME,"2,186.88",22/10/2019,,
Delivery Units,Adults and Health,Other Agencies - Third Party P,0090204347,THE LIMES RESIDENTIAL HOME,"2,350.08",22/10/2019,,
Delivery Units,Adults and Health,Other Agencies - Third Party P,0090204350,THE LIMES RESIDENTIAL HOME,"2,186.88",22/10/2019,,
Delivery Units,Adults and Health,Other Agencies - Third Party P,0090204361,THE LIMES RESIDENTIAL HOME,"2,350.08",22/10/2019,,
Delivery Units,Adults and Health,Other Agencies - Third Party P,0090204371,THE LIMES RESIDENTIAL HOME,"3,000.00",22/10/2019,,
Delivery Units,Adults and Health,Other Agencies - Third Party P,0090204394,THE LIMES RESIDENTIAL HOME,"2,350.08",22/10/2019,,
Delivery Units,Adults and Health,Other Agencies - Third Party P,0090204399,THE LIMES RESIDENTIAL HOME,"2,350.08",22/10/2019,,
Delivery Units,Adults and Health,Other Agencies - Third Party P,0090204431,THE LIMES RESIDENTIAL HOME,"2,304.00",22/10/2019,,
Delivery Units,Adults and Health,Other Agencies - Third Party P,0090204434,THE LIMES RESIDENTIAL HOME,"2,600.00",22/10/2019,,
Delivery Units,Adults and Health,Other Agencies - Third Party P,0090204438,THE LIMES RESIDENTIAL HOME,"2,350.08",22/10/2019,,
Delivery Units,Adults and Health,Other Agencies - Third Party P,0090204277,MEERA NURSING HOME LIMITED,"3,542.86",17/10/2019,,
Delivery Units,Adults and Health,Other Agencies - Third Party P,0090206146,GREEN TREES,"3,300.00",25/10/2019,,
Delivery Units,Adults and Health,Other Agencies - Third Party P,0090202042,BUPA CARE HOMES,"2,505.51",16/10/2019,,
Delivery Units,Adults and Health,Other Agencies - Third Party P,0090204464,BUPA CARE HOMES,"2,546.74",22/10/2019,,
Delivery Units,Adults and Health,Other Agencies - Third Party P,0090201501,ANASTASIA LODGE,"2,800.00",09/10/2019,,
Delivery Units,Adults and Health,Other Agencies - Third Party P,0090201503,ANASTASIA LODGE,"3,600.00",09/10/2019,,
Delivery Units,Adults and Health,Other Agencies - Third Party P,0090201529,HILTON LODGE LTD.,"2,880.00",10/10/2019,,
Delivery Units,Adults and Health,Other Agencies - Third Party P,0090187933,FOUR SEASONS HEALTH CARE,"1,822.51",16/10/2019,,
Delivery Units,Adults and Health,Other Agencies - Third Party P,0090190964,FOUR SEASONS HEALTH CARE,"2,424.00",16/10/2019,,
Delivery Units,Adults and Health,Other Agencies - Third Party P,0090204190,FOUR SEASONS HEALTH CARE,"2,424.00",17/10/2019,,
Delivery Units,Adults and Health,Other Agencies - Third Party P,0090204164,VENTRY RESIDENTIAL CARE LTD,"3,100.00",17/10/2019,,
Delivery Units,Adults and Health,Other Agencies - Third Party P,0090204165,VENTRY RESIDENTIAL CARE LTD,"3,100.00",17/10/2019,,
Delivery Units,Adults and Health,Other Agencies - Third Party P,0090204166,VENTRY RESIDENTIAL CARE LTD,"3,000.00",17/10/2019,,
Delivery Units,Adults and Health,Other Agencies - Third Party P,0090201080,B & M CARE,"1,249.65",04/10/2019,,
Delivery Units,Adults and Health,Other Agencies - Third Party P,0090201081,B & M CARE,"2,343.09",04/10/2019,,
Delivery Units,Adults and Health,Other Agencies - Third Party P,0090201082,B & M CARE,"2,421.19",04/10/2019,,
Delivery Units,Adults and Health,Other Agencies - Third Party P,0090201083,B & M CARE,546.72,04/10/2019,,
Delivery Units,Adults and Health,Other Agencies - Third Party P,0090201092,SAGE NURSING HOME,"2,571.43",09/10/2019,,
Delivery Units,Adults and Health,Other Agencies - Third Party P,0090201095,SAGE NURSING HOME,"2,592.86",09/10/2019,,
Delivery Units,Adults and Health,Other Agencies - Third Party P,0090201097,SAGE NURSING HOME,"2,343.09",09/10/2019,,
Delivery Units,Adults and Health,Other Agencies - Third Party P,0090204472,APPLE TREE COURT CARE HOME,"3,764.29",22/10/2019,,
Delivery Units,Adults and Health,Other Agencies - Third Party P,0090204473,APPLE TREE COURT CARE HOME,"3,764.29",22/10/2019,,
Delivery Units,Adults and Health,Other Agencies - Third Party P,0090204278,R.M.B.I,"2,339.57",18/10/2019,,
Delivery Units,Adults and Health,Other Agencies - Third Party P,0090204267,TENTERDEN HOUSE,"3,957.50",17/10/2019,,
Delivery Units,Adults and Health,Other Agencies - Third Party P,0090201499,AUTUMN GARDENS,"2,880.00",09/10/2019,,
Delivery Units,Adults and Health,Other Agencies - Third Party P,0090201502,AUTUMN GARDENS,"3,560.00",09/10/2019,,
Delivery Units,Adults and Health,Other Agencies - Third Party P,0090201504,AUTUMN GARDENS,"3,160.00",09/10/2019,,
Delivery Units,Adults and Health,Other Agencies - Third Party P,0090204289,ABBEY RAVENSCROFT PARK NURSING HOME,"3,321.43",17/10/2019,,
Delivery Units,Adults and Health,Other Agencies - Third Party P,0090204290,ABBEY RAVENSCROFT PARK NURSING HOME,"3,321.43",17/10/2019,,
Delivery Units,Adults and Health,Other Agencies - Third Party P,0090204162,CARLTON COURT (TLC GROUP),546.72,17/10/2019,,
Delivery Units,Adults and Health,Other Agencies - Third Party P,0090206701,ASHTON LODGE CARE CENTRE,"6,469.18",30/10/2019,,
Delivery Units,Adults and Health,Other Agencies - Third Party P,0090201514,LIVABILITY,"3,424.00",09/10/2019,,
Delivery Units,Adults and Health,Other Agencies - Third Party P,0090201518,LIVABILITY,"3,180.00",09/10/2019,,
Delivery Units,Adults and Health,Other Agencies - Third Party P,0090206715,LIVABILITY,"3,180.00",30/10/2019,,
Delivery Units,Adults and Health,Other Agencies - Third Party P,0090206716,LIVABILITY,"3,424.00",30/10/2019,,
Delivery Units,Adults and Health,Other Agencies - Third Party P,0090202032,ALEXANDRA HOUSE (RUNWOOD HOMES),"2,189.70",16/10/2019,,
Delivery Units,Adults and Health,Other Agencies - Third Party P,0090204160,SONNET CARE HOMES (ESSEX) LTD,"4,871.43",17/10/2019,,
Delivery Units,Adults and Health,Other Agencies - Third Party P,0090204161,SONNET CARE HOMES (ESSEX) LTD,"4,714.29",17/10/2019,,
Delivery Units,Adults and Health,Other Agencies - Third Party P,0090206723,HEATHCOTE CARE HOME,"2,228.57",30/10/2019,,
Delivery Units,Adults and Health,Other Agencies - Third Party P,0090206724,HEATHCOTE CARE HOME,"4,178.40",30/10/2019,,
Delivery Units,Adults and Health,Other Agencies - Third Party P,0090206725,HEATHCOTE CARE HOME,"4,317.68",30/10/2019,,
Delivery Units,Adults and Health,Other Agencies - Third Party P,0090204467,WILTON HOUSE LTD,"2,621.01",22/10/2019,,
Delivery Units,Adults and Health,Other Agencies - Third Party P,0090204468,WILTON HOUSE LTD,"2,611.48",22/10/2019,,
Delivery Units,Adults and Health,Other Agencies - Third Party P,0090201520,A.H.J. DAVID LTD T/A FLORENCE HOUSE,"3,200.00",09/10/2019,,
Delivery Units,Adults and Health,Direct Transfer Payments to So,0090202529,REDACTED - PERSONAL DATA,"2,931.20",16/10/2019,,
Delivery Units,Adults and Health,Direct Transfer Payments to So,0090202785,REDACTED - PERSONAL DATA,"3,846.40",16/10/2019,,
Delivery Units,Adults and Health,Direct Transfer Payments to So,0090204727,REDACTED - PERSONAL DATA,"2,827.10",22/10/2019,,
Delivery Units,Adults and Health,Direct Transfer Payments to So,0090202249,REDACTED - PERSONAL DATA,"3,834.44",16/10/2019,,
Delivery Units,Adults and Health,Direct Transfer Payments to So,0090202512,REDACTED - PERSONAL DATA,240.00,16/10/2019,,
Delivery Units,Adults and Health,Direct Transfer Payments to So,0090202193,REDACTED - PERSONAL DATA,295.68,16/10/2019,,
Delivery Units,Adults and Health,Direct Transfer Payments to So,0090202923,REDACTED - PERSONAL DATA,"1,560.72",16/10/2019,,
Delivery Units,Adults and Health,Direct Transfer Payments to So,0090202124,REDACTED - PERSONAL DATA,961.60,16/10/2019,,
Delivery Units,Adults and Health,Direct Transfer Payments to So,0090202897,REDACTED - PERSONAL DATA,144.24,16/10/2019,,
Delivery Units,Adults and Health,Direct Transfer Payments to So,0090202173,REDACTED - PERSONAL DATA,"2,638.76",16/10/2019,,
Delivery Units,Adults and Health,Direct Transfer Payments to So,0090202756,REDACTED - PERSONAL DATA,"1,185.32",16/10/2019,,
Delivery Units,Adults and Health,Direct Transfer Payments to So,0090202775,REDACTED - PERSONAL DATA,795.56,16/10/2019,,
Delivery Units,Adults and Health,Direct Transfer Payments to So,0090202250,REDACTED - PERSONAL DATA,852.76,16/10/2019,,
Delivery Units,Adults and Health,Direct Transfer Payments to So,0090202550,REDACTED - PERSONAL DATA,889.48,16/10/2019,,
Delivery Units,Adults and Health,Direct Transfer Payments to So,0090202179,REDACTED - PERSONAL DATA,456.76,16/10/2019,,
Delivery Units,Adults and Health,Direct Transfer Payments to So,0090202305,REDACTED - PERSONAL DATA,"2,703.12",16/10/2019,,
Delivery Units,Adults and Health,Direct Transfer Payments to So,0090203013,REDACTED - PERSONAL DATA,349.12,16/10/2019,,
Delivery Units,Adults and Health,Direct Transfer Payments to So,0090202624,REDACTED - PERSONAL DATA,377.88,16/10/2019,,
Delivery Units,Adults and Health,Direct Transfer Payments to So,0090202731,REDACTED - PERSONAL DATA,913.52,16/10/2019,,
Delivery Units,Adults and Health,Direct Transfer Payments to So,0090202282,REDACTED - PERSONAL DATA,"1,143.16",16/10/2019,,
Delivery Units,Adults and Health,Direct Transfer Payments to So,0090202857,REDACTED - PERSONAL DATA,"2,933.80",16/10/2019,,
Delivery Units,Adults and Health,Direct Transfer Payments to So,0090202220,REDACTED - PERSONAL DATA,"1,238.92",16/10/2019,,
Delivery Units,Adults and Health,Direct Transfer Payments to So,0090202792,REDACTED - PERSONAL DATA,"1,545.48",16/10/2019,,
Delivery Units,Adults and Health,Direct Transfer Payments to So,0090202158,REDACTED - PERSONAL DATA,"1,699.72",16/10/2019,,
Delivery Units,Adults and Health,Direct Transfer Payments to So,0090203016,REDACTED - PERSONAL DATA,"1,260.00",16/10/2019,,
Delivery Units,Adults and Health,Fees and Charges,0090202392,REDACTED - PERSONAL DATA,-428.72,16/10/2019,,
Delivery Units,Adults and Health,Direct Transfer Payments to So,0090202827,REDACTED - PERSONAL DATA,640.00,16/10/2019,,
Delivery Units,Adults and Health,Direct Transfer Payments to So,0090202864,REDACTED - PERSONAL DATA,"1,029.76",16/10/2019,,
Delivery Units,Adults and Health,Direct Transfer Payments to So,0090202801,REDACTED - PERSONAL DATA,351.52,16/10/2019,,
Delivery Units,Adults and Health,Direct Transfer Payments to So,0090202686,REDACTED - PERSONAL DATA,"1,353.04",16/10/2019,,
Delivery Units,Adults and Health,Direct Transfer Payments to So,0090202843,REDACTED - PERSONAL DATA,490.04,16/10/2019,,
Delivery Units,Adults and Health,Direct Transfer Payments to So,0090202457,REDACTED - PERSONAL DATA,975.36,16/10/2019,,
Delivery Units,Adults and Health,Direct Transfer Payments to So,0090202450,REDACTED - PERSONAL DATA,800.00,16/10/2019,,
Delivery Units,Adults and Health,Fees and Charges,0090203077,REDACTED - PERSONAL DATA,-213.88,16/10/2019,,
Delivery Units,Adults and Health,Direct Transfer Payments to So,0090202463,REDACTED - PERSONAL DATA,"2,349.16",16/10/2019,,
Delivery Units,Adults and Health,Direct Transfer Payments to So,0090203081,REDACTED - PERSONAL DATA,722.76,16/10/2019,,
Delivery Units,Adults and Health,Direct Transfer Payments to So,0090202941,REDACTED - PERSONAL DATA,966.40,16/10/2019,,
Delivery Units,Adults and Health,Direct Transfer Payments to So,0090202852,REDACTED - PERSONAL DATA,480.80,16/10/2019,,
Delivery Units,Adults and Health,Direct Transfer Payments to So,0090202942,REDACTED - PERSONAL DATA,"3,444.00",16/10/2019,,
Delivery Units,Adults and Health,Direct Transfer Payments to So,0090202855,REDACTED - PERSONAL DATA,451.92,16/10/2019,,
Delivery Units,Adults and Health,Direct Transfer Payments to So,0090202535,REDACTED - PERSONAL DATA,649.08,16/10/2019,,
Delivery Units,Adults and Health,Direct Transfer Payments to So,0090202478,REDACTED - PERSONAL DATA,348.00,16/10/2019,,
Delivery Units,Adults and Health,Direct Transfer Payments to So,0090202415,REDACTED - PERSONAL DATA,547.08,16/10/2019,,
Delivery Units,Adults and Health,Direct Transfer Payments to So,0090203078,REDACTED - PERSONAL DATA,376.44,16/10/2019,,
Delivery Units,Adults and Health,Direct Transfer Payments to So,0090202859,REDACTED - PERSONAL DATA,"4,093.84",16/10/2019,,
Delivery Units,Adults and Health,Direct Transfer Payments to So,0090202360,REDACTED - PERSONAL DATA,700.00,16/10/2019,,
Delivery Units,Adults and Health,Direct Transfer Payments to So,0090202384,REDACTED - PERSONAL DATA,"1,560.72",16/10/2019,,
Delivery Units,Adults and Health,Direct Transfer Payments to So,0090203086,REDACTED - PERSONAL DATA,511.43,16/10/2019,,
Delivery Units,Adults and Health,Direct Transfer Payments to So,0090202419,REDACTED - PERSONAL DATA,560.00,16/10/2019,,
Delivery Units,Adults and Health,Direct Transfer Payments to So,0090202687,REDACTED - PERSONAL DATA,"2,316.96",16/10/2019,,
Delivery Units,Adults and Health,Direct Transfer Payments to So,0090202484,REDACTED - PERSONAL DATA,"1,431.96",16/10/2019,,
Delivery Units,Adults and Health,Direct Transfer Payments to So,0090202365,REDACTED - PERSONAL DATA,410.96,16/10/2019,,
Delivery Units,Adults and Health,Direct Transfer Payments to So,0090202364,REDACTED - PERSONAL DATA,360.60,16/10/2019,,
Delivery Units,Adults and Health,Direct Transfer Payments to So,0090195448,REDACTED - PERSONAL DATA,-37.86,16/10/2019,,
Delivery Units,Adults and Health,Direct Transfer Payments to So,0090202891,REDACTED - PERSONAL DATA,"1,208.00",16/10/2019,,
Delivery Units,Adults and Health,Fees and Charges,0090203082,REDACTED - PERSONAL DATA,6.29,16/10/2019,,
Delivery Units,Adults and Health,Direct Transfer Payments to So,0090202382,REDACTED - PERSONAL DATA,"1,872.00",16/10/2019,,
Delivery Units,Adults and Health,Direct Transfer Payments to So,0090202870,REDACTED - PERSONAL DATA,844.40,16/10/2019,,
Delivery Units,Adults and Health,Direct Transfer Payments to So,0090202904,REDACTED - PERSONAL DATA,"3,279.20",16/10/2019,,
Delivery Units,Adults and Health,Direct Transfer Payments to So,0090202548,REDACTED - PERSONAL DATA,392.00,16/10/2019,,
Delivery Units,Adults and Health,Fees and Charges,0090202966,REDACTED - PERSONAL DATA,-241.60,16/10/2019,,
Delivery Units,Adults and Health,Direct Transfer Payments to So,0090202493,REDACTED - PERSONAL DATA,960.00,16/10/2019,,
Delivery Units,Adults and Health,Fees and Charges,0090203083,REDACTED - PERSONAL DATA,-53.74,16/10/2019,,
Delivery Units,Adults and Health,Direct Transfer Payments to So,0090202373,REDACTED - PERSONAL DATA,"2,066.00",16/10/2019,,
Delivery Units,Adults and Health,Direct Transfer Payments to So,0090202875,REDACTED - PERSONAL DATA,"2,092.96",16/10/2019,,
Delivery Units,Adults and Health,Direct Transfer Payments to So,0090202551,REDACTED - PERSONAL DATA,231.40,16/10/2019,,
Delivery Units,Adults and Health,Direct Transfer Payments to So,0090202917,REDACTED - PERSONAL DATA,810.00,16/10/2019,,
Delivery Units,Adults and Health,Direct Transfer Payments to So,0090202378,REDACTED - PERSONAL DATA,478.48,16/10/2019,,
Delivery Units,Adults and Health,Direct Transfer Payments to So,0090202498,REDACTED - PERSONAL DATA,"2,400.00",16/10/2019,,
Delivery Units,Adults and Health,Direct Transfer Payments to So,0090202436,REDACTED - PERSONAL DATA,772.32,16/10/2019,,
Delivery Units,Adults and Health,Direct Transfer Payments to So,0090202836,REDACTED - PERSONAL DATA,"1,586.48",16/10/2019,,
Delivery Units,Adults and Health,Direct Transfer Payments to So,0090202388,REDACTED - PERSONAL DATA,"2,518.48",16/10/2019,,
Delivery Units,Adults and Health,Direct Transfer Payments to So,0090202880,REDACTED - PERSONAL DATA,"1,351.56",16/10/2019,,
Delivery Units,Adults and Health,Direct Transfer Payments to So,0090202596,REDACTED - PERSONAL DATA,792.88,16/10/2019,,
Delivery Units,Adults and Health,Direct Transfer Payments to So,0090202835,REDACTED - PERSONAL DATA,384.64,16/10/2019,,
Delivery Units,Adults and Health,Direct Transfer Payments to So,0090203087,REDACTED - PERSONAL DATA,714.60,16/10/2019,,
Delivery Units,Adults and Health,Direct Transfer Payments to So,0090202389,REDACTED - PERSONAL DATA,321.80,16/10/2019,,
Delivery Units,Adults and Health,Direct Transfer Payments to So,0090202808,REDACTED - PERSONAL DATA,390.00,16/10/2019,,
Delivery Units,Adults and Health,Direct Transfer Payments to So,0090202506,REDACTED - PERSONAL DATA,"1,582.00",16/10/2019,,
Delivery Units,Adults and Health,Direct Transfer Payments to So,0090202601,REDACTED - PERSONAL DATA,136.00,16/10/2019,,
Delivery Units,Adults and Health,Direct Transfer Payments to So,0090202981,REDACTED - PERSONAL DATA,"1,113.44",16/10/2019,,
Delivery Units,Adults and Health,Direct Transfer Payments to So,0090202507,REDACTED - PERSONAL DATA,"4,608.04",16/10/2019,,
Delivery Units,Adults and Health,Direct Transfer Payments to So,0090202510,REDACTED - PERSONAL DATA,"2,520.00",16/10/2019,,
Delivery Units,Adults and Health,Direct Transfer Payments to So,0090202898,REDACTED - PERSONAL DATA,"1,351.56",16/10/2019,,
Delivery Units,Adults and Health,Direct Transfer Payments to So,0090202609,REDACTED - PERSONAL DATA,"2,300.00",16/10/2019,,
Delivery Units,Adults and Health,Direct Transfer Payments to So,0090202655,REDACTED - PERSONAL DATA,589.68,16/10/2019,,
Delivery Units,Adults and Health,Direct Transfer Payments to So,0090202992,REDACTED - PERSONAL DATA,730.92,16/10/2019,,
Delivery Units,Adults and Health,Direct Transfer Payments to So,0090202660,REDACTED - PERSONAL DATA,917.12,16/10/2019,,
Delivery Units,Adults and Health,Direct Transfer Payments to So,0090203071,REDACTED - PERSONAL DATA,-38.28,16/10/2019,,
Delivery Units,Adults and Health,Direct Transfer Payments to So,0090202997,REDACTED - PERSONAL DATA,"1,346.12",16/10/2019,,
Delivery Units,Adults and Health,Direct Transfer Payments to So,0090202821,REDACTED - PERSONAL DATA,140.00,16/10/2019,,
Delivery Units,Adults and Health,Direct Transfer Payments to So,0090199520,REDACTED - PERSONAL DATA,496.48,01/10/2019,,
Delivery Units,Adults and Health,Direct Transfer Payments to So,0090202670,REDACTED - PERSONAL DATA,"1,238.92",16/10/2019,,
Delivery Units,Adults and Health,Direct Transfer Payments to So,0090202819,REDACTED - PERSONAL DATA,903.92,16/10/2019,,
Delivery Units,Adults and Health,Direct Transfer Payments to So,0090202630,REDACTED - PERSONAL DATA,"2,796.44",16/10/2019,,
Delivery Units,Adults and Health,Direct Transfer Payments to So,0090202673,REDACTED - PERSONAL DATA,482.72,16/10/2019,,
Delivery Units,Adults and Health,Direct Transfer Payments to So,0090202626,REDACTED - PERSONAL DATA,"1,238.92",16/10/2019,,
Delivery Units,Adults and Health,Direct Transfer Payments to So,0090204737,REDACTED - PERSONAL DATA,"4,276.86",22/10/2019,,
Delivery Units,Adults and Health,Direct Transfer Payments to So,0090202591,REDACTED - PERSONAL DATA,"1,194.24",16/10/2019,,
Delivery Units,Adults and Health,Direct Transfer Payments to So,0090202636,REDACTED - PERSONAL DATA,"3,000.00",16/10/2019,,
Delivery Units,Adults and Health,Direct Transfer Payments to So,0090202640,REDACTED - PERSONAL DATA,"2,843.24",16/10/2019,,
Delivery Units,Adults and Health,Direct Transfer Payments to So,0090202824,REDACTED - PERSONAL DATA,"2,751.32",16/10/2019,,
Delivery Units,Adults and Health,Direct Transfer Payments to So,0090202643,REDACTED - PERSONAL DATA,"2,781.72",16/10/2019,,
Delivery Units,Adults and Health,Direct Transfer Payments to So,0090202838,REDACTED - PERSONAL DATA,586.96,16/10/2019,,
Delivery Units,Adults and Health,Direct Transfer Payments to So,0090202689,REDACTED - PERSONAL DATA,675.80,16/10/2019,,
Delivery Units,Adults and Health,Direct Transfer Payments to So,0090203020,REDACTED - PERSONAL DATA,"2,331.60",16/10/2019,,
Delivery Units,Adults and Health,Direct Transfer Payments to So,0090202647,REDACTED - PERSONAL DATA,"1,802.08",16/10/2019,,
Delivery Units,Adults and Health,Direct Transfer Payments to So,0090202600,REDACTED - PERSONAL DATA,"1,351.56",16/10/2019,,
Delivery Units,Adults and Health,Direct Transfer Payments to So,0090202839,REDACTED - PERSONAL DATA,"2,375.08",16/10/2019,,
Delivery Units,Adults and Health,Fees and Charges,0090200042,REDACTED - PERSONAL DATA,-0.04,01/10/2019,,
Delivery Units,Adults and Health,Fees and Charges,0090200043,REDACTED - PERSONAL DATA,-0.04,01/10/2019,,
Delivery Units,Adults and Health,Fees and Charges,0090200044,REDACTED - PERSONAL DATA,-0.04,01/10/2019,,
Delivery Units,Adults and Health,Fees and Charges,0090200045,REDACTED - PERSONAL DATA,0.12,01/10/2019,,
Delivery Units,Adults and Health,Fees and Charges,0090203046,REDACTED - PERSONAL DATA,0.14,16/10/2019,,
Delivery Units,Adults and Health,Fees and Charges,0090203072,REDACTED - PERSONAL DATA,-758.78,16/10/2019,,
Delivery Units,Adults and Health,Other Agencies - Third Party P,0090205248,WESTMINSTER HOMECARE LTD,257.15,24/10/2019,,
Delivery Units,Adults and Health,Other Agencies - Third Party P,0090205249,WESTMINSTER HOMECARE LTD,231.90,24/10/2019,,
Delivery Units,Adults and Health,Other Agencies - Third Party P,0090205250,WESTMINSTER HOMECARE LTD,151.79,24/10/2019,,
Delivery Units,Adults and Health,Other Agencies - Third Party P,0090205251,WESTMINSTER HOMECARE LTD,63.25,24/10/2019,,
Delivery Units,Adults and Health,Other Agencies - Third Party P,0090205252,WESTMINSTER HOMECARE LTD,109.65,24/10/2019,,
Delivery Units,Adults and Health,Other Agencies - Third Party P,0090205253,WESTMINSTER HOMECARE LTD,88.55,24/10/2019,,
Delivery Units,Adults and Health,Other Agencies - Third Party P,0090205254,WESTMINSTER HOMECARE LTD,42.15,24/10/2019,,
Delivery Units,Adults and Health,Other Agencies - Third Party P,0090205256,WESTMINSTER HOMECARE LTD,206.57,24/10/2019,,
Delivery Units,Adults and Health,Other Agencies - Third Party P,0090205257,WESTMINSTER HOMECARE LTD,113.81,24/10/2019,,
Delivery Units,Adults and Health,Other Agencies - Third Party P,0090205258,WESTMINSTER HOMECARE LTD,16.86,24/10/2019,,
Delivery Units,Adults and Health,Other Agencies - Third Party P,0090205259,WESTMINSTER HOMECARE LTD,16.86,24/10/2019,,
Delivery Units,Adults and Health,Other Agencies - Third Party P,0090205260,WESTMINSTER HOMECARE LTD,25.29,24/10/2019,,
Delivery Units,Adults and Health,Other Agencies - Third Party P,0090205261,WESTMINSTER HOMECARE LTD,282.51,24/10/2019,,
Delivery Units,Adults and Health,Other Agencies - Third Party P,0090205262,WESTMINSTER HOMECARE LTD,84.35,24/10/2019,,
Delivery Units,Adults and Health,Other Agencies - Third Party P,0090205263,WESTMINSTER HOMECARE LTD,143.35,24/10/2019,,
Delivery Units,Adults and Health,Other Agencies - Third Party P,0090205264,WESTMINSTER HOMECARE LTD,8.43,24/10/2019,,
Delivery Units,Adults and Health,Other Agencies - Third Party P,0090205267,WESTMINSTER HOMECARE LTD,33.73,24/10/2019,,
Delivery Units,Adults and Health,Other Agencies - Third Party P,0090205268,WESTMINSTER HOMECARE LTD,353.42,24/10/2019,,
Delivery Units,Adults and Health,Other Agencies - Third Party P,0090205269,WESTMINSTER HOMECARE LTD,337.61,24/10/2019,,
Delivery Units,Adults and Health,Other Agencies - Third Party P,0090205270,WESTMINSTER HOMECARE LTD,134.90,24/10/2019,,
Delivery Units,Adults and Health,Other Agencies - Third Party P,0090205271,WESTMINSTER HOMECARE LTD,252.94,24/10/2019,,
Delivery Units,Adults and Health,Other Agencies - Third Party P,0090205272,WESTMINSTER HOMECARE LTD,79.01,24/10/2019,,
Delivery Units,Adults and Health,Other Agencies - Third Party P,0090205273,WESTMINSTER HOMECARE LTD,63.25,24/10/2019,,
Delivery Units,Adults and Health,Other Agencies - Third Party P,0090205274,WESTMINSTER HOMECARE LTD,59.01,24/10/2019,,
Delivery Units,Adults and Health,Other Agencies - Third Party P,0090205275,WESTMINSTER HOMECARE LTD,59.01,24/10/2019,,
Delivery Units,Adults and Health,Other Agencies - Third Party P,0090205277,WESTMINSTER HOMECARE LTD,117.25,24/10/2019,,
Delivery Units,Adults and Health,Other Agencies - Third Party P,0090205278,WESTMINSTER HOMECARE LTD,413.21,24/10/2019,,
Delivery Units,Adults and Health,Other Agencies - Third Party P,0090205279,WESTMINSTER HOMECARE LTD,54.81,24/10/2019,,
Delivery Units,Adults and Health,Other Agencies - Third Party P,0090205281,WESTMINSTER HOMECARE LTD,88.55,24/10/2019,,
Delivery Units,Adults and Health,Other Agencies - Third Party P,0090205282,WESTMINSTER HOMECARE LTD,8.43,24/10/2019,,
Delivery Units,Adults and Health,Other Agencies - Third Party P,0090205283,WESTMINSTER HOMECARE LTD,168.63,24/10/2019,,
Delivery Units,Adults and Health,Other Agencies - Third Party P,0090205284,WESTMINSTER HOMECARE LTD,265.58,24/10/2019,,
Delivery Units,Adults and Health,Other Agencies - Third Party P,0090205285,WESTMINSTER HOMECARE LTD,261.36,24/10/2019,,
Delivery Units,Adults and Health,Other Agencies - Third Party P,0090205286,WESTMINSTER HOMECARE LTD,230.77,24/10/2019,,
Delivery Units,Adults and Health,Other Agencies - Third Party P,0090205287,WESTMINSTER HOMECARE LTD,160.21,24/10/2019,,
Delivery Units,Adults and Health,Other Agencies - Third Party P,0090205288,WESTMINSTER HOMECARE LTD,88.55,24/10/2019,,
Delivery Units,Adults and Health,Other Agencies - Third Party P,0090205289,WESTMINSTER HOMECARE LTD,108.24,24/10/2019,,
Delivery Units,Adults and Health,Other Agencies - Third Party P,0090205290,WESTMINSTER HOMECARE LTD,88.55,24/10/2019,,
Delivery Units,Adults and Health,Other Agencies - Third Party P,0090205291,WESTMINSTER HOMECARE LTD,42.15,24/10/2019,,
Delivery Units,Adults and Health,Other Agencies - Third Party P,0090205292,WESTMINSTER HOMECARE LTD,50.05,24/10/2019,,
Delivery Units,Adults and Health,Other Agencies - Third Party P,0090205294,WESTMINSTER HOMECARE LTD,25.30,24/10/2019,,
Delivery Units,Adults and Health,Other Agencies - Third Party P,0090205295,WESTMINSTER HOMECARE LTD,206.57,24/10/2019,,
Delivery Units,Adults and Health,Other Agencies - Third Party P,0090205296,WESTMINSTER HOMECARE LTD,118.02,24/10/2019,,
Delivery Units,Adults and Health,Other Agencies - Third Party P,0090205297,WESTMINSTER HOMECARE LTD,16.86,24/10/2019,,
Delivery Units,Adults and Health,Other Agencies - Third Party P,0090205298,WESTMINSTER HOMECARE LTD,16.86,24/10/2019,,
Delivery Units,Adults and Health,Other Agencies - Third Party P,0090205299,WESTMINSTER HOMECARE LTD,16.86,24/10/2019,,
Delivery Units,Adults and Health,Other Agencies - Third Party P,0090205300,WESTMINSTER HOMECARE LTD,274.08,24/10/2019,,
Delivery Units,Adults and Health,Other Agencies - Third Party P,0090205301,WESTMINSTER HOMECARE LTD,84.35,24/10/2019,,
Delivery Units,Adults and Health,Other Agencies - Third Party P,0090205302,WESTMINSTER HOMECARE LTD,143.34,24/10/2019,,
Delivery Units,Adults and Health,Other Agencies - Third Party P,0090205303,WESTMINSTER HOMECARE LTD,8.43,24/10/2019,,
Delivery Units,Adults and Health,Other Agencies - Third Party P,0090205306,WESTMINSTER HOMECARE LTD,35.98,24/10/2019,,
Delivery Units,Adults and Health,Other Agencies - Third Party P,0090205307,WESTMINSTER HOMECARE LTD,352.28,24/10/2019,,
Delivery Units,Adults and Health,Other Agencies - Third Party P,0090205308,WESTMINSTER HOMECARE LTD,349.42,24/10/2019,,
Delivery Units,Adults and Health,Other Agencies - Third Party P,0090205309,WESTMINSTER HOMECARE LTD,75.89,24/10/2019,,
Delivery Units,Adults and Health,Other Agencies - Third Party P,0090205310,WESTMINSTER HOMECARE LTD,265.58,24/10/2019,,
Delivery Units,Adults and Health,Other Agencies - Third Party P,0090205311,WESTMINSTER HOMECARE LTD,83.51,24/10/2019,,
Delivery Units,Adults and Health,Other Agencies - Third Party P,0090205312,WESTMINSTER HOMECARE LTD,63.25,24/10/2019,,
Delivery Units,Adults and Health,Other Agencies - Third Party P,0090205313,WESTMINSTER HOMECARE LTD,59.01,24/10/2019,,
Delivery Units,Adults and Health,Other Agencies - Third Party P,0090205314,WESTMINSTER HOMECARE LTD,54.80,24/10/2019,,
Delivery Units,Adults and Health,Other Agencies - Third Party P,0090205317,WESTMINSTER HOMECARE LTD,118.09,24/10/2019,,
Delivery Units,Adults and Health,Other Agencies - Third Party P,0090205318,WESTMINSTER HOMECARE LTD,413.21,24/10/2019,,
Delivery Units,Adults and Health,Other Agencies - Third Party P,0090205319,WESTMINSTER HOMECARE LTD,59.03,24/10/2019,,
Delivery Units,Adults and Health,Other Agencies - Third Party P,0090205321,WESTMINSTER HOMECARE LTD,88.55,24/10/2019,,
Delivery Units,Adults and Health,Other Agencies - Third Party P,0090205322,WESTMINSTER HOMECARE LTD,8.43,24/10/2019,,
Delivery Units,Adults and Health,Other Agencies - Third Party P,0090205323,WESTMINSTER HOMECARE LTD,168.63,24/10/2019,,
Delivery Units,Adults and Health,Other Agencies - Third Party P,0090205324,WESTMINSTER HOMECARE LTD,261.37,24/10/2019,,
Delivery Units,Adults and Health,Other Agencies - Third Party P,0090205325,WESTMINSTER HOMECARE LTD,252.93,24/10/2019,,
Delivery Units,Adults and Health,Other Agencies - Third Party P,0090205326,WESTMINSTER HOMECARE LTD,235.27,24/10/2019,,
Delivery Units,Adults and Health,Other Agencies - Third Party P,0090205327,WESTMINSTER HOMECARE LTD,160.21,24/10/2019,,
Delivery Units,Adults and Health,Other Agencies - Third Party P,0090205328,WESTMINSTER HOMECARE LTD,88.55,24/10/2019,,
Delivery Units,Adults and Health,Other Agencies - Third Party P,0090205329,WESTMINSTER HOMECARE LTD,109.65,24/10/2019,,
Delivery Units,Adults and Health,Other Agencies - Third Party P,0090205330,WESTMINSTER HOMECARE LTD,84.33,24/10/2019,,
Delivery Units,Adults and Health,Other Agencies - Third Party P,0090205331,WESTMINSTER HOMECARE LTD,42.15,24/10/2019,,
Delivery Units,Adults and Health,Other Agencies - Third Party P,0090205332,WESTMINSTER HOMECARE LTD,81.82,24/10/2019,,
Delivery Units,Adults and Health,Other Agencies - Third Party P,0090205334,WESTMINSTER HOMECARE LTD,162.48,24/10/2019,,
Delivery Units,Adults and Health,Other Agencies - Third Party P,0090205335,WESTMINSTER HOMECARE LTD,206.57,24/10/2019,,
Delivery Units,Adults and Health,Other Agencies - Third Party P,0090205336,WESTMINSTER HOMECARE LTD,16.86,24/10/2019,,
Delivery Units,Adults and Health,Other Agencies - Third Party P,0090205337,WESTMINSTER HOMECARE LTD,12.65,24/10/2019,,
Delivery Units,Adults and Health,Other Agencies - Third Party P,0090205338,WESTMINSTER HOMECARE LTD,25.29,24/10/2019,,
Delivery Units,Adults and Health,Other Agencies - Third Party P,0090205339,WESTMINSTER HOMECARE LTD,265.65,24/10/2019,,
Delivery Units,Adults and Health,Other Agencies - Third Party P,0090205340,WESTMINSTER HOMECARE LTD,84.35,24/10/2019,,
Delivery Units,Adults and Health,Other Agencies - Third Party P,0090205341,WESTMINSTER HOMECARE LTD,147.56,24/10/2019,,
Delivery Units,Adults and Health,Other Agencies - Third Party P,0090205342,WESTMINSTER HOMECARE LTD,8.43,24/10/2019,,
Delivery Units,Adults and Health,Other Agencies - Third Party P,0090205345,WESTMINSTER HOMECARE LTD,44.42,24/10/2019,,
Delivery Units,Adults and Health,Other Agencies - Third Party P,0090205346,WESTMINSTER HOMECARE LTD,352.01,24/10/2019,,
Delivery Units,Adults and Health,Other Agencies - Third Party P,0090205347,WESTMINSTER HOMECARE LTD,343.79,24/10/2019,,
Delivery Units,Adults and Health,Other Agencies - Third Party P,0090205348,WESTMINSTER HOMECARE LTD,113.82,24/10/2019,,
Delivery Units,Adults and Health,Other Agencies - Third Party P,0090205349,WESTMINSTER HOMECARE LTD,257.15,24/10/2019,,
Delivery Units,Adults and Health,Other Agencies - Third Party P,0090205350,WESTMINSTER HOMECARE LTD,83.79,24/10/2019,,
Delivery Units,Adults and Health,Other Agencies - Third Party P,0090205351,WESTMINSTER HOMECARE LTD,63.25,24/10/2019,,
Delivery Units,Adults and Health,Other Agencies - Third Party P,0090205352,WESTMINSTER HOMECARE LTD,59.01,24/10/2019,,
Delivery Units,Adults and Health,Other Agencies - Third Party P,0090205353,WESTMINSTER HOMECARE LTD,50.59,24/10/2019,,
Delivery Units,Adults and Health,Other Agencies - Third Party P,0090205356,WESTMINSTER HOMECARE LTD,117.81,24/10/2019,,
Delivery Units,Adults and Health,Other Agencies - Third Party P,0090205357,WESTMINSTER HOMECARE LTD,413.21,24/10/2019,,
Delivery Units,Adults and Health,Other Agencies - Third Party P,0090205358,WESTMINSTER HOMECARE LTD,59.03,24/10/2019,,
Delivery Units,Adults and Health,Other Agencies - Third Party P,0090205360,WESTMINSTER HOMECARE LTD,84.33,24/10/2019,,
Delivery Units,Adults and Health,Other Agencies - Third Party P,0090205361,WESTMINSTER HOMECARE LTD,16.86,24/10/2019,,
Delivery Units,Adults and Health,Other Agencies - Third Party P,0090205362,WESTMINSTER HOMECARE LTD,164.41,24/10/2019,,
Delivery Units,Adults and Health,Other Agencies - Third Party P,0090205363,WESTMINSTER HOMECARE LTD,261.37,24/10/2019,,
Delivery Units,Adults and Health,Other Agencies - Third Party P,0090205364,WESTMINSTER HOMECARE LTD,265.58,24/10/2019,,
Delivery Units,Adults and Health,Other Agencies - Third Party P,0090205365,WESTMINSTER HOMECARE LTD,229.37,24/10/2019,,
Delivery Units,Adults and Health,Other Agencies - Third Party P,0090205366,WESTMINSTER HOMECARE LTD,164.43,24/10/2019,,
Delivery Units,Adults and Health,Other Agencies - Third Party P,0090205367,WESTMINSTER HOMECARE LTD,80.11,24/10/2019,,
Delivery Units,Adults and Health,Other Agencies - Third Party P,0090205368,WESTMINSTER HOMECARE LTD,100.93,24/10/2019,,
Delivery Units,Adults and Health,Other Agencies - Third Party P,0090205369,WESTMINSTER HOMECARE LTD,84.33,24/10/2019,,
Delivery Units,Adults and Health,Other Agencies - Third Party P,0090205370,WESTMINSTER HOMECARE LTD,42.15,24/10/2019,,
Delivery Units,Adults and Health,Other Agencies - Third Party P,0090205371,WESTMINSTER HOMECARE LTD,78.72,24/10/2019,,
Delivery Units,Adults and Health,Other Agencies - Third Party P,0090205373,WESTMINSTER HOMECARE LTD,177.10,24/10/2019,,
Delivery Units,Adults and Health,Other Agencies - Third Party P,0090205374,WESTMINSTER HOMECARE LTD,206.57,24/10/2019,,
Delivery Units,Adults and Health,Other Agencies - Third Party P,0090205375,WESTMINSTER HOMECARE LTD,16.86,24/10/2019,,
Delivery Units,Adults and Health,Other Agencies - Third Party P,0090205376,WESTMINSTER HOMECARE LTD,8.43,24/10/2019,,
Delivery Units,Adults and Health,Other Agencies - Third Party P,0090205377,WESTMINSTER HOMECARE LTD,25.29,24/10/2019,,
Delivery Units,Adults and Health,Other Agencies - Third Party P,0090205378,WESTMINSTER HOMECARE LTD,278.30,24/10/2019,,
Delivery Units,Adults and Health,Other Agencies - Third Party P,0090205379,WESTMINSTER HOMECARE LTD,84.35,24/10/2019,,
Delivery Units,Adults and Health,Other Agencies - Third Party P,0090205380,WESTMINSTER HOMECARE LTD,143.35,24/10/2019,,
Delivery Units,Adults and Health,Other Agencies - Third Party P,0090205381,WESTMINSTER HOMECARE LTD,8.43,24/10/2019,,
Delivery Units,Adults and Health,Other Agencies - Third Party P,0090205384,WESTMINSTER HOMECARE LTD,36.83,24/10/2019,,
Delivery Units,Adults and Health,Other Agencies - Third Party P,0090205385,WESTMINSTER HOMECARE LTD,352.57,24/10/2019,,
Delivery Units,Adults and Health,Other Agencies - Third Party P,0090205386,WESTMINSTER HOMECARE LTD,351.67,24/10/2019,,
Delivery Units,Adults and Health,Other Agencies - Third Party P,0090205387,WESTMINSTER HOMECARE LTD,130.68,24/10/2019,,
Delivery Units,Adults and Health,Other Agencies - Third Party P,0090205388,WESTMINSTER HOMECARE LTD,265.58,24/10/2019,,
Delivery Units,Adults and Health,Other Agencies - Third Party P,0090205389,WESTMINSTER HOMECARE LTD,63.25,24/10/2019,,
Delivery Units,Adults and Health,Other Agencies - Third Party P,0090205390,WESTMINSTER HOMECARE LTD,59.01,24/10/2019,,
Delivery Units,Adults and Health,Other Agencies - Third Party P,0090205391,WESTMINSTER HOMECARE LTD,54.80,24/10/2019,,
Delivery Units,Adults and Health,Other Agencies - Third Party P,0090205393,WESTMINSTER HOMECARE LTD,113.59,24/10/2019,,
Delivery Units,Adults and Health,Other Agencies - Third Party P,0090205394,WESTMINSTER HOMECARE LTD,413.21,24/10/2019,,
Delivery Units,Adults and Health,Other Agencies - Third Party P,0090205395,WESTMINSTER HOMECARE LTD,50.60,24/10/2019,,
Delivery Units,Adults and Health,Other Agencies - Third Party P,0090205397,WESTMINSTER HOMECARE LTD,88.55,24/10/2019,,
Delivery Units,Adults and Health,Other Agencies - Third Party P,0090205398,WESTMINSTER HOMECARE LTD,16.86,24/10/2019,,
Delivery Units,Adults and Health,Other Agencies - Third Party P,0090205399,WESTMINSTER HOMECARE LTD,143.33,24/10/2019,,
Delivery Units,Adults and Health,Other Agencies - Third Party P,0090205400,WESTMINSTER HOMECARE LTD,265.58,24/10/2019,,
Delivery Units,Adults and Health,Other Agencies - Third Party P,0060140415,ENARA COMMUNITY CARE,"2,527.00",08/10/2019,,
Delivery Units,Adults and Health,Other Agencies - Third Party P,0060140417,ENARA COMMUNITY CARE,"2,527.00",08/10/2019,,
Delivery Units,Adults and Health,Other Agencies - Third Party P,0060140667,ENARA COMMUNITY CARE,"2,527.00",14/10/2019,,
Delivery Units,Adults and Health,Other Agencies - Third Party P,0060140689,ENARA COMMUNITY CARE,"2,527.00",14/10/2019,,
Delivery Units,Adults and Health,Other Agencies - Third Party P,0060142149,ENARA COMMUNITY CARE,"2,527.00",31/10/2019,,
Delivery Units,Adults and Health,Other Agencies - Third Party P,0060142163,ENARA COMMUNITY CARE,"2,527.00",31/10/2019,,
Delivery Units,Adults and Health,Other Agencies - Third Party P,0060142190,ENARA COMMUNITY CARE,"2,527.00",31/10/2019,,
Delivery Units,Adults and Health,Other Agencies - Third Party P,0060142193,ENARA COMMUNITY CARE,"2,617.20",31/10/2019,,
Delivery Units,Adults and Health,Other Agencies - Third Party P,0060142200,ENARA COMMUNITY CARE,"2,527.00",31/10/2019,,
Delivery Units,Adults and Health,Other Agencies - Third Party P,0090203092,CAREWATCH (BARNET),240.52,16/10/2019,,
Delivery Units,Adults and Health,Other Agencies - Third Party P,0090203093,CAREWATCH (BARNET),601.30,16/10/2019,,
Delivery Units,Adults and Health,Other Agencies - Third Party P,0090203094,CAREWATCH (BARNET),51.56,16/10/2019,,
Delivery Units,Adults and Health,Other Agencies - Third Party P,0090203095,CAREWATCH (BARNET),712.97,16/10/2019,,
Delivery Units,Adults and Health,Other Agencies - Third Party P,0090203096,CAREWATCH (BARNET),257.73,16/10/2019,,
Delivery Units,Adults and Health,Other Agencies - Third Party P,0090203097,CAREWATCH (BARNET),300.65,16/10/2019,,
Delivery Units,Adults and Health,Other Agencies - Third Party P,0090203098,CAREWATCH (BARNET),781.90,16/10/2019,,
Delivery Units,Adults and Health,Other Agencies - Third Party P,0090203099,CAREWATCH (BARNET),116.00,16/10/2019,,
Delivery Units,Adults and Health,Other Agencies - Third Party P,0090203100,CAREWATCH (BARNET),120.26,16/10/2019,,
Delivery Units,Adults and Health,Other Agencies - Third Party P,0090203101,CAREWATCH (BARNET),240.52,16/10/2019,,
Delivery Units,Adults and Health,Other Agencies - Third Party P,0090203102,CAREWATCH (BARNET),180.39,16/10/2019,,
Delivery Units,Adults and Health,Other Agencies - Third Party P,0090203103,CAREWATCH (BARNET),90.23,16/10/2019,,
Delivery Units,Adults and Health,Other Agencies - Third Party P,0090203104,CAREWATCH (BARNET),201.90,16/10/2019,,
Delivery Units,Adults and Health,Other Agencies - Third Party P,0090203105,CAREWATCH (BARNET),150.36,16/10/2019,,
Delivery Units,Adults and Health,Other Agencies - Third Party P,0090203106,CAREWATCH (BARNET),270.62,16/10/2019,,
Delivery Units,Adults and Health,Other Agencies - Third Party P,0090203107,CAREWATCH (BARNET),244.85,16/10/2019,,
Delivery Units,Adults and Health,Other Agencies - Third Party P,0090203108,CAREWATCH (BARNET),120.26,16/10/2019,,
Delivery Units,Adults and Health,Other Agencies - Third Party P,0090203109,CAREWATCH (BARNET),120.26,16/10/2019,,
Delivery Units,Adults and Health,Other Agencies - Third Party P,0090203110,CAREWATCH (BARNET),253.44,16/10/2019,,
Delivery Units,Adults and Health,Other Agencies - Third Party P,0090203111,CAREWATCH (BARNET),150.36,16/10/2019,,
Delivery Units,Adults and Health,Other Agencies - Third Party P,0090203112,CAREWATCH (BARNET),304.98,16/10/2019,,
Delivery Units,Adults and Health,Other Agencies - Third Party P,0090203113,CAREWATCH (BARNET),120.26,16/10/2019,,
Delivery Units,Adults and Health,Other Agencies - Third Party P,0090203114,CAREWATCH (BARNET),270.62,16/10/2019,,
Delivery Units,Adults and Health,Other Agencies - Third Party P,0090203115,CAREWATCH (BARNET),210.49,16/10/2019,,
Delivery Units,Adults and Health,Other Agencies - Third Party P,0090203116,CAREWATCH (BARNET),438.09,16/10/2019,,
Delivery Units,Adults and Health,Other Agencies - Third Party P,0090203117,CAREWATCH (BARNET),206.23,16/10/2019,,
Delivery Units,Adults and Health,Other Agencies - Third Party P,0090203118,CAREWATCH (BARNET),240.59,16/10/2019,,
Delivery Units,Adults and Health,Other Agencies - Third Party P,0090203119,CAREWATCH (BARNET),120.26,16/10/2019,,
Delivery Units,Adults and Health,Other Agencies - Third Party P,0090203121,CAREWATCH (BARNET),240.52,16/10/2019,,
Delivery Units,Adults and Health,Other Agencies - Third Party P,0090203122,CAREWATCH (BARNET),150.36,16/10/2019,,
Delivery Units,Adults and Health,Other Agencies - Third Party P,0090203123,CAREWATCH (BARNET),103.08,16/10/2019,,
Delivery Units,Adults and Health,Other Agencies - Third Party P,0090203124,CAREWATCH (BARNET),150.36,16/10/2019,,
Delivery Units,Adults and Health,Other Agencies - Third Party P,0090203125,CAREWATCH (BARNET),51.54,16/10/2019,,
Delivery Units,Adults and Health,Other Agencies - Third Party P,0090203126,CAREWATCH (BARNET),163.21,16/10/2019,,
Delivery Units,Adults and Health,Other Agencies - Third Party P,0090203127,CAREWATCH (BARNET),98.82,16/10/2019,,
Delivery Units,Adults and Health,Other Agencies - Third Party P,0090203129,CAREWATCH (BARNET),262.01,16/10/2019,,
Delivery Units,Adults and Health,Other Agencies - Third Party P,0090203130,CAREWATCH (BARNET),176.10,16/10/2019,,
Delivery Units,Adults and Health,Other Agencies - Third Party P,0090203131,CAREWATCH (BARNET),296.42,16/10/2019,,
Delivery Units,Adults and Health,Other Agencies - Third Party P,0090203132,CAREWATCH (BARNET),236.26,16/10/2019,,
Delivery Units,Adults and Health,Other Agencies - Third Party P,0090203133,CAREWATCH (BARNET),167.54,16/10/2019,,
Delivery Units,Adults and Health,Other Agencies - Third Party P,0090203134,CAREWATCH (BARNET),193.28,16/10/2019,,
Delivery Units,Adults and Health,Other Agencies - Third Party P,0090203135,CAREWATCH (BARNET),90.23,16/10/2019,,
Delivery Units,Adults and Health,Other Agencies - Third Party P,0090203137,CAREWATCH (BARNET),115.98,16/10/2019,,
Delivery Units,Adults and Health,Other Agencies - Third Party P,0090203138,CAREWATCH (BARNET),90.23,16/10/2019,,
Delivery Units,Adults and Health,Other Agencies - Third Party P,0090203139,CAREWATCH (BARNET),34.36,16/10/2019,,
Delivery Units,Adults and Health,Other Agencies - Third Party P,0090203140,CAREWATCH (BARNET),17.18,16/10/2019,,
Delivery Units,Adults and Health,Other Agencies - Third Party P,0090203141,CAREWATCH (BARNET),283.54,16/10/2019,,
Delivery Units,Adults and Health,Other Agencies - Third Party P,0090203143,CAREWATCH (BARNET),201.90,16/10/2019,,
Delivery Units,Adults and Health,Other Agencies - Third Party P,0090203144,CAREWATCH (BARNET),184.69,16/10/2019,,
Delivery Units,Adults and Health,Other Agencies - Third Party P,0090203145,CAREWATCH (BARNET),287.78,16/10/2019,,
Delivery Units,Adults and Health,Other Agencies - Third Party P,0090203146,CAREWATCH (BARNET),107.40,16/10/2019,,
Delivery Units,Adults and Health,Other Agencies - Third Party P,0090203147,CAREWATCH (BARNET),38.67,16/10/2019,,
Delivery Units,Adults and Health,Other Agencies - Third Party P,0090203148,CAREWATCH (BARNET),287.77,16/10/2019,,
Delivery Units,Adults and Health,Other Agencies - Third Party P,0090203149,CAREWATCH (BARNET),184.73,16/10/2019,,
Delivery Units,Adults and Health,Other Agencies - Third Party P,0090203150,CAREWATCH (BARNET),98.79,16/10/2019,,
Delivery Units,Adults and Health,Other Agencies - Third Party P,0090203151,CAREWATCH (BARNET),133.16,16/10/2019,,
Delivery Units,Adults and Health,Other Agencies - Third Party P,0090203152,CAREWATCH (BARNET),180.43,16/10/2019,,
Delivery Units,Adults and Health,Other Agencies - Third Party P,0090203156,CAREWATCH (BARNET),12.89,16/10/2019,,
Delivery Units,Adults and Health,Other Agencies - Third Party P,0090203157,CAREWATCH (BARNET),283.50,16/10/2019,,
Delivery Units,Adults and Health,Other Agencies - Third Party P,0090203158,CAREWATCH (BARNET),210.49,16/10/2019,,
Delivery Units,Adults and Health,Other Agencies - Third Party P,0090203159,CAREWATCH (BARNET),240.52,16/10/2019,,
Delivery Units,Adults and Health,Other Agencies - Third Party P,0090203160,CAREWATCH (BARNET),55.84,16/10/2019,,
Delivery Units,Adults and Health,Other Agencies - Third Party P,0090203161,CAREWATCH (BARNET),266.30,16/10/2019,,
Delivery Units,Adults and Health,Other Agencies - Third Party P,0090203162,CAREWATCH (BARNET),60.13,16/10/2019,,
Delivery Units,Adults and Health,Other Agencies - Third Party P,0090203163,CAREWATCH (BARNET),257.71,16/10/2019,,
Delivery Units,Adults and Health,Other Agencies - Third Party P,0090203164,CAREWATCH (BARNET),77.33,16/10/2019,,
Delivery Units,Adults and Health,Other Agencies - Third Party P,0090203167,CAREWATCH (BARNET),120.26,16/10/2019,,
Delivery Units,Adults and Health,Other Agencies - Third Party P,0090203168,CAREWATCH (BARNET),601.30,16/10/2019,,
Delivery Units,Adults and Health,Other Agencies - Third Party P,0090203169,CAREWATCH (BARNET),51.56,16/10/2019,,
Delivery Units,Adults and Health,Other Agencies - Third Party P,0090203170,CAREWATCH (BARNET),257.73,16/10/2019,,
Delivery Units,Adults and Health,Other Agencies - Third Party P,0090203171,CAREWATCH (BARNET),300.65,16/10/2019,,
Delivery Units,Adults and Health,Other Agencies - Third Party P,0090203172,CAREWATCH (BARNET),781.90,16/10/2019,,
Delivery Units,Adults and Health,Other Agencies - Third Party P,0090203173,CAREWATCH (BARNET),116.00,16/10/2019,,
Delivery Units,Adults and Health,Other Agencies - Third Party P,0090203174,CAREWATCH (BARNET),120.26,16/10/2019,,
Delivery Units,Adults and Health,Other Agencies - Third Party P,0090203175,CAREWATCH (BARNET),180.39,16/10/2019,,
Delivery Units,Adults and Health,Other Agencies - Third Party P,0090203176,CAREWATCH (BARNET),300.72,16/10/2019,,
Delivery Units,Adults and Health,Other Agencies - Third Party P,0090203178,CAREWATCH (BARNET),34.36,16/10/2019,,
Delivery Units,Adults and Health,Other Agencies - Third Party P,0090203179,CAREWATCH (BARNET),17.18,16/10/2019,,
Delivery Units,Adults and Health,Other Agencies - Third Party P,0090203180,CAREWATCH (BARNET),270.62,16/10/2019,,
Delivery Units,Adults and Health,Other Agencies - Third Party P,0090203181,CAREWATCH (BARNET),244.85,16/10/2019,,
Delivery Units,Adults and Health,Other Agencies - Third Party P,0090203182,CAREWATCH (BARNET),120.26,16/10/2019,,
Delivery Units,Adults and Health,Other Agencies - Third Party P,0090203183,CAREWATCH (BARNET),253.44,16/10/2019,,
Delivery Units,Adults and Health,Other Agencies - Third Party P,0090203184,CAREWATCH (BARNET),150.36,16/10/2019,,
Delivery Units,Adults and Health,Other Agencies - Third Party P,0090203185,CAREWATCH (BARNET),304.98,16/10/2019,,
Delivery Units,Adults and Health,Other Agencies - Third Party P,0090203186,CAREWATCH (BARNET),150.36,16/10/2019,,
Delivery Units,Adults and Health,Other Agencies - Third Party P,0090203187,CAREWATCH (BARNET),120.26,16/10/2019,,
Delivery Units,Adults and Health,Other Agencies - Third Party P,0090203188,CAREWATCH (BARNET),270.62,16/10/2019,,
Delivery Units,Adults and Health,Other Agencies - Third Party P,0090203189,CAREWATCH (BARNET),210.49,16/10/2019,,
Delivery Units,Adults and Health,Other Agencies - Third Party P,0090203190,CAREWATCH (BARNET),60.13,16/10/2019,,
Delivery Units,Adults and Health,Other Agencies - Third Party P,0090203191,CAREWATCH (BARNET),438.09,16/10/2019,,
Delivery Units,Adults and Health,Other Agencies - Third Party P,0090203192,CAREWATCH (BARNET),206.23,16/10/2019,,
Delivery Units,Adults and Health,Other Agencies - Third Party P,0090203193,CAREWATCH (BARNET),240.59,16/10/2019,,
Delivery Units,Adults and Health,Other Agencies - Third Party P,0090203194,CAREWATCH (BARNET),120.26,16/10/2019,,
Delivery Units,Adults and Health,Other Agencies - Third Party P,0090203196,CAREWATCH (BARNET),240.52,16/10/2019,,
Delivery Units,Adults and Health,Other Agencies - Third Party P,0090203197,CAREWATCH (BARNET),150.36,16/10/2019,,
Delivery Units,Adults and Health,Other Agencies - Third Party P,0090203198,CAREWATCH (BARNET),240.52,16/10/2019,,
Delivery Units,Adults and Health,Other Agencies - Third Party P,0090203199,CAREWATCH (BARNET),150.36,16/10/2019,,
Delivery Units,Adults and Health,Other Agencies - Third Party P,0090203200,CAREWATCH (BARNET),700.08,16/10/2019,,
Delivery Units,Adults and Health,Other Agencies - Third Party P,0090203201,CAREWATCH (BARNET),51.54,16/10/2019,,
Delivery Units,Adults and Health,Other Agencies - Third Party P,0090203202,CAREWATCH (BARNET),180.39,16/10/2019,,
Delivery Units,Adults and Health,Other Agencies - Third Party P,0090203203,CAREWATCH (BARNET),253.44,16/10/2019,,
Delivery Units,Adults and Health,Other Agencies - Third Party P,0090203204,CAREWATCH (BARNET),128.90,16/10/2019,,
Delivery Units,Adults and Health,Other Agencies - Third Party P,0090203206,CAREWATCH (BARNET),274.90,16/10/2019,,
Delivery Units,Adults and Health,Other Agencies - Third Party P,0090203207,CAREWATCH (BARNET),231.96,16/10/2019,,
Delivery Units,Adults and Health,Other Agencies - Third Party P,0090203208,CAREWATCH (BARNET),158.92,16/10/2019,,
Delivery Units,Adults and Health,Other Agencies - Third Party P,0090203209,CAREWATCH (BARNET),163.25,16/10/2019,,
Delivery Units,Adults and Health,Other Agencies - Third Party P,0090203210,CAREWATCH (BARNET),115.98,16/10/2019,,
Delivery Units,Adults and Health,Other Agencies - Third Party P,0090203211,CAREWATCH (BARNET),188.99,16/10/2019,,
Delivery Units,Adults and Health,Other Agencies - Third Party P,0090203212,CAREWATCH (BARNET),85.93,16/10/2019,,
Delivery Units,Adults and Health,Other Agencies - Third Party P,0090203213,CAREWATCH (BARNET),124.56,16/10/2019,,
Delivery Units,Adults and Health,Other Agencies - Third Party P,0090203214,CAREWATCH (BARNET),90.23,16/10/2019,,
Delivery Units,Adults and Health,Other Agencies - Third Party P,0090203215,CAREWATCH (BARNET),81.60,16/10/2019,,
Delivery Units,Adults and Health,Other Agencies - Third Party P,0090203216,CAREWATCH (BARNET),300.72,16/10/2019,,
Delivery Units,Adults and Health,Other Agencies - Third Party P,0090203217,CAREWATCH (BARNET),90.23,16/10/2019,,
Delivery Units,Adults and Health,Other Agencies - Third Party P,0090203219,CAREWATCH (BARNET),184.72,16/10/2019,,
Delivery Units,Adults and Health,Other Agencies - Third Party P,0090203220,CAREWATCH (BARNET),206.19,16/10/2019,,
Delivery Units,Adults and Health,Other Agencies - Third Party P,0090203221,CAREWATCH (BARNET),124.57,16/10/2019,,
Delivery Units,Adults and Health,Other Agencies - Third Party P,0090203222,CAREWATCH (BARNET),180.40,16/10/2019,,
Delivery Units,Adults and Health,Other Agencies - Third Party P,0090203223,CAREWATCH (BARNET),287.79,16/10/2019,,
Delivery Units,Adults and Health,Other Agencies - Third Party P,0090203224,CAREWATCH (BARNET),77.34,16/10/2019,,
Delivery Units,Adults and Health,Other Agencies - Third Party P,0090203225,CAREWATCH (BARNET),120.26,16/10/2019,,
Delivery Units,Adults and Health,Other Agencies - Third Party P,0090203226,CAREWATCH (BARNET),38.67,16/10/2019,,
Delivery Units,Adults and Health,Other Agencies - Third Party P,0090203227,CAREWATCH (BARNET),171.80,16/10/2019,,
Delivery Units,Adults and Health,Other Agencies - Third Party P,0090203228,CAREWATCH (BARNET),197.60,16/10/2019,,
Delivery Units,Adults and Health,Other Agencies - Third Party P,0090203229,CAREWATCH (BARNET),103.08,16/10/2019,,
Delivery Units,Adults and Health,Other Agencies - Third Party P,0090203230,CAREWATCH (BARNET),120.26,16/10/2019,,
Delivery Units,Adults and Health,Other Agencies - Third Party P,0090203231,CAREWATCH (BARNET),163.24,16/10/2019,,
Delivery Units,Adults and Health,Other Agencies - Third Party P,0090203235,CAREWATCH (BARNET),25.78,16/10/2019,,
Delivery Units,Adults and Health,Other Agencies - Third Party P,0090203236,CAREWATCH (BARNET),8.59,16/10/2019,,
Delivery Units,Adults and Health,Other Agencies - Third Party P,0090203237,CAREWATCH (BARNET),279.22,16/10/2019,,
Delivery Units,Adults and Health,Other Agencies - Third Party P,0090203238,CAREWATCH (BARNET),210.49,16/10/2019,,
Delivery Units,Adults and Health,Other Agencies - Third Party P,0090203239,CAREWATCH (BARNET),219.05,16/10/2019,,
Delivery Units,Adults and Health,Other Agencies - Third Party P,0090203240,CAREWATCH (BARNET),51.54,16/10/2019,,
Delivery Units,Adults and Health,Other Agencies - Third Party P,0090203241,CAREWATCH (BARNET),274.89,16/10/2019,,
Delivery Units,Adults and Health,Other Agencies - Third Party P,0090203242,CAREWATCH (BARNET),262.00,16/10/2019,,
Delivery Units,Adults and Health,Other Agencies - Third Party P,0090203243,CAREWATCH (BARNET),85.93,16/10/2019,,
Delivery Units,Adults and Health,Other Agencies - Third Party P,0090203246,CAREWATCH (BARNET),240.52,16/10/2019,,
Delivery Units,Adults and Health,Other Agencies - Third Party P,0090203247,CAREWATCH (BARNET),601.30,16/10/2019,,
Delivery Units,Adults and Health,Other Agencies - Third Party P,0090203248,CAREWATCH (BARNET),51.56,16/10/2019,,
Delivery Units,Adults and Health,Other Agencies - Third Party P,0090203249,CAREWATCH (BARNET),150.36,16/10/2019,,
Delivery Units,Adults and Health,Other Agencies - Third Party P,0090203250,CAREWATCH (BARNET),712.97,16/10/2019,,
Delivery Units,Adults and Health,Other Agencies - Third Party P,0090203251,CAREWATCH (BARNET),257.73,16/10/2019,,
Delivery Units,Adults and Health,Other Agencies - Third Party P,0090203252,CAREWATCH (BARNET),300.65,16/10/2019,,
Delivery Units,Adults and Health,Other Agencies - Third Party P,0090203253,CAREWATCH (BARNET),781.90,16/10/2019,,
Delivery Units,Adults and Health,Other Agencies - Third Party P,0090203254,CAREWATCH (BARNET),120.26,16/10/2019,,
Delivery Units,Adults and Health,Other Agencies - Third Party P,0090203255,CAREWATCH (BARNET),180.39,16/10/2019,,
Delivery Units,Adults and Health,Other Agencies - Third Party P,0090203256,CAREWATCH (BARNET),300.72,16/10/2019,,
Delivery Units,Adults and Health,Other Agencies - Third Party P,0090203257,CAREWATCH (BARNET),137.44,16/10/2019,,
Delivery Units,Adults and Health,Other Agencies - Third Party P,0090203258,CAREWATCH (BARNET),90.23,16/10/2019,,
Delivery Units,Adults and Health,Other Agencies - Third Party P,0090203259,CAREWATCH (BARNET),150.36,16/10/2019,,
Delivery Units,Adults and Health,Other Agencies - Third Party P,0090203260,CAREWATCH (BARNET),270.62,16/10/2019,,
Delivery Units,Adults and Health,Other Agencies - Third Party P,0090203261,CAREWATCH (BARNET),120.26,16/10/2019,,
Delivery Units,Adults and Health,Other Agencies - Third Party P,0090203262,CAREWATCH (BARNET),120.26,16/10/2019,,
Delivery Units,Adults and Health,Other Agencies - Third Party P,0090203263,CAREWATCH (BARNET),253.44,16/10/2019,,
Delivery Units,Adults and Health,Other Agencies - Third Party P,0090203265,CAREWATCH (BARNET),150.36,16/10/2019,,
Delivery Units,Adults and Health,Other Agencies - Third Party P,0090203267,CAREWATCH (BARNET),25.77,16/10/2019,,
Delivery Units,Adults and Health,Other Agencies - Third Party P,0090203268,CAREWATCH (BARNET),120.26,16/10/2019,,
Delivery Units,Adults and Health,Other Agencies - Third Party P,0090203269,CAREWATCH (BARNET),270.62,16/10/2019,,
Delivery Units,Adults and Health,Other Agencies - Third Party P,0090203270,CAREWATCH (BARNET),210.49,16/10/2019,,
Delivery Units,Adults and Health,Other Agencies - Third Party P,0090203271,CAREWATCH (BARNET),438.09,16/10/2019,,
Delivery Units,Adults and Health,Other Agencies - Third Party P,0090203272,CAREWATCH (BARNET),240.59,16/10/2019,,
Delivery Units,Adults and Health,Other Agencies - Third Party P,0090203273,CAREWATCH (BARNET),120.26,16/10/2019,,
Delivery Units,Adults and Health,Other Agencies - Third Party P,0090203275,CAREWATCH (BARNET),266.29,16/10/2019,,
Delivery Units,Adults and Health,Other Agencies - Third Party P,0090203276,CAREWATCH (BARNET),90.23,16/10/2019,,
Delivery Units,Adults and Health,Other Agencies - Third Party P,0090203277,CAREWATCH (BARNET),240.52,16/10/2019,,
Delivery Units,Adults and Health,Other Agencies - Third Party P,0090203278,CAREWATCH (BARNET),150.36,16/10/2019,,
Delivery Units,Adults and Health,Other Agencies - Third Party P,0090203279,CAREWATCH (BARNET),120.26,16/10/2019,,
Delivery Units,Adults and Health,Other Agencies - Third Party P,0090203280,CAREWATCH (BARNET),51.54,16/10/2019,,
Delivery Units,Adults and Health,Other Agencies - Third Party P,0090203281,CAREWATCH (BARNET),180.39,16/10/2019,,
Delivery Units,Adults and Health,Other Agencies - Third Party P,0090203282,CAREWATCH (BARNET),227.66,16/10/2019,,
Delivery Units,Adults and Health,Other Agencies - Third Party P,0090203283,CAREWATCH (BARNET),128.89,16/10/2019,,
Delivery Units,Adults and Health,Other Agencies - Third Party P,0090203284,CAREWATCH (BARNET),116.00,16/10/2019,,
Delivery Units,Adults and Health,Other Agencies - Third Party P,0090203286,CAREWATCH (BARNET),266.30,16/10/2019,,
Delivery Units,Adults and Health,Other Agencies - Third Party P,0090203287,CAREWATCH (BARNET),141.74,16/10/2019,,
Delivery Units,Adults and Health,Other Agencies - Third Party P,0090203288,CAREWATCH (BARNET),158.95,16/10/2019,,
Delivery Units,Adults and Health,Other Agencies - Third Party P,0090203289,CAREWATCH (BARNET),124.60,16/10/2019,,
Delivery Units,Adults and Health,Other Agencies - Third Party P,0090203290,CAREWATCH (BARNET),188.98,16/10/2019,,
Delivery Units,Adults and Health,Other Agencies - Third Party P,0090203291,CAREWATCH (BARNET),90.23,16/10/2019,,
Delivery Units,Adults and Health,Other Agencies - Third Party P,0090203293,CAREWATCH (BARNET),90.23,16/10/2019,,
Delivery Units,Adults and Health,Other Agencies - Third Party P,0090203294,CAREWATCH (BARNET),34.36,16/10/2019,,
Delivery Units,Adults and Health,Other Agencies - Third Party P,0090203295,CAREWATCH (BARNET),17.18,16/10/2019,,
Delivery Units,Adults and Health,Other Agencies - Third Party P,0090203296,CAREWATCH (BARNET),300.72,16/10/2019,,
Delivery Units,Adults and Health,Other Agencies - Third Party P,0090203298,CAREWATCH (BARNET),197.62,16/10/2019,,
Delivery Units,Adults and Health,Other Agencies - Third Party P,0090203299,CAREWATCH (BARNET),214.79,16/10/2019,,
Delivery Units,Adults and Health,Other Agencies - Third Party P,0090203300,CAREWATCH (BARNET),201.87,16/10/2019,,
Delivery Units,Adults and Health,Other Agencies - Third Party P,0090203301,CAREWATCH (BARNET),279.21,16/10/2019,,
Delivery Units,Adults and Health,Other Agencies - Third Party P,0090203302,CAREWATCH (BARNET),244.85,16/10/2019,,
Delivery Units,Adults and Health,Other Agencies - Third Party P,0090203303,CAREWATCH (BARNET),64.45,16/10/2019,,
Delivery Units,Adults and Health,Other Agencies - Third Party P,0090203304,CAREWATCH (BARNET),25.78,16/10/2019,,
Delivery Units,Adults and Health,Other Agencies - Third Party P,0090203305,CAREWATCH (BARNET),322.12,16/10/2019,,
Delivery Units,Adults and Health,Other Agencies - Third Party P,0090203306,CAREWATCH (BARNET),197.61,16/10/2019,,
Delivery Units,Adults and Health,Other Agencies - Third Party P,0090203307,CAREWATCH (BARNET),103.08,16/10/2019,,
Delivery Units,Adults and Health,Other Agencies - Third Party P,0090203308,CAREWATCH (BARNET),124.56,16/10/2019,,
Delivery Units,Adults and Health,Other Agencies - Third Party P,0090203310,CAREWATCH (BARNET),343.65,16/10/2019,,
Delivery Units,Adults and Health,Other Agencies - Third Party P,0090203312,CAREWATCH (BARNET),25.78,16/10/2019,,
Delivery Units,Adults and Health,Other Agencies - Third Party P,0090203313,CAREWATCH (BARNET),287.81,16/10/2019,,
Delivery Units,Adults and Health,Other Agencies - Third Party P,0090203314,CAREWATCH (BARNET),210.49,16/10/2019,,
Delivery Units,Adults and Health,Other Agencies - Third Party P,0090203315,CAREWATCH (BARNET),206.16,16/10/2019,,
Delivery Units,Adults and Health,Other Agencies - Third Party P,0090203316,CAREWATCH (BARNET),55.84,16/10/2019,,
Delivery Units,Adults and Health,Other Agencies - Third Party P,0090203317,CAREWATCH (BARNET),257.70,16/10/2019,,
Delivery Units,Adults and Health,Other Agencies - Third Party P,0090203318,CAREWATCH (BARNET),60.13,16/10/2019,,
Delivery Units,Adults and Health,Other Agencies - Third Party P,0090203319,CAREWATCH (BARNET),206.22,16/10/2019,,
Delivery Units,Adults and Health,Other Agencies - Third Party P,0090203322,CAREWATCH (BARNET),120.26,16/10/2019,,
Delivery Units,Adults and Health,Other Agencies - Third Party P,0090203323,CAREWATCH (BARNET),51.56,16/10/2019,,
Delivery Units,Adults and Health,Other Agencies - Third Party P,0090203324,CAREWATCH (BARNET),712.97,16/10/2019,,
Delivery Units,Adults and Health,Other Agencies - Third Party P,0090203325,CAREWATCH (BARNET),257.73,16/10/2019,,
Delivery Units,Adults and Health,Other Agencies - Third Party P,0090203326,CAREWATCH (BARNET),300.65,16/10/2019,,
Delivery Units,Adults and Health,Other Agencies - Third Party P,0090203327,CAREWATCH (BARNET),781.90,16/10/2019,,
Delivery Units,Adults and Health,Other Agencies - Third Party P,0090203329,CAREWATCH (BARNET),120.26,16/10/2019,,
Delivery Units,Adults and Health,Other Agencies - Third Party P,0090203330,CAREWATCH (BARNET),287.78,16/10/2019,,
Delivery Units,Adults and Health,Other Agencies - Third Party P,0090203331,CAREWATCH (BARNET),300.72,16/10/2019,,
Delivery Units,Adults and Health,Other Agencies - Third Party P,0090203332,CAREWATCH (BARNET),309.24,16/10/2019,,
Delivery Units,Adults and Health,Other Agencies - Third Party P,0090203333,CAREWATCH (BARNET),17.18,16/10/2019,,
Delivery Units,Adults and Health,Other Agencies - Third Party P,0090203334,CAREWATCH (BARNET),201.90,16/10/2019,,
Delivery Units,Adults and Health,Other Agencies - Third Party P,0090203335,CAREWATCH (BARNET),150.36,16/10/2019,,
Delivery Units,Adults and Health,Other Agencies - Third Party P,0090203336,CAREWATCH (BARNET),270.62,16/10/2019,,
Delivery Units,Adults and Health,Other Agencies - Third Party P,0090203337,CAREWATCH (BARNET),244.85,16/10/2019,,
Delivery Units,Adults and Health,Other Agencies - Third Party P,0090203338,CAREWATCH (BARNET),120.26,16/10/2019,,
Delivery Units,Adults and Health,Other Agencies - Third Party P,0090203339,CAREWATCH (BARNET),253.44,16/10/2019,,
Delivery Units,Adults and Health,Other Agencies - Third Party P,0090203341,CAREWATCH (BARNET),25.77,16/10/2019,,
Delivery Units,Adults and Health,Other Agencies - Third Party P,0090203342,CAREWATCH (BARNET),120.26,16/10/2019,,
Delivery Units,Adults and Health,Other Agencies - Third Party P,0090203343,CAREWATCH (BARNET),270.62,16/10/2019,,
Delivery Units,Adults and Health,Other Agencies - Third Party P,0090203344,CAREWATCH (BARNET),210.49,16/10/2019,,
Delivery Units,Adults and Health,Other Agencies - Third Party P,0090203345,CAREWATCH (BARNET),438.09,16/10/2019,,
Delivery Units,Adults and Health,Other Agencies - Third Party P,0090203346,CAREWATCH (BARNET),240.59,16/10/2019,,
Delivery Units,Adults and Health,Other Agencies - Third Party P,0090203347,CAREWATCH (BARNET),120.26,16/10/2019,,
Delivery Units,Adults and Health,Other Agencies - Third Party P,0090203349,CAREWATCH (BARNET),240.52,16/10/2019,,
Delivery Units,Adults and Health,Other Agencies - Third Party P,0090203350,CAREWATCH (BARNET),240.52,16/10/2019,,
Delivery Units,Adults and Health,Other Agencies - Third Party P,0090203351,CAREWATCH (BARNET),579.84,16/10/2019,,
Delivery Units,Adults and Health,Other Agencies - Third Party P,0090203352,CAREWATCH (BARNET),150.36,16/10/2019,,
Delivery Units,Adults and Health,Other Agencies - Third Party P,0090203353,CAREWATCH (BARNET),51.54,16/10/2019,,
Delivery Units,Adults and Health,Other Agencies - Third Party P,0090203354,CAREWATCH (BARNET),180.39,16/10/2019,,
Delivery Units,Adults and Health,Other Agencies - Third Party P,0090203355,CAREWATCH (BARNET),244.84,16/10/2019,,
Delivery Units,Adults and Health,Other Agencies - Third Party P,0090203356,CAREWATCH (BARNET),120.31,16/10/2019,,
Delivery Units,Adults and Health,Other Agencies - Third Party P,0090203357,CAREWATCH (BARNET),116.00,16/10/2019,,
Delivery Units,Adults and Health,Other Agencies - Third Party P,0090203358,CAREWATCH (BARNET),171.82,16/10/2019,,
Delivery Units,Adults and Health,Other Agencies - Third Party P,0090203359,CAREWATCH (BARNET),167.55,16/10/2019,,
Delivery Units,Adults and Health,Other Agencies - Third Party P,0090203360,CAREWATCH (BARNET),30.07,16/10/2019,,
Delivery Units,Adults and Health,Other Agencies - Third Party P,0090203361,CAREWATCH (BARNET),90.23,16/10/2019,,
Delivery Units,Adults and Health,Other Agencies - Third Party P,0090203363,CAREWATCH (BARNET),115.97,16/10/2019,,
Delivery Units,Adults and Health,Other Agencies - Third Party P,0090203364,CAREWATCH (BARNET),85.93,16/10/2019,,
Delivery Units,Adults and Health,Other Agencies - Third Party P,0090203365,CAREWATCH (BARNET),17.18,16/10/2019,,
Delivery Units,Adults and Health,Other Agencies - Third Party P,0090203366,CAREWATCH (BARNET),300.72,16/10/2019,,
Delivery Units,Adults and Health,Other Agencies - Third Party P,0090203367,CAREWATCH (BARNET),64.45,16/10/2019,,
Delivery Units,Adults and Health,Other Agencies - Third Party P,0090203369,CAREWATCH (BARNET),214.79,16/10/2019,,
Delivery Units,Adults and Health,Other Agencies - Third Party P,0090203370,CAREWATCH (BARNET),184.69,16/10/2019,,
Delivery Units,Adults and Health,Other Agencies - Third Party P,0090203371,CAREWATCH (BARNET),300.67,16/10/2019,,
Delivery Units,Adults and Health,Other Agencies - Third Party P,0090203372,CAREWATCH (BARNET),64.45,16/10/2019,,
Delivery Units,Adults and Health,Other Agencies - Third Party P,0090203373,CAREWATCH (BARNET),25.78,16/10/2019,,
Delivery Units,Adults and Health,Other Agencies - Third Party P,0090203374,CAREWATCH (BARNET),326.42,16/10/2019,,
Delivery Units,Adults and Health,Other Agencies - Third Party P,0090203375,CAREWATCH (BARNET),206.19,16/10/2019,,
Delivery Units,Adults and Health,Other Agencies - Third Party P,0090203376,CAREWATCH (BARNET),90.20,16/10/2019,,
Delivery Units,Adults and Health,Other Agencies - Third Party P,0090203377,CAREWATCH (BARNET),128.86,16/10/2019,,
Delivery Units,Adults and Health,Other Agencies - Third Party P,0090203378,CAREWATCH (BARNET),107.38,16/10/2019,,
Delivery Units,Adults and Health,Other Agencies - Third Party P,0090203380,CAREWATCH (BARNET),347.94,16/10/2019,,
Delivery Units,Adults and Health,Other Agencies - Third Party P,0090203383,CAREWATCH (BARNET),150.36,16/10/2019,,
Delivery Units,Adults and Health,Other Agencies - Third Party P,0090203384,CAREWATCH (BARNET),34.37,16/10/2019,,
Delivery Units,Adults and Health,Other Agencies - Third Party P,0090203385,CAREWATCH (BARNET),38.67,16/10/2019,,
Delivery Units,Adults and Health,Other Agencies - Third Party P,0090203386,CAREWATCH (BARNET),107.40,16/10/2019,,
Delivery Units,Adults and Health,Other Agencies - Third Party P,0090203387,CAREWATCH (BARNET),274.90,16/10/2019,,
Delivery Units,Adults and Health,Other Agencies - Third Party P,0090203388,CAREWATCH (BARNET),81.63,16/10/2019,,
Delivery Units,Adults and Health,Other Agencies - Third Party P,0090203389,CAREWATCH (BARNET),223.34,16/10/2019,,
Delivery Units,Adults and Health,Other Agencies - Third Party P,0090203390,CAREWATCH (BARNET),51.54,16/10/2019,,
Delivery Units,Adults and Health,Other Agencies - Third Party P,0090203391,CAREWATCH (BARNET),262.00,16/10/2019,,
Delivery Units,Adults and Health,Other Agencies - Third Party P,0090203392,CAREWATCH (BARNET),60.13,16/10/2019,,
Delivery Units,Adults and Health,Other Agencies - Third Party P,0090203393,CAREWATCH (BARNET),141.76,16/10/2019,,
Delivery Units,Adults and Health,Other Agencies - Third Party P,0090203394,CAREWATCH (BARNET),262.02,16/10/2019,,
Delivery Units,Adults and Health,Other Agencies - Third Party P,0090203395,CAREWATCH (BARNET),85.93,16/10/2019,,
Delivery Units,Adults and Health,Other Agencies - Third Party P,0090203396,CAREWATCH (BARNET),137.47,16/10/2019,,
Delivery Units,Adults and Health,Other Agencies - Third Party P,0090203399,CAREWATCH (BARNET),373.74,16/10/2019,,
Delivery Units,Adults and Health,Other Agencies - Third Party P,0090203400,CAREWATCH (BARNET),231.97,16/10/2019,,
Delivery Units,Adults and Health,Other Agencies - Third Party P,0090203714,CAREWATCH (BARNET),120.26,16/10/2019,,
Delivery Units,Adults and Health,Other Agencies - Third Party P,0090203715,CAREWATCH (BARNET),240.52,16/10/2019,,
Delivery Units,Adults and Health,Other Agencies - Third Party P,0090203716,CAREWATCH (BARNET),601.30,16/10/2019,,
Delivery Units,Adults and Health,Other Agencies - Third Party P,0090203717,CAREWATCH (BARNET),150.36,16/10/2019,,
Delivery Units,Adults and Health,Other Agencies - Third Party P,0090203718,CAREWATCH (BARNET),257.73,16/10/2019,,
Delivery Units,Adults and Health,Other Agencies - Third Party P,0090203719,CAREWATCH (BARNET),180.39,16/10/2019,,
Delivery Units,Adults and Health,Other Agencies - Third Party P,0090203720,CAREWATCH (BARNET),253.44,16/10/2019,,
Delivery Units,Adults and Health,Other Agencies - Third Party P,0090203721,CAREWATCH (BARNET),300.65,16/10/2019,,
Delivery Units,Adults and Health,Other Agencies - Third Party P,0090203722,CAREWATCH (BARNET),781.90,16/10/2019,,
Delivery Units,Adults and Health,Other Agencies - Third Party P,0090203723,CAREWATCH (BARNET),116.00,16/10/2019,,
Delivery Units,Adults and Health,Other Agencies - Third Party P,0090203724,CAREWATCH (BARNET),120.26,16/10/2019,,
Delivery Units,Adults and Health,Other Agencies - Third Party P,0090203725,CAREWATCH (BARNET),300.72,16/10/2019,,
Delivery Units,Adults and Health,Other Agencies - Third Party P,0090203726,CAREWATCH (BARNET),240.52,16/10/2019,,
Delivery Units,Adults and Health,Other Agencies - Third Party P,0090203727,CAREWATCH (BARNET),240.52,16/10/2019,,
Delivery Units,Adults and Health,Other Agencies - Third Party P,0090203728,CAREWATCH (BARNET),300.65,16/10/2019,,
Delivery Units,Adults and Health,Other Agencies - Third Party P,0090203730,CAREWATCH (BARNET),180.39,16/10/2019,,
Delivery Units,Adults and Health,Other Agencies - Third Party P,0090203731,CAREWATCH (BARNET),34.36,16/10/2019,,
Delivery Units,Adults and Health,Other Agencies - Third Party P,0090203732,CAREWATCH (BARNET),300.72,16/10/2019,,
Delivery Units,Adults and Health,Other Agencies - Third Party P,0090203733,CAREWATCH (BARNET),201.90,16/10/2019,,
Delivery Units,Adults and Health,Other Agencies - Third Party P,0090203734,CAREWATCH (BARNET),150.36,16/10/2019,,
Delivery Units,Adults and Health,Other Agencies - Third Party P,0090203735,CAREWATCH (BARNET),270.62,16/10/2019,,
Delivery Units,Adults and Health,Other Agencies - Third Party P,0090203736,CAREWATCH (BARNET),244.85,16/10/2019,,
Delivery Units,Adults and Health,Other Agencies - Third Party P,0090203737,CAREWATCH (BARNET),120.26,16/10/2019,,
Delivery Units,Adults and Health,Other Agencies - Third Party P,0090203738,CAREWATCH (BARNET),150.36,16/10/2019,,
Delivery Units,Adults and Health,Other Agencies - Third Party P,0090203739,CAREWATCH (BARNET),120.26,16/10/2019,,
Delivery Units,Adults and Health,Other Agencies - Third Party P,0090203740,CAREWATCH (BARNET),253.44,16/10/2019,,
Delivery Units,Adults and Health,Other Agencies - Third Party P,0090203741,CAREWATCH (BARNET),309.24,16/10/2019,,
Delivery Units,Adults and Health,Other Agencies - Third Party P,0090203742,CAREWATCH (BARNET),330.75,16/10/2019,,
Delivery Units,Adults and Health,Other Agencies - Third Party P,0090203743,CAREWATCH (BARNET),120.26,16/10/2019,,
Delivery Units,Adults and Health,Other Agencies - Third Party P,0090203744,CAREWATCH (BARNET),60.13,16/10/2019,,
Delivery Units,Adults and Health,Other Agencies - Third Party P,0090203745,CAREWATCH (BARNET),210.49,16/10/2019,,
Delivery Units,Adults and Health,Other Agencies - Third Party P,0090203746,CAREWATCH (BARNET),438.09,16/10/2019,,
Delivery Units,Adults and Health,Other Agencies - Third Party P,0090203747,CAREWATCH (BARNET),206.23,16/10/2019,,
Delivery Units,Adults and Health,Other Agencies - Third Party P,0090203748,CAREWATCH (BARNET),240.59,16/10/2019,,
Delivery Units,Adults and Health,Other Agencies - Third Party P,0090203749,CAREWATCH (BARNET),120.26,16/10/2019,,
Delivery Units,Adults and Health,Other Agencies - Third Party P,0090203751,CAREWATCH (BARNET),240.52,16/10/2019,,
Delivery Units,Adults and Health,Other Agencies - Third Party P,0090203752,CAREWATCH (BARNET),51.54,16/10/2019,,
Delivery Units,Adults and Health,Other Agencies - Third Party P,0090203753,CAREWATCH (BARNET),708.68,16/10/2019,,
Delivery Units,Adults and Health,Other Agencies - Third Party P,0090203754,CAREWATCH (BARNET),51.54,16/10/2019,,
Delivery Units,Adults and Health,Other Agencies - Third Party P,0090203755,CAREWATCH (BARNET),133.19,16/10/2019,,
Delivery Units,Adults and Health,Other Agencies - Third Party P,0090203757,CAREWATCH (BARNET),283.48,16/10/2019,,
Delivery Units,Adults and Health,Other Agencies - Third Party P,0090203758,CAREWATCH (BARNET),171.81,16/10/2019,,
Delivery Units,Adults and Health,Other Agencies - Third Party P,0090203759,CAREWATCH (BARNET),158.96,16/10/2019,,
Delivery Units,Adults and Health,Other Agencies - Third Party P,0090203760,CAREWATCH (BARNET),128.88,16/10/2019,,
Delivery Units,Adults and Health,Other Agencies - Third Party P,0090203761,CAREWATCH (BARNET),197.57,16/10/2019,,
Delivery Units,Adults and Health,Other Agencies - Third Party P,0090203762,CAREWATCH (BARNET),90.23,16/10/2019,,
Delivery Units,Adults and Health,Other Agencies - Third Party P,0090203763,CAREWATCH (BARNET),133.15,16/10/2019,,
Delivery Units,Adults and Health,Other Agencies - Third Party P,0090203764,CAREWATCH (BARNET),90.23,16/10/2019,,
Delivery Units,Adults and Health,Other Agencies - Third Party P,0090203765,CAREWATCH (BARNET),17.18,16/10/2019,,
Delivery Units,Adults and Health,Other Agencies - Third Party P,0090203766,CAREWATCH (BARNET),25.78,16/10/2019,,
Delivery Units,Adults and Health,Other Agencies - Third Party P,0090203768,CAREWATCH (BARNET),214.78,16/10/2019,,
Delivery Units,Adults and Health,Other Agencies - Third Party P,0090203769,CAREWATCH (BARNET),176.10,16/10/2019,,
Delivery Units,Adults and Health,Other Agencies - Third Party P,0090203770,CAREWATCH (BARNET),304.96,16/10/2019,,
Delivery Units,Adults and Health,Other Agencies - Third Party P,0090203771,CAREWATCH (BARNET),103.10,16/10/2019,,
Delivery Units,Adults and Health,Other Agencies - Third Party P,0090203772,CAREWATCH (BARNET),38.67,16/10/2019,,
Delivery Units,Adults and Health,Other Agencies - Third Party P,0090203773,CAREWATCH (BARNET),201.90,16/10/2019,,
Delivery Units,Adults and Health,Other Agencies - Third Party P,0090203774,CAREWATCH (BARNET),103.08,16/10/2019,,
Delivery Units,Adults and Health,Other Agencies - Third Party P,0090203775,CAREWATCH (BARNET),133.16,16/10/2019,,
Delivery Units,Adults and Health,Other Agencies - Third Party P,0090203776,CAREWATCH (BARNET),184.72,16/10/2019,,
Delivery Units,Adults and Health,Other Agencies - Third Party P,0090203778,CAREWATCH (BARNET),60.14,16/10/2019,,
Delivery Units,Adults and Health,Other Agencies - Third Party P,0090203779,CAREWATCH (BARNET),154.63,16/10/2019,,
Delivery Units,Adults and Health,Other Agencies - Third Party P,0090203781,CAREWATCH (BARNET),292.09,16/10/2019,,
Delivery Units,Adults and Health,Other Agencies - Third Party P,0090203782,CAREWATCH (BARNET),210.49,16/10/2019,,
Delivery Units,Adults and Health,Other Agencies - Third Party P,0090203783,CAREWATCH (BARNET),240.52,16/10/2019,,
Delivery Units,Adults and Health,Other Agencies - Third Party P,0090203784,CAREWATCH (BARNET),279.18,16/10/2019,,
Delivery Units,Adults and Health,Other Agencies - Third Party P,0090203785,CAREWATCH (BARNET),60.13,16/10/2019,,
Delivery Units,Adults and Health,Other Agencies - Third Party P,0090203786,CAREWATCH (BARNET),262.01,16/10/2019,,
Delivery Units,Adults and Health,Other Agencies - Third Party P,0090203787,CAREWATCH (BARNET),12.89,16/10/2019,,
Delivery Units,Adults and Health,Other Agencies - Third Party P,0090203788,CAREWATCH (BARNET),81.63,16/10/2019,,
Delivery Units,Adults and Health,Other Agencies - Third Party P,0090203789,CAREWATCH (BARNET),150.36,16/10/2019,,
Delivery Units,Adults and Health,Other Agencies - Third Party P,0090203792,CAREWATCH (BARNET),120.26,16/10/2019,,
Delivery Units,Adults and Health,Other Agencies - Third Party P,0090203793,CAREWATCH (BARNET),240.52,16/10/2019,,
Delivery Units,Adults and Health,Other Agencies - Third Party P,0090203794,CAREWATCH (BARNET),601.30,16/10/2019,,
Delivery Units,Adults and Health,Other Agencies - Third Party P,0090203795,CAREWATCH (BARNET),180.39,16/10/2019,,
Delivery Units,Adults and Health,Other Agencies - Third Party P,0090203796,CAREWATCH (BARNET),253.44,16/10/2019,,
Delivery Units,Adults and Health,Other Agencies - Third Party P,0090203797,CAREWATCH (BARNET),300.65,16/10/2019,,
Delivery Units,Adults and Health,Other Agencies - Third Party P,0090203798,CAREWATCH (BARNET),781.90,16/10/2019,,
Delivery Units,Adults and Health,Other Agencies - Third Party P,0090203799,CAREWATCH (BARNET),116.00,16/10/2019,,
Delivery Units,Adults and Health,Other Agencies - Third Party P,0090203800,CAREWATCH (BARNET),120.26,16/10/2019,,
Delivery Units,Adults and Health,Other Agencies - Third Party P,0090203801,CAREWATCH (BARNET),300.72,16/10/2019,,
Delivery Units,Adults and Health,Other Agencies - Third Party P,0090203802,CAREWATCH (BARNET),240.52,16/10/2019,,
Delivery Units,Adults and Health,Other Agencies - Third Party P,0090203803,CAREWATCH (BARNET),300.65,16/10/2019,,
Delivery Units,Adults and Health,Other Agencies - Third Party P,0090203804,CAREWATCH (BARNET),90.23,16/10/2019,,
Delivery Units,Adults and Health,Other Agencies - Third Party P,0090203805,CAREWATCH (BARNET),180.39,16/10/2019,,
Delivery Units,Adults and Health,Other Agencies - Third Party P,0090203806,CAREWATCH (BARNET),150.36,16/10/2019,,
Delivery Units,Adults and Health,Other Agencies - Third Party P,0090203807,CAREWATCH (BARNET),270.62,16/10/2019,,
Delivery Units,Adults and Health,Other Agencies - Third Party P,0090203808,CAREWATCH (BARNET),120.26,16/10/2019,,
Delivery Units,Adults and Health,Other Agencies - Third Party P,0090203809,CAREWATCH (BARNET),38.67,16/10/2019,,
Delivery Units,Adults and Health,Other Agencies - Third Party P,0090203810,CAREWATCH (BARNET),150.36,16/10/2019,,
Delivery Units,Adults and Health,Other Agencies - Third Party P,0090203811,CAREWATCH (BARNET),253.44,16/10/2019,,
Delivery Units,Adults and Health,Other Agencies - Third Party P,0090203812,CAREWATCH (BARNET),309.24,16/10/2019,,
Delivery Units,Adults and Health,Other Agencies - Third Party P,0090203813,CAREWATCH (BARNET),150.36,16/10/2019,,
Delivery Units,Adults and Health,Other Agencies - Third Party P,0090203814,CAREWATCH (BARNET),304.98,16/10/2019,,
Delivery Units,Adults and Health,Other Agencies - Third Party P,0090203815,CAREWATCH (BARNET),330.75,16/10/2019,,
Delivery Units,Adults and Health,Other Agencies - Third Party P,0090203816,CAREWATCH (BARNET),120.26,16/10/2019,,
Delivery Units,Adults and Health,Other Agencies - Third Party P,0090203817,CAREWATCH (BARNET),210.49,16/10/2019,,
Delivery Units,Adults and Health,Other Agencies - Third Party P,0090203818,CAREWATCH (BARNET),210.49,16/10/2019,,
Delivery Units,Adults and Health,Other Agencies - Third Party P,0090203819,CAREWATCH (BARNET),60.13,16/10/2019,,
Delivery Units,Adults and Health,Other Agencies - Third Party P,0090203820,CAREWATCH (BARNET),438.09,16/10/2019,,
Delivery Units,Adults and Health,Other Agencies - Third Party P,0090203821,CAREWATCH (BARNET),240.59,16/10/2019,,
Delivery Units,Adults and Health,Other Agencies - Third Party P,0090203822,CAREWATCH (BARNET),120.26,16/10/2019,,
Delivery Units,Adults and Health,Other Agencies - Third Party P,0090203824,CAREWATCH (BARNET),240.52,16/10/2019,,
Delivery Units,Adults and Health,Other Agencies - Third Party P,0090203825,CAREWATCH (BARNET),51.54,16/10/2019,,
Delivery Units,Adults and Health,Other Agencies - Third Party P,0090203826,CAREWATCH (BARNET),150.35,16/10/2019,,
Delivery Units,Adults and Health,Other Agencies - Third Party P,0090203827,CAREWATCH (BARNET),687.20,16/10/2019,,
Delivery Units,Adults and Health,Other Agencies - Third Party P,0090203828,CAREWATCH (BARNET),240.56,16/10/2019,,
Delivery Units,Adults and Health,Other Agencies - Third Party P,0090203829,CAREWATCH (BARNET),51.54,16/10/2019,,
Delivery Units,Adults and Health,Other Agencies - Third Party P,0090203830,CAREWATCH (BARNET),133.19,16/10/2019,,
Delivery Units,Adults and Health,Other Agencies - Third Party P,0090203832,CAREWATCH (BARNET),283.48,16/10/2019,,
Delivery Units,Adults and Health,Other Agencies - Third Party P,0090203833,CAREWATCH (BARNET),180.39,16/10/2019,,
Delivery Units,Adults and Health,Other Agencies - Third Party P,0090203834,CAREWATCH (BARNET),231.97,16/10/2019,,
Delivery Units,Adults and Health,Other Agencies - Third Party P,0090203835,CAREWATCH (BARNET),158.96,16/10/2019,,
Delivery Units,Adults and Health,Other Agencies - Third Party P,0090203836,CAREWATCH (BARNET),137.46,16/10/2019,,
Delivery Units,Adults and Health,Other Agencies - Third Party P,0090203837,CAREWATCH (BARNET),146.04,16/10/2019,,
Delivery Units,Adults and Health,Other Agencies - Third Party P,0090203838,CAREWATCH (BARNET),85.93,16/10/2019,,
Delivery Units,Adults and Health,Other Agencies - Third Party P,0090203840,CAREWATCH (BARNET),120.26,16/10/2019,,
Delivery Units,Adults and Health,Other Agencies - Third Party P,0090203841,CAREWATCH (BARNET),34.36,16/10/2019,,
Delivery Units,Adults and Health,Other Agencies - Third Party P,0090203842,CAREWATCH (BARNET),17.18,16/10/2019,,
Delivery Units,Adults and Health,Other Agencies - Third Party P,0090203843,CAREWATCH (BARNET),300.72,16/10/2019,,
Delivery Units,Adults and Health,Other Agencies - Third Party P,0090203844,CAREWATCH (BARNET),90.23,16/10/2019,,
Delivery Units,Adults and Health,Other Agencies - Third Party P,0090203846,CAREWATCH (BARNET),197.60,16/10/2019,,
Delivery Units,Adults and Health,Other Agencies - Third Party P,0090203847,CAREWATCH (BARNET),210.49,16/10/2019,,
Delivery Units,Adults and Health,Other Agencies - Third Party P,0090203848,CAREWATCH (BARNET),171.81,16/10/2019,,
Delivery Units,Adults and Health,Other Agencies - Third Party P,0090203849,CAREWATCH (BARNET),270.61,16/10/2019,,
Delivery Units,Adults and Health,Other Agencies - Third Party P,0090203850,CAREWATCH (BARNET),244.85,16/10/2019,,
Delivery Units,Adults and Health,Other Agencies - Third Party P,0090203851,CAREWATCH (BARNET),103.10,16/10/2019,,
Delivery Units,Adults and Health,Other Agencies - Third Party P,0090203852,CAREWATCH (BARNET),184.73,16/10/2019,,
Delivery Units,Adults and Health,Other Agencies - Third Party P,0090203853,CAREWATCH (BARNET),111.67,16/10/2019,,
Delivery Units,Adults and Health,Other Agencies - Third Party P,0090203854,CAREWATCH (BARNET),124.56,16/10/2019,,
Delivery Units,Adults and Health,Other Agencies - Third Party P,0090203855,CAREWATCH (BARNET),21.48,16/10/2019,,
Delivery Units,Adults and Health,Other Agencies - Third Party P,0090203856,CAREWATCH (BARNET),120.26,16/10/2019,,
Delivery Units,Adults and Health,Other Agencies - Third Party P,0090203859,CAREWATCH (BARNET),266.32,16/10/2019,,
Delivery Units,Adults and Health,Other Agencies - Third Party P,0090203860,CAREWATCH (BARNET),236.23,16/10/2019,,
Delivery Units,Adults and Health,Other Agencies - Third Party P,0090203861,CAREWATCH (BARNET),51.54,16/10/2019,,
Delivery Units,Adults and Health,Other Agencies - Third Party P,0090203862,CAREWATCH (BARNET),262.00,16/10/2019,,
Delivery Units,Adults and Health,Other Agencies - Third Party P,0090203863,CAREWATCH (BARNET),206.22,16/10/2019,,
Delivery Units,Adults and Health,Other Agencies - Third Party P,0090203864,CAREWATCH (BARNET),249.13,16/10/2019,,
Delivery Units,Adults and Health,Other Agencies - Third Party P,0090203865,CAREWATCH (BARNET),8.59,16/10/2019,,
Delivery Units,Adults and Health,Other Agencies - Third Party P,0090203866,CAREWATCH (BARNET),85.93,16/10/2019,,
Delivery Units,Adults and Health,Other Agencies - Third Party P,0090203867,CAREWATCH (BARNET),51.55,16/10/2019,,
Delivery Units,Adults and Health,Other Agencies - Third Party P,0090203870,CAREWATCH (BARNET),240.52,16/10/2019,,
Delivery Units,Adults and Health,Other Agencies - Third Party P,0090203871,CAREWATCH (BARNET),601.30,16/10/2019,,
Delivery Units,Adults and Health,Other Agencies - Third Party P,0090203872,CAREWATCH (BARNET),51.56,16/10/2019,,
Delivery Units,Adults and Health,Other Agencies - Third Party P,0090203873,CAREWATCH (BARNET),712.97,16/10/2019,,
Delivery Units,Adults and Health,Other Agencies - Third Party P,0090203874,CAREWATCH (BARNET),253.44,16/10/2019,,
Delivery Units,Adults and Health,Other Agencies - Third Party P,0090203875,CAREWATCH (BARNET),300.65,16/10/2019,,
Delivery Units,Adults and Health,Other Agencies - Third Party P,0090203876,CAREWATCH (BARNET),781.90,16/10/2019,,
Delivery Units,Adults and Health,Other Agencies - Third Party P,0090203878,CAREWATCH (BARNET),120.26,16/10/2019,,
Delivery Units,Adults and Health,Other Agencies - Third Party P,0090203879,CAREWATCH (BARNET),300.72,16/10/2019,,
Delivery Units,Adults and Health,Other Agencies - Third Party P,0090203880,CAREWATCH (BARNET),240.52,16/10/2019,,
Delivery Units,Adults and Health,Other Agencies - Third Party P,0090203881,CAREWATCH (BARNET),240.52,16/10/2019,,
Delivery Units,Adults and Health,Other Agencies - Third Party P,0090203882,CAREWATCH (BARNET),197.57,16/10/2019,,
Delivery Units,Adults and Health,Other Agencies - Third Party P,0090203883,CAREWATCH (BARNET),150.36,16/10/2019,,
Delivery Units,Adults and Health,Other Agencies - Third Party P,0090203884,CAREWATCH (BARNET),270.62,16/10/2019,,
Delivery Units,Adults and Health,Other Agencies - Third Party P,0090203885,CAREWATCH (BARNET),244.85,16/10/2019,,
Delivery Units,Adults and Health,Other Agencies - Third Party P,0090203886,CAREWATCH (BARNET),120.26,16/10/2019,,
Delivery Units,Adults and Health,Other Agencies - Third Party P,0090203887,CAREWATCH (BARNET),150.36,16/10/2019,,
Delivery Units,Adults and Health,Other Agencies - Third Party P,0090203888,CAREWATCH (BARNET),120.26,16/10/2019,,
Delivery Units,Adults and Health,Other Agencies - Third Party P,0090203889,CAREWATCH (BARNET),253.44,16/10/2019,,
Delivery Units,Adults and Health,Other Agencies - Third Party P,0090203890,CAREWATCH (BARNET),150.36,16/10/2019,,
Delivery Units,Adults and Health,Other Agencies - Third Party P,0090203891,CAREWATCH (BARNET),304.98,16/10/2019,,
Delivery Units,Adults and Health,Other Agencies - Third Party P,0090203892,CAREWATCH (BARNET),120.26,16/10/2019,,
Delivery Units,Adults and Health,Other Agencies - Third Party P,0090203893,CAREWATCH (BARNET),210.49,16/10/2019,,
Delivery Units,Adults and Health,Other Agencies - Third Party P,0090203894,CAREWATCH (BARNET),60.13,16/10/2019,,
Delivery Units,Adults and Health,Other Agencies - Third Party P,0090203895,CAREWATCH (BARNET),438.09,16/10/2019,,
Delivery Units,Adults and Health,Other Agencies - Third Party P,0090203896,CAREWATCH (BARNET),206.23,16/10/2019,,
Delivery Units,Adults and Health,Other Agencies - Third Party P,0090203897,CAREWATCH (BARNET),240.59,16/10/2019,,
Delivery Units,Adults and Health,Other Agencies - Third Party P,0090203898,CAREWATCH (BARNET),120.26,16/10/2019,,
Delivery Units,Adults and Health,Other Agencies - Third Party P,0090203900,CAREWATCH (BARNET),266.29,16/10/2019,,
Delivery Units,Adults and Health,Other Agencies - Third Party P,0090203901,CAREWATCH (BARNET),240.52,16/10/2019,,
Delivery Units,Adults and Health,Other Agencies - Third Party P,0090203902,CAREWATCH (BARNET),150.36,16/10/2019,,
Delivery Units,Adults and Health,Other Agencies - Third Party P,0090203903,CAREWATCH (BARNET),120.26,16/10/2019,,
Delivery Units,Adults and Health,Other Agencies - Third Party P,0090203904,CAREWATCH (BARNET),150.36,16/10/2019,,
Delivery Units,Adults and Health,Other Agencies - Third Party P,0090203905,CAREWATCH (BARNET),51.54,16/10/2019,,
Delivery Units,Adults and Health,Other Agencies - Third Party P,0090203906,CAREWATCH (BARNET),180.39,16/10/2019,,
Delivery Units,Adults and Health,Other Agencies - Third Party P,0090203907,CAREWATCH (BARNET),128.90,16/10/2019,,
Delivery Units,Adults and Health,Other Agencies - Third Party P,0090203908,CAREWATCH (BARNET),116.00,16/10/2019,,
Delivery Units,Adults and Health,Other Agencies - Third Party P,0090203909,CAREWATCH (BARNET),274.89,16/10/2019,,
Delivery Units,Adults and Health,Other Agencies - Third Party P,0090203910,CAREWATCH (BARNET),167.52,16/10/2019,,
Delivery Units,Adults and Health,Other Agencies - Third Party P,0090203911,CAREWATCH (BARNET),141.78,16/10/2019,,
Delivery Units,Adults and Health,Other Agencies - Third Party P,0090203912,CAREWATCH (BARNET),85.90,16/10/2019,,
Delivery Units,Adults and Health,Other Agencies - Third Party P,0090203913,CAREWATCH (BARNET),128.88,16/10/2019,,
Delivery Units,Adults and Health,Other Agencies - Third Party P,0090203914,CAREWATCH (BARNET),90.23,16/10/2019,,
Delivery Units,Adults and Health,Other Agencies - Third Party P,0090203916,CAREWATCH (BARNET),103.09,16/10/2019,,
Delivery Units,Adults and Health,Other Agencies - Third Party P,0090203917,CAREWATCH (BARNET),90.23,16/10/2019,,
Delivery Units,Adults and Health,Other Agencies - Third Party P,0090203918,CAREWATCH (BARNET),176.11,16/10/2019,,
Delivery Units,Adults and Health,Other Agencies - Third Party P,0090203919,CAREWATCH (BARNET),34.36,16/10/2019,,
Delivery Units,Adults and Health,Other Agencies - Third Party P,0090203920,CAREWATCH (BARNET),17.18,16/10/2019,,
Delivery Units,Adults and Health,Other Agencies - Third Party P,0090203921,CAREWATCH (BARNET),296.42,16/10/2019,,
Delivery Units,Adults and Health,Other Agencies - Third Party P,0090203922,CAREWATCH (BARNET),90.23,16/10/2019,,
Delivery Units,Adults and Health,Other Agencies - Third Party P,0090203924,CAREWATCH (BARNET),201.90,16/10/2019,,
Delivery Units,Adults and Health,Other Agencies - Third Party P,0090203925,CAREWATCH (BARNET),210.49,16/10/2019,,
Delivery Units,Adults and Health,Other Agencies - Third Party P,0090203926,CAREWATCH (BARNET),176.11,16/10/2019,,
Delivery Units,Adults and Health,Other Agencies - Third Party P,0090203927,CAREWATCH (BARNET),292.08,16/10/2019,,
Delivery Units,Adults and Health,Other Agencies - Third Party P,0090203928,CAREWATCH (BARNET),107.40,16/10/2019,,
Delivery Units,Adults and Health,Other Agencies - Third Party P,0090203929,CAREWATCH (BARNET),38.67,16/10/2019,,
Delivery Units,Adults and Health,Other Agencies - Third Party P,0090203930,CAREWATCH (BARNET),206.19,16/10/2019,,
Delivery Units,Adults and Health,Other Agencies - Third Party P,0090203931,CAREWATCH (BARNET),98.79,16/10/2019,,
Delivery Units,Adults and Health,Other Agencies - Third Party P,0090203932,CAREWATCH (BARNET),120.26,16/10/2019,,
Delivery Units,Adults and Health,Other Agencies - Third Party P,0090203933,CAREWATCH (BARNET),171.83,16/10/2019,,
Delivery Units,Adults and Health,Other Agencies - Third Party P,0090203935,CAREWATCH (BARNET),171.81,16/10/2019,,
Delivery Units,Adults and Health,Other Agencies - Third Party P,0090203938,CAREWATCH (BARNET),292.08,16/10/2019,,
Delivery Units,Adults and Health,Other Agencies - Third Party P,0090203939,CAREWATCH (BARNET),210.49,16/10/2019,,
Delivery Units,Adults and Health,Other Agencies - Third Party P,0090203940,CAREWATCH (BARNET),240.52,16/10/2019,,
Delivery Units,Adults and Health,Other Agencies - Third Party P,0090203941,CAREWATCH (BARNET),55.84,16/10/2019,,
Delivery Units,Adults and Health,Other Agencies - Third Party P,0090203942,CAREWATCH (BARNET),274.88,16/10/2019,,
Delivery Units,Adults and Health,Other Agencies - Third Party P,0090203943,CAREWATCH (BARNET),8.59,16/10/2019,,
Delivery Units,Adults and Health,Other Agencies - Third Party P,0090203944,CAREWATCH (BARNET),90.23,16/10/2019,,
Delivery Units,Adults and Health,Other Agencies - Third Party P,0090203947,CAREWATCH (BARNET),120.26,16/10/2019,,
Delivery Units,Adults and Health,Other Agencies - Third Party P,0090203948,CAREWATCH (BARNET),601.30,16/10/2019,,
Delivery Units,Adults and Health,Other Agencies - Third Party P,0090203949,CAREWATCH (BARNET),51.56,16/10/2019,,
Delivery Units,Adults and Health,Other Agencies - Third Party P,0090203950,CAREWATCH (BARNET),150.36,16/10/2019,,
Delivery Units,Adults and Health,Other Agencies - Third Party P,0090203951,CAREWATCH (BARNET),257.73,16/10/2019,,
Delivery Units,Adults and Health,Other Agencies - Third Party P,0090203952,CAREWATCH (BARNET),300.65,16/10/2019,,
Delivery Units,Adults and Health,Other Agencies - Third Party P,0090203953,CAREWATCH (BARNET),781.90,16/10/2019,,
Delivery Units,Adults and Health,Other Agencies - Third Party P,0090203955,CAREWATCH (BARNET),120.26,16/10/2019,,
Delivery Units,Adults and Health,Other Agencies - Third Party P,0090203956,CAREWATCH (BARNET),34.36,16/10/2019,,
Delivery Units,Adults and Health,Other Agencies - Third Party P,0090203957,CAREWATCH (BARNET),201.90,16/10/2019,,
Delivery Units,Adults and Health,Other Agencies - Third Party P,0090203958,CAREWATCH (BARNET),150.36,16/10/2019,,
Delivery Units,Adults and Health,Other Agencies - Third Party P,0090203959,CAREWATCH (BARNET),270.62,16/10/2019,,
Delivery Units,Adults and Health,Other Agencies - Third Party P,0090203960,CAREWATCH (BARNET),253.44,16/10/2019,,
Delivery Units,Adults and Health,Other Agencies - Third Party P,0090203961,CAREWATCH (BARNET),120.26,16/10/2019,,
Delivery Units,Adults and Health,Other Agencies - Third Party P,0090203962,CAREWATCH (BARNET),253.44,16/10/2019,,
Delivery Units,Adults and Health,Other Agencies - Third Party P,0090203963,CAREWATCH (BARNET),150.36,16/10/2019,,
Delivery Units,Adults and Health,Other Agencies - Third Party P,0090203964,CAREWATCH (BARNET),210.49,16/10/2019,,
Delivery Units,Adults and Health,Other Agencies - Third Party P,0090203965,CAREWATCH (BARNET),60.13,16/10/2019,,
Delivery Units,Adults and Health,Other Agencies - Third Party P,0090203966,CAREWATCH (BARNET),438.09,16/10/2019,,
Delivery Units,Adults and Health,Other Agencies - Third Party P,0090203967,CAREWATCH (BARNET),240.59,16/10/2019,,
Delivery Units,Adults and Health,Other Agencies - Third Party P,0090203968,CAREWATCH (BARNET),120.26,16/10/2019,,
Delivery Units,Adults and Health,Other Agencies - Third Party P,0090203970,CAREWATCH (BARNET),240.52,16/10/2019,,
Delivery Units,Adults and Health,Other Agencies - Third Party P,0090203971,CAREWATCH (BARNET),240.52,16/10/2019,,
Delivery Units,Adults and Health,Other Agencies - Third Party P,0090203972,CAREWATCH (BARNET),712.97,16/10/2019,,
Delivery Units,Adults and Health,Other Agencies - Third Party P,0090203973,CAREWATCH (BARNET),51.54,16/10/2019,,
Delivery Units,Adults and Health,Other Agencies - Third Party P,0090203974,CAREWATCH (BARNET),180.39,16/10/2019,,
Delivery Units,Adults and Health,Other Agencies - Third Party P,0090203975,CAREWATCH (BARNET),55.84,16/10/2019,,
Delivery Units,Adults and Health,Other Agencies - Third Party P,0090203976,CAREWATCH (BARNET),133.19,16/10/2019,,
Delivery Units,Adults and Health,Other Agencies - Third Party P,0090203977,CAREWATCH (BARNET),116.00,16/10/2019,,
Delivery Units,Adults and Health,Other Agencies - Third Party P,0090203978,CAREWATCH (BARNET),283.48,16/10/2019,,
Delivery Units,Adults and Health,Other Agencies - Third Party P,0090203979,CAREWATCH (BARNET),124.56,16/10/2019,,
Delivery Units,Adults and Health,Other Agencies - Third Party P,0090203980,CAREWATCH (BARNET),292.13,16/10/2019,,
Delivery Units,Adults and Health,Other Agencies - Third Party P,0090203981,CAREWATCH (BARNET),231.96,16/10/2019,,
Delivery Units,Adults and Health,Other Agencies - Third Party P,0090203982,CAREWATCH (BARNET),236.22,16/10/2019,,
Delivery Units,Adults and Health,Other Agencies - Third Party P,0090203983,CAREWATCH (BARNET),171.84,16/10/2019,,
Delivery Units,Adults and Health,Other Agencies - Third Party P,0090203984,CAREWATCH (BARNET),60.14,16/10/2019,,
Delivery Units,Adults and Health,Other Agencies - Third Party P,0090203985,CAREWATCH (BARNET),193.28,16/10/2019,,
Delivery Units,Adults and Health,Other Agencies - Third Party P,0090203986,CAREWATCH (BARNET),90.23,16/10/2019,,
Delivery Units,Adults and Health,Other Agencies - Third Party P,0090203988,CAREWATCH (BARNET),133.15,16/10/2019,,
Delivery Units,Adults and Health,Other Agencies - Third Party P,0090203989,CAREWATCH (BARNET),90.23,16/10/2019,,
Delivery Units,Adults and Health,Other Agencies - Third Party P,0090203990,CAREWATCH (BARNET),167.52,16/10/2019,,
Delivery Units,Adults and Health,Other Agencies - Third Party P,0090203991,CAREWATCH (BARNET),17.18,16/10/2019,,
Delivery Units,Adults and Health,Other Agencies - Third Party P,0090203992,CAREWATCH (BARNET),300.72,16/10/2019,,
Delivery Units,Adults and Health,Other Agencies - Third Party P,0090203993,CAREWATCH (BARNET),90.23,16/10/2019,,
Delivery Units,Adults and Health,Other Agencies - Third Party P,0090203995,CAREWATCH (BARNET),206.20,16/10/2019,,
Delivery Units,Adults and Health,Other Agencies - Third Party P,0090203996,CAREWATCH (BARNET),180.40,16/10/2019,,
Delivery Units,Adults and Health,Other Agencies - Third Party P,0090203997,CAREWATCH (BARNET),292.09,16/10/2019,,
Delivery Units,Adults and Health,Other Agencies - Third Party P,0090203998,CAREWATCH (BARNET),244.85,16/10/2019,,
Delivery Units,Adults and Health,Other Agencies - Third Party P,0090203999,CAREWATCH (BARNET),107.40,16/10/2019,,
Delivery Units,Adults and Health,Other Agencies - Third Party P,0090204000,CAREWATCH (BARNET),120.26,16/10/2019,,
Delivery Units,Adults and Health,Other Agencies - Third Party P,0090204001,CAREWATCH (BARNET),38.67,16/10/2019,,
Delivery Units,Adults and Health,Other Agencies - Third Party P,0090204002,CAREWATCH (BARNET),206.19,16/10/2019,,
Delivery Units,Adults and Health,Other Agencies - Third Party P,0090204003,CAREWATCH (BARNET),81.62,16/10/2019,,
Delivery Units,Adults and Health,Other Agencies - Third Party P,0090204004,CAREWATCH (BARNET),120.27,16/10/2019,,
Delivery Units,Adults and Health,Other Agencies - Third Party P,0090204005,CAREWATCH (BARNET),184.72,16/10/2019,,
Delivery Units,Adults and Health,Other Agencies - Third Party P,0090204007,CAREWATCH (BARNET),287.78,16/10/2019,,
Delivery Units,Adults and Health,Other Agencies - Third Party P,0090204010,CAREWATCH (BARNET),283.50,16/10/2019,,
Delivery Units,Adults and Health,Other Agencies - Third Party P,0090204011,CAREWATCH (BARNET),115.98,16/10/2019,,
Delivery Units,Adults and Health,Other Agencies - Third Party P,0090204012,CAREWATCH (BARNET),231.98,16/10/2019,,
Delivery Units,Adults and Health,Other Agencies - Third Party P,0090204013,CAREWATCH (BARNET),210.49,16/10/2019,,
Delivery Units,Adults and Health,Other Agencies - Third Party P,0090204014,CAREWATCH (BARNET),223.34,16/10/2019,,
Delivery Units,Adults and Health,Other Agencies - Third Party P,0090204015,CAREWATCH (BARNET),55.84,16/10/2019,,
Delivery Units,Adults and Health,Other Agencies - Third Party P,0090204016,CAREWATCH (BARNET),270.59,16/10/2019,,
Delivery Units,Adults and Health,Other Agencies - Third Party P,0090204017,CAREWATCH (BARNET),206.22,16/10/2019,,
Delivery Units,Adults and Health,Other Agencies - Third Party P,0090204018,CAREWATCH (BARNET),262.02,16/10/2019,,
Delivery Units,Adults and Health,Other Agencies - Third Party P,0090204019,CAREWATCH (BARNET),4.30,16/10/2019,,
Delivery Units,Adults and Health,Other Agencies - Third Party P,0090204020,CAREWATCH (BARNET),85.92,16/10/2019,,
Delivery Units,Adults and Health,Other Agencies - Third Party P,0090204021,CAREWATCH (BARNET),150.36,16/10/2019,,
Delivery Units,Adults and Health,Other Agencies - Third Party P,0090200799,DYNAMIC PEOPLE LTD,138.04,04/10/2019,,
Delivery Units,Adults and Health,Other Agencies - Third Party P,0090200800,DYNAMIC PEOPLE LTD,248.43,04/10/2019,,
Delivery Units,Adults and Health,Other Agencies - Third Party P,0090200801,DYNAMIC PEOPLE LTD,70.96,04/10/2019,,
Delivery Units,Adults and Health,Other Agencies - Third Party P,0090200803,DYNAMIC PEOPLE LTD,220.85,04/10/2019,,
Delivery Units,Adults and Health,Other Agencies - Third Party P,0090200804,DYNAMIC PEOPLE LTD,82.81,04/10/2019,,
Delivery Units,Adults and Health,Other Agencies - Third Party P,0090200805,DYNAMIC PEOPLE LTD,153.81,04/10/2019,,
Delivery Units,Adults and Health,Other Agencies - Third Party P,0090200806,DYNAMIC PEOPLE LTD,276.08,04/10/2019,,
Delivery Units,Adults and Health,Other Agencies - Third Party P,0090200808,DYNAMIC PEOPLE LTD,82.81,04/10/2019,,
Delivery Units,Adults and Health,Other Agencies - Third Party P,0090200810,DYNAMIC PEOPLE LTD,63.08,04/10/2019,,
Delivery Units,Adults and Health,Other Agencies - Third Party P,0090200811,DYNAMIC PEOPLE LTD,138.04,04/10/2019,,
Delivery Units,Adults and Health,Other Agencies - Third Party P,0090200812,DYNAMIC PEOPLE LTD,165.62,04/10/2019,,
Delivery Units,Adults and Health,Other Agencies - Third Party P,0090200814,DYNAMIC PEOPLE LTD,138.04,04/10/2019,,
Delivery Units,Adults and Health,Other Agencies - Third Party P,0090200815,DYNAMIC PEOPLE LTD,138.04,04/10/2019,,
Delivery Units,Adults and Health,Other Agencies - Third Party P,0090200817,DYNAMIC PEOPLE LTD,55.23,04/10/2019,,
Delivery Units,Adults and Health,Other Agencies - Third Party P,0090200819,DYNAMIC PEOPLE LTD,276.08,04/10/2019,,
Delivery Units,Adults and Health,Other Agencies - Third Party P,0090200820,DYNAMIC PEOPLE LTD,110.46,04/10/2019,,
Delivery Units,Adults and Health,Other Agencies - Third Party P,0090200821,DYNAMIC PEOPLE LTD,82.81,04/10/2019,,
Delivery Units,Adults and Health,Other Agencies - Third Party P,0090200823,DYNAMIC PEOPLE LTD,264.19,04/10/2019,,
Delivery Units,Adults and Health,Other Agencies - Third Party P,0090200825,DYNAMIC PEOPLE LTD,165.62,04/10/2019,,
Delivery Units,Adults and Health,Other Agencies - Third Party P,0090200826,DYNAMIC PEOPLE LTD,386.54,04/10/2019,,
Delivery Units,Adults and Health,Other Agencies - Third Party P,0090200827,DYNAMIC PEOPLE LTD,78.85,04/10/2019,,
Delivery Units,Adults and Health,Other Agencies - Third Party P,0090200828,DYNAMIC PEOPLE LTD,331.24,04/10/2019,,
Delivery Units,Adults and Health,Other Agencies - Third Party P,0090200829,DYNAMIC PEOPLE LTD,287.91,04/10/2019,,
Delivery Units,Adults and Health,Other Agencies - Third Party P,0090200830,DYNAMIC PEOPLE LTD,248.50,04/10/2019,,
Delivery Units,Adults and Health,Other Agencies - Third Party P,0090200831,DYNAMIC PEOPLE LTD,141.93,04/10/2019,,
Delivery Units,Adults and Health,Other Agencies - Third Party P,0090200832,DYNAMIC PEOPLE LTD,11.83,04/10/2019,,
Delivery Units,Adults and Health,Other Agencies - Third Party P,0090200833,DYNAMIC PEOPLE LTD,82.81,04/10/2019,,
Delivery Units,Adults and Health,Other Agencies - Third Party P,0090200836,DYNAMIC PEOPLE LTD,276.08,04/10/2019,,
Delivery Units,Adults and Health,Other Agencies - Third Party P,0090200837,DYNAMIC PEOPLE LTD,177.51,04/10/2019,,
Delivery Units,Adults and Health,Other Agencies - Third Party P,0090200838,DYNAMIC PEOPLE LTD,47.31,04/10/2019,,
Delivery Units,Adults and Health,Other Agencies - Third Party P,0090200839,DYNAMIC PEOPLE LTD,299.74,04/10/2019,,
Delivery Units,Adults and Health,Other Agencies - Third Party P,0090200840,DYNAMIC PEOPLE LTD,165.62,04/10/2019,,
Delivery Units,Adults and Health,Other Agencies - Third Party P,0090200841,DYNAMIC PEOPLE LTD,276.01,04/10/2019,,
Delivery Units,Adults and Health,Other Agencies - Third Party P,0090200842,DYNAMIC PEOPLE LTD,63.11,04/10/2019,,
Delivery Units,Adults and Health,Other Agencies - Third Party P,0090200843,DYNAMIC PEOPLE LTD,497.00,04/10/2019,,
Delivery Units,Adults and Health,Other Agencies - Third Party P,0090200845,DYNAMIC PEOPLE LTD,193.20,04/10/2019,,
Delivery Units,Adults and Health,Other Agencies - Third Party P,0090200846,DYNAMIC PEOPLE LTD,276.01,04/10/2019,,
Delivery Units,Adults and Health,Other Agencies - Third Party P,0090200847,DYNAMIC PEOPLE LTD,82.81,04/10/2019,,
Delivery Units,Adults and Health,Other Agencies - Third Party P,0090200848,DYNAMIC PEOPLE LTD,82.81,04/10/2019,,
Delivery Units,Adults and Health,Other Agencies - Third Party P,0090200851,DYNAMIC PEOPLE LTD,59.15,04/10/2019,,
Delivery Units,Adults and Health,Other Agencies - Third Party P,0090200852,DYNAMIC PEOPLE LTD,181.38,04/10/2019,,
Delivery Units,Adults and Health,Other Agencies - Third Party P,0090200853,DYNAMIC PEOPLE LTD,362.79,04/10/2019,,
Delivery Units,Adults and Health,Other Agencies - Third Party P,0090200854,DYNAMIC PEOPLE LTD,31.54,04/10/2019,,
Delivery Units,Adults and Health,Other Agencies - Third Party P,0090200855,DYNAMIC PEOPLE LTD,102.54,04/10/2019,,
Delivery Units,Adults and Health,Other Agencies - Third Party P,0090200856,DYNAMIC PEOPLE LTD,78.85,04/10/2019,,
Delivery Units,Adults and Health,Other Agencies - Third Party P,0090200857,DYNAMIC PEOPLE LTD,193.26,04/10/2019,,
Delivery Units,Adults and Health,Other Agencies - Third Party P,0090200858,DYNAMIC PEOPLE LTD,82.79,04/10/2019,,
Delivery Units,Adults and Health,Other Agencies - Third Party P,0090200859,DYNAMIC PEOPLE LTD,82.81,04/10/2019,,
Delivery Units,Adults and Health,Other Agencies - Third Party P,0090200861,DYNAMIC PEOPLE LTD,59.16,04/10/2019,,
Delivery Units,Adults and Health,Other Agencies - Third Party P,0090200863,DYNAMIC PEOPLE LTD,303.59,04/10/2019,,
Delivery Units,Adults and Health,Other Agencies - Third Party P,0090200864,DYNAMIC PEOPLE LTD,82.81,04/10/2019,,
Delivery Units,Adults and Health,Other Agencies - Third Party P,0090200866,DYNAMIC PEOPLE LTD,63.08,04/10/2019,,
Delivery Units,Adults and Health,Other Agencies - Third Party P,0090200867,DYNAMIC PEOPLE LTD,51.25,04/10/2019,,
Delivery Units,Adults and Health,Other Agencies - Third Party P,0090200868,DYNAMIC PEOPLE LTD,725.54,04/10/2019,,
Delivery Units,Adults and Health,Other Agencies - Third Party P,0090200870,DYNAMIC PEOPLE LTD,138.04,04/10/2019,,
Delivery Units,Adults and Health,Other Agencies - Third Party P,0090200871,DYNAMIC PEOPLE LTD,110.46,04/10/2019,,
Delivery Units,Adults and Health,Other Agencies - Third Party P,0090200873,DYNAMIC PEOPLE LTD,31.54,04/10/2019,,
Delivery Units,Adults and Health,Other Agencies - Third Party P,0090200874,DYNAMIC PEOPLE LTD,220.85,04/10/2019,,
Delivery Units,Adults and Health,Other Agencies - Third Party P,0090200875,DYNAMIC PEOPLE LTD,134.09,04/10/2019,,
Delivery Units,Adults and Health,Other Agencies - Third Party P,0090200876,DYNAMIC PEOPLE LTD,122.22,04/10/2019,,
Delivery Units,Adults and Health,Other Agencies - Third Party P,0090200877,DYNAMIC PEOPLE LTD,138.04,04/10/2019,,
Delivery Units,Adults and Health,Other Agencies - Third Party P,0090200878,DYNAMIC PEOPLE LTD,232.65,04/10/2019,,
Delivery Units,Adults and Health,Other Agencies - Third Party P,0090200879,DYNAMIC PEOPLE LTD,122.26,04/10/2019,,
Delivery Units,Adults and Health,Other Agencies - Third Party P,0090200880,DYNAMIC PEOPLE LTD,177.41,04/10/2019,,
Delivery Units,Adults and Health,Other Agencies - Third Party P,0090200881,DYNAMIC PEOPLE LTD,59.15,04/10/2019,,
Delivery Units,Adults and Health,Other Agencies - Third Party P,0090200882,DYNAMIC PEOPLE LTD,82.81,04/10/2019,,
Delivery Units,Adults and Health,Other Agencies - Third Party P,0090200883,DYNAMIC PEOPLE LTD,23.66,04/10/2019,,
Delivery Units,Adults and Health,Other Agencies - Third Party P,0090200884,DYNAMIC PEOPLE LTD,102.50,04/10/2019,,
Delivery Units,Adults and Health,Other Agencies - Third Party P,0090200886,DYNAMIC PEOPLE LTD,276.08,04/10/2019,,
Delivery Units,Adults and Health,Other Agencies - Third Party P,0090200887,DYNAMIC PEOPLE LTD,126.16,04/10/2019,,
Delivery Units,Adults and Health,Other Agencies - Third Party P,0090200889,DYNAMIC PEOPLE LTD,78.85,04/10/2019,,
Delivery Units,Adults and Health,Other Agencies - Third Party P,0090200893,DYNAMIC PEOPLE LTD,35.49,04/10/2019,,
Delivery Units,Adults and Health,Other Agencies - Third Party P,0090200894,DYNAMIC PEOPLE LTD,27.61,04/10/2019,,
Delivery Units,Adults and Health,Other Agencies - Third Party P,0090200895,DYNAMIC PEOPLE LTD,212.96,04/10/2019,,
Delivery Units,Adults and Health,Other Agencies - Third Party P,0090200899,DYNAMIC PEOPLE LTD,102.57,04/10/2019,,
Delivery Units,Adults and Health,Other Agencies - Third Party P,0090200900,DYNAMIC PEOPLE LTD,94.62,04/10/2019,,
Delivery Units,Adults and Health,Other Agencies - Third Party P,0090200901,DYNAMIC PEOPLE LTD,59.15,04/10/2019,,
Delivery Units,Adults and Health,Other Agencies - Third Party P,0090200902,DYNAMIC PEOPLE LTD,248.43,04/10/2019,,
Delivery Units,Adults and Health,Other Agencies - Third Party P,0090200905,DYNAMIC PEOPLE LTD,212.90,04/10/2019,,
Delivery Units,Adults and Health,Other Agencies - Third Party P,0090200906,DYNAMIC PEOPLE LTD,169.56,04/10/2019,,
Delivery Units,Adults and Health,Other Agencies - Third Party P,0090200907,DYNAMIC PEOPLE LTD,658.49,04/10/2019,,
Delivery Units,Adults and Health,Other Agencies - Third Party P,0090200908,DYNAMIC PEOPLE LTD,82.81,04/10/2019,,
Delivery Units,Adults and Health,Other Agencies - Third Party P,0090200909,DYNAMIC PEOPLE LTD,106.45,04/10/2019,,
Delivery Units,Adults and Health,Other Agencies - Third Party P,0090200911,DYNAMIC PEOPLE LTD,193.27,04/10/2019,,
Delivery Units,Adults and Health,Other Agencies - Third Party P,0090200912,DYNAMIC PEOPLE LTD,138.04,04/10/2019,,
Delivery Units,Adults and Health,Other Agencies - Third Party P,0090200913,DYNAMIC PEOPLE LTD,15.78,04/10/2019,,
Delivery Units,Adults and Health,Other Agencies - Third Party P,0090200914,DYNAMIC PEOPLE LTD,78.90,04/10/2019,,
Delivery Units,Adults and Health,Other Agencies - Third Party P,0090200916,DYNAMIC PEOPLE LTD,47.32,04/10/2019,,
Delivery Units,Adults and Health,Other Agencies - Third Party P,0090200918,DYNAMIC PEOPLE LTD,220.84,04/10/2019,,
Delivery Units,Adults and Health,Other Agencies - Third Party P,0090200919,DYNAMIC PEOPLE LTD,90.73,04/10/2019,,
Delivery Units,Adults and Health,Other Agencies - Third Party P,0090200920,DYNAMIC PEOPLE LTD,31.55,04/10/2019,,
Delivery Units,Adults and Health,Other Agencies - Third Party P,0090200921,DYNAMIC PEOPLE LTD,110.39,04/10/2019,,
Delivery Units,Adults and Health,Other Agencies - Third Party P,0090201818,DYNAMIC PEOPLE LTD,147.90,09/10/2019,,
Delivery Units,Adults and Health,Other Agencies - Third Party P,0090201819,DYNAMIC PEOPLE LTD,266.18,09/10/2019,,
Delivery Units,Adults and Health,Other Agencies - Third Party P,0090201821,DYNAMIC PEOPLE LTD,163.67,09/10/2019,,
Delivery Units,Adults and Health,Other Agencies - Third Party P,0090201822,DYNAMIC PEOPLE LTD,207.07,09/10/2019,,
Delivery Units,Adults and Health,Other Agencies - Third Party P,0090201823,DYNAMIC PEOPLE LTD,88.73,09/10/2019,,
Delivery Units,Adults and Health,Other Agencies - Third Party P,0090201824,DYNAMIC PEOPLE LTD,63.08,09/10/2019,,
Delivery Units,Adults and Health,Other Agencies - Third Party P,0090201825,DYNAMIC PEOPLE LTD,147.90,09/10/2019,,
Delivery Units,Adults and Health,Other Agencies - Third Party P,0090201828,DYNAMIC PEOPLE LTD,147.90,09/10/2019,,
Delivery Units,Adults and Health,Other Agencies - Third Party P,0090201830,DYNAMIC PEOPLE LTD,295.79,09/10/2019,,
Delivery Units,Adults and Health,Other Agencies - Third Party P,0090201831,DYNAMIC PEOPLE LTD,236.62,09/10/2019,,
Delivery Units,Adults and Health,Other Agencies - Third Party P,0090201833,DYNAMIC PEOPLE LTD,147.90,09/10/2019,,
Delivery Units,Adults and Health,Other Agencies - Third Party P,0090201834,DYNAMIC PEOPLE LTD,41.41,09/10/2019,,
Delivery Units,Adults and Health,Other Agencies - Third Party P,0090201835,DYNAMIC PEOPLE LTD,118.28,09/10/2019,,
Delivery Units,Adults and Health,Other Agencies - Third Party P,0090201836,DYNAMIC PEOPLE LTD,177.45,09/10/2019,,
Delivery Units,Adults and Health,Other Agencies - Third Party P,0090201837,DYNAMIC PEOPLE LTD,295.80,09/10/2019,,
Delivery Units,Adults and Health,Other Agencies - Third Party P,0090201838,DYNAMIC PEOPLE LTD,414.14,09/10/2019,,
Delivery Units,Adults and Health,Other Agencies - Third Party P,0090201840,DYNAMIC PEOPLE LTD,354.91,09/10/2019,,
Delivery Units,Adults and Health,Other Agencies - Third Party P,0090201841,DYNAMIC PEOPLE LTD,236.62,09/10/2019,,
Delivery Units,Adults and Health,Other Agencies - Third Party P,0090201842,DYNAMIC PEOPLE LTD,313.54,09/10/2019,,
Delivery Units,Adults and Health,Other Agencies - Third Party P,0090201843,DYNAMIC PEOPLE LTD,118.28,09/10/2019,,
Delivery Units,Adults and Health,Other Agencies - Third Party P,0090201844,DYNAMIC PEOPLE LTD,149.82,09/10/2019,,
Delivery Units,Adults and Health,Other Agencies - Third Party P,0090201845,DYNAMIC PEOPLE LTD,88.73,09/10/2019,,
Delivery Units,Adults and Health,Other Agencies - Third Party P,0090201846,DYNAMIC PEOPLE LTD,295.79,09/10/2019,,
Delivery Units,Adults and Health,Other Agencies - Third Party P,0090201847,DYNAMIC PEOPLE LTD,183.37,09/10/2019,,
Delivery Units,Adults and Health,Other Agencies - Third Party P,0090201848,DYNAMIC PEOPLE LTD,189.33,09/10/2019,,
Delivery Units,Adults and Health,Other Agencies - Third Party P,0090201849,DYNAMIC PEOPLE LTD,295.74,09/10/2019,,
Delivery Units,Adults and Health,Other Agencies - Third Party P,0090201850,DYNAMIC PEOPLE LTD,118.28,09/10/2019,,
Delivery Units,Adults and Health,Other Agencies - Third Party P,0090201852,DYNAMIC PEOPLE LTD,532.48,09/10/2019,,
Delivery Units,Adults and Health,Other Agencies - Third Party P,0090201854,DYNAMIC PEOPLE LTD,295.73,09/10/2019,,
Delivery Units,Adults and Health,Other Agencies - Third Party P,0090201855,DYNAMIC PEOPLE LTD,88.73,09/10/2019,,
Delivery Units,Adults and Health,Other Agencies - Third Party P,0090201860,DYNAMIC PEOPLE LTD,86.74,09/10/2019,,
Delivery Units,Adults and Health,Other Agencies - Third Party P,0090201861,DYNAMIC PEOPLE LTD,65.07,09/10/2019,,
Delivery Units,Adults and Health,Other Agencies - Third Party P,0090201862,DYNAMIC PEOPLE LTD,207.07,09/10/2019,,
Delivery Units,Adults and Health,Other Agencies - Third Party P,0090201863,DYNAMIC PEOPLE LTD,193.22,09/10/2019,,
Delivery Units,Adults and Health,Other Agencies - Third Party P,0090201864,DYNAMIC PEOPLE LTD,388.42,09/10/2019,,
Delivery Units,Adults and Health,Other Agencies - Third Party P,0090201865,DYNAMIC PEOPLE LTD,31.54,09/10/2019,,
Delivery Units,Adults and Health,Other Agencies - Third Party P,0090201866,DYNAMIC PEOPLE LTD,88.73,09/10/2019,,
Delivery Units,Adults and Health,Other Agencies - Third Party P,0090201867,DYNAMIC PEOPLE LTD,92.68,09/10/2019,,
Delivery Units,Adults and Health,Other Agencies - Third Party P,0090201868,DYNAMIC PEOPLE LTD,63.08,09/10/2019,,
Delivery Units,Adults and Health,Other Agencies - Third Party P,0090201869,DYNAMIC PEOPLE LTD,88.71,09/10/2019,,
Delivery Units,Adults and Health,Other Agencies - Third Party P,0090201870,DYNAMIC PEOPLE LTD,220.86,09/10/2019,,
Delivery Units,Adults and Health,Other Agencies - Third Party P,0090201872,DYNAMIC PEOPLE LTD,88.73,09/10/2019,,
Delivery Units,Adults and Health,Other Agencies - Third Party P,0090201875,DYNAMIC PEOPLE LTD,59.16,09/10/2019,,
Delivery Units,Adults and Health,Other Agencies - Third Party P,0090201877,DYNAMIC PEOPLE LTD,319.38,09/10/2019,,
Delivery Units,Adults and Health,Other Agencies - Third Party P,0090201878,DYNAMIC PEOPLE LTD,173.51,09/10/2019,,
Delivery Units,Adults and Health,Other Agencies - Third Party P,0090201879,DYNAMIC PEOPLE LTD,143.96,09/10/2019,,
Delivery Units,Adults and Health,Other Agencies - Third Party P,0090201880,DYNAMIC PEOPLE LTD,84.79,09/10/2019,,
Delivery Units,Adults and Health,Other Agencies - Third Party P,0090201881,DYNAMIC PEOPLE LTD,70.97,09/10/2019,,
Delivery Units,Adults and Health,Other Agencies - Third Party P,0090201882,DYNAMIC PEOPLE LTD,51.25,09/10/2019,,
Delivery Units,Adults and Health,Other Agencies - Third Party P,0090201883,DYNAMIC PEOPLE LTD,59.17,09/10/2019,,
Delivery Units,Adults and Health,Other Agencies - Third Party P,0090201885,DYNAMIC PEOPLE LTD,802.43,09/10/2019,,
Delivery Units,Adults and Health,Other Agencies - Third Party P,0090201887,DYNAMIC PEOPLE LTD,141.98,09/10/2019,,
Delivery Units,Adults and Health,Other Agencies - Third Party P,0090201888,DYNAMIC PEOPLE LTD,118.34,09/10/2019,,
Delivery Units,Adults and Health,Other Agencies - Third Party P,0090201889,DYNAMIC PEOPLE LTD,126.23,09/10/2019,,
Delivery Units,Adults and Health,Other Agencies - Third Party P,0090201890,DYNAMIC PEOPLE LTD,88.73,09/10/2019,,
Delivery Units,Adults and Health,Other Agencies - Third Party P,0090201892,DYNAMIC PEOPLE LTD,31.54,09/10/2019,,
Delivery Units,Adults and Health,Other Agencies - Third Party P,0090201893,DYNAMIC PEOPLE LTD,138.03,09/10/2019,,
Delivery Units,Adults and Health,Other Agencies - Third Party P,0090201894,DYNAMIC PEOPLE LTD,114.34,09/10/2019,,
Delivery Units,Adults and Health,Other Agencies - Third Party P,0090201895,DYNAMIC PEOPLE LTD,262.23,09/10/2019,,
Delivery Units,Adults and Health,Other Agencies - Third Party P,0090201896,DYNAMIC PEOPLE LTD,128.18,09/10/2019,,
Delivery Units,Adults and Health,Other Agencies - Third Party P,0090201897,DYNAMIC PEOPLE LTD,193.19,09/10/2019,,
Delivery Units,Adults and Health,Other Agencies - Third Party P,0090201898,DYNAMIC PEOPLE LTD,279.98,09/10/2019,,
Delivery Units,Adults and Health,Other Agencies - Third Party P,0090201899,DYNAMIC PEOPLE LTD,65.07,09/10/2019,,
Delivery Units,Adults and Health,Other Agencies - Third Party P,0090201900,DYNAMIC PEOPLE LTD,88.73,09/10/2019,,
Delivery Units,Adults and Health,Other Agencies - Third Party P,0090201903,DYNAMIC PEOPLE LTD,118.28,09/10/2019,,
Delivery Units,Adults and Health,Other Agencies - Third Party P,0090201904,DYNAMIC PEOPLE LTD,86.74,09/10/2019,,
Delivery Units,Adults and Health,Other Agencies - Third Party P,0090201908,DYNAMIC PEOPLE LTD,41.41,09/10/2019,,
Delivery Units,Adults and Health,Other Agencies - Third Party P,0090201909,DYNAMIC PEOPLE LTD,31.55,09/10/2019,,
Delivery Units,Adults and Health,Other Agencies - Third Party P,0090201912,DYNAMIC PEOPLE LTD,254.40,09/10/2019,,
Delivery Units,Adults and Health,Other Agencies - Third Party P,0090201913,DYNAMIC PEOPLE LTD,23.66,09/10/2019,,
